{"text_format":"1","workbook":"xlsx","n_sheets":12,"sheets":["F_Inputs","InpOverride","InpActive","F_Outputs","Cover","Change Log","Map & Key","Inputs","Time","Indexation","Calc","Summary_Output"],"not_rendered":{"charts":0,"images":1,"macros":1,"external_links":0,"defined_names":0,"comments":0,"pivot_tables":0},"unopened":[],"bounds":{"document_bytes":16777216,"sheet_cells":100000,"rows_first":2000,"rows_last":500,"rows_between":2000,"halvings":0,"cell_chars":16384,"cell_head_chars":4096},"cells_cut":0,"cells_raw":0,"read":"whole","date_system":"1900"}

{"sheet":"F_Inputs","index":0,"n_rows":60,"n_cols":18,"rows_kept":60,"cut":false,"hidden":false,"merged":[]}
[null,null,"PR19PD010_IN"]
["Acronym","Reference","Item description","Unit","Model","Price Review 2019"]
[]
[null,null,null,null,null,"BYRun1: Blind Year DD"]
[null,null,null,null,null,"Latest"]
[null,null,null,null,null,"2011-12","2012-13","2013-14","2014-15","2015-16","2016-17","2017-18","2018-19","2019-20","2020-21","2015-20","2014-20","PR19 application"]
["YKY","BB3905AL","Consumer Price Index (with housing) for April","nr","Price Review 2019",93.3,95.9,98,99.6,99.9,100.6,103.2,105.5,107.6]
["YKY","BB3905MY","Consumer Price Index (with housing) for May","nr","Price Review 2019",93.5,95.9,98.2,99.6,100.1,100.8,103.5,105.9,107.9]
["YKY","BB3905JN","Consumer Price Index (with housing) for June","nr","Price Review 2019",93.5,95.6,98,99.8,100.1,101,103.5,105.9,107.9]
["YKY","BB3905JL","Consumer Price Index (with housing) for July","nr","Price Review 2019",93.5,95.7,98,99.6,100,100.9,103.5,105.9,108]
["YKY","BB3905AT","Consumer Price Index (with housing) for August","nr","Price Review 2019",93.9,96.1,98.4,99.9,100.3,101.2,104,106.5,108.3]
["YKY","BB3905SR","Consumer Price Index (with housing) for September","nr","Price Review 2019",94.5,96.4,98.7,100,100.2,101.5,104.3,106.6,108.4]
["YKY","BB3905OR","Consumer Price Index (with housing) for October","nr","Price Review 2019",94.5,96.8,98.8,100.1,100.3,101.6,104.4,106.7,108.3]
["YKY","BB3905NR","Consumer Price Index (with housing) for November","nr","Price Review 2019",94.7,97,98.8,99.9,100.3,101.8,104.7,106.9,108.5]
["YKY","BB3905DR","Consumer Price Index (with housing) for December","nr","Price Review 2019",95,97.3,99.2,99.9,100.4,102.2,105,107.1,108.5]
["YKY","BB3905JY","Consumer Price Index (with housing) for January","nr","Price Review 2019",94.7,97,98.7,99.2,99.9,101.8,104.5,106.4,108.3]
["YKY","BB3905FY","Consumer Price Index (with housing) for February","nr","Price Review 2019",95.2,97.5,99.1,99.5,100.1,102.4,104.9,106.8,108.6]
["YKY","BB3905MH","Consumer Price Index (with housing) for March","nr","Price Review 2019",95.4,97.8,99.3,99.6,100.4,102.7,105.1,107,108.6]
["YKY","BB3805AL","Retail Price Index for April","nr","Price Review 2019",234.4,242.5,249.5,255.7,258,261.39999999999998,270.60000000000002,279.7,288.2]
["YKY","BB3805MY","Retail Price Index for May","nr","Price Review 2019",235.2,242.4,250,255.9,258.5,262.10000000000002,271.7,280.7,289.2]
["YKY","BB3805JN","Retail Price Index for June","nr","Price Review 2019",235.2,241.8,249.7,256.3,258.89999999999998,263.10000000000002,272.3,281.5,289.60000000000002]
["YKY","BB3805JL","Retail Price Index for July","nr","Price Review 2019",234.7,242.1,249.7,256,258.60000000000002,263.39999999999998,272.89999999999998,281.7,289.5]
["YKY","BB3805AT","Retail Price Index for August","nr","Price Review 2019",236.1,243,251,257,259.8,264.39999999999998,274.7,284.2,291.7]
["YKY","BB3805SR","Retail Price Index for September","nr","Price Review 2019",237.9,244.2,251.9,257.60000000000002,259.60000000000002,264.89999999999998,275.10000000000002,284.10000000000002,291]
["YKY","BB3805OR","Retail Price Index for October","nr","Price Review 2019",238,245.6,251.9,257.7,259.5,264.8,275.3,284.5,290.39999999999998]
["YKY","BB3805NR","Retail Price Index for November","nr","Price Review 2019",238.5,245.6,252.1,257.10000000000002,259.8,265.5,275.8,284.60000000000002,291]
["YKY","BB3805DR","Retail Price Index for December","nr","Price Review 2019",239.4,246.8,253.4,257.5,260.60000000000002,267.10000000000002,278.10000000000002,285.60000000000002,291.89999999999998]
["YKY","BB3805JY","Retail Price Index for January","nr","Price Review 2019",238,245.8,252.6,255.4,258.8,265.5,276,283,290.60000000000002]
["YKY","BB3805FY","Retail Price Index for February","nr","Price Review 2019",239.9,247.6,254.2,256.7,260,268.39999999999998,278.10000000000002,285,292]
["YKY","BB3805MH","Retail Price Index for March","nr","Price Review 2019",240.8,248.7,254.8,257.10000000000002,261.10000000000002,269.3,278.3,285.10000000000002,292.60000000000002]
["YKY","APP8001W","RCV year end balances - Water RCV closing balance at 31 March 2020 - Wholesale water closing RCV at 31 March 2020 in 2012-13 prices (from PR14 FD)","£m","Price Review 2019",null,null,null,null,null,null,null,null,2417.7536510444002]
["YKY","C00572_L021","Water - Total Adjustment RCV carry forward to PR19","£m","Price Review 2019",null,null,null,null,null,null,null,null,null,null,3.0289999999999999]
["YKY","APP25001","Further 2010-15 reconciliation adjustments - Water ~ CIS RCV inflation correction","£m","Price Review 2019",null,null,null,null,null,null,null,null,null,null,-40.01]
["YKY","C_APP27029_PD002","Net performance payment / (penalty) applied to RCV for end of period ODI adjustments ~ Water resources","£m","Price Review 2019",null,null,null,null,0,0,0,0,0,null,null,null,0]
["YKY","C_APP27030_PD002","Net performance payment / (penalty) applied to RCV for end of period ODI adjustments ~ Water network plus","£m","Price Review 2019",null,null,null,null,0,0,-6.5735999999999999,-6.1247999999999996,-4.5936000000000003,null,null,null,-17.292000000000002]
["YKY","APP27029","End of period ODI RCV adjustments allocated to PR19 price controls (2012-13 prices) - Net performance payment / (penalty) applied to RCV for end of period ODI adjustments ~ Water resources","£m","Price Review 2019",null,null,null,null,0,0,0,0]
["YKY","APP27030","End of period ODI RCV adjustments allocated to PR19 price controls (2012-13 prices) - Net performance payment / (penalty) applied to RCV for end of period ODI adjustments ~ Water network plus","£m","Price Review 2019",null,null,null,null,0,0,0,0,-1.75001160000426]
["YKY","C_WS15025_PR19PD006","Water: RCV adjustment from totex menu model","£m","Price Review 2019",null,null,null,null,null,null,null,null,45.031337631092399]
["YKY","APP8009W","RCV year end balances - Water RCV closing balance at 31 March 2020 - Water ~ Other adjustment to wholesale RCV","£m","Price Review 2019",null,null,null,null,null,null,null,null,0]
["YKY","C_A7010W_PR19PD003","NPV effect of 50% of proceeds from disposals of interest in land","£m","Price Review 2019",null,null,null,null,null,null,null,null,-1.45796223359861]
["YKY","WS12019WR","RCV ~ 31 March 2020 ( % of total wholesale water) - Water resources","%","Price Review 2019",null,null,null,null,null,null,0.20068334073328201]
["YKY","APP33021WR","Water resources - RCV adjustment","£m","Price Review 2019",null,null,null,null,null,null,null,null,0.36940565917755103]
["YKY","APP33021WNP","Water network plus - RCV adjustment","£m","Price Review 2019",null,null,null,null,null,null,null,null,6.9351060561968101]
["YKY","APP8001WW","RCV year end balances - Wastewater RCV closing balance at 31 March 2020 - Wholesale wastewater closing RCV at 31 March 2020 in 2012-13 prices (PR14 FD)","£m","Price Review 2019",null,null,null,null,null,null,null,null,3394.3262140232]
["YKY","C00579_L021","Wastewater - Total Adjustment RCV carry forward to PR19","£m","Price Review 2019",null,null,null,null,null,null,null,null,null,null,3.198]
["YKY","APP25002","Further 2010-15 reconciliation adjustments - Wastewater ~ CIS RCV inflation correction","£m","Price Review 2019",null,null,null,null,null,null,null,null,null,null,-61.174999999999997]
["YKY","C_APP27031_PD002","Net performance payment / (penalty) applied to RCV for end of period ODI adjustments ~ Wastewater network plus","£m","Price Review 2019",null,null,null,null,0,0,0,0,0,null,null,null,0]
["YKY","APP27031","End of period ODI RCV adjustments allocated to PR19 price controls (2012-13 prices) - Net performance payment / (penalty) applied to RCV for end of period ODI adjustments ~ Wastewater network plus","£m","Price Review 2019",null,null,null,null,0,0,0,0]
["YKY","C_WWS15020_PR19PD006","Wastewater: RCV adjustment from totex menu model","£m","Price Review 2019",null,null,null,null,null,null,null,null,-46.719561123497101]
["YKY","APP8009WW","RCV year end balances - Wastewater RCV closing balance at 31 March 2020 - Wastewater ~ Other adjustment to wholesale RCV","£m","Price Review 2019",null,null,null,null,null,null,null,null,0]
["YKY","C_A7010WW_PR19PD003","NPV effect of 50% of proceeds from disposals of interest in land","£m","Price Review 2019",null,null,null,null,null,null,null,null,0.220560290916786]
["YKY","WWS12016BIO","RCV split 31 March 2020 - RCV (prior to midnight adjustments) - Bioresources","£m","Price Review 2019",null,null,null,null,null,null,290.68]
["YKY","APP33021BIO","Bioresources - RCV adjustment","£m","Price Review 2019",null,null,null,null,null,null,null,null,1.8020345851819299]
["YKY","APP33021WWNP","Wastewater network plus - RCV adjustment","£m","Price Review 2019",null,null,null,null,null,null,null,null,6.18674066220564]
["YKY","RCV1011DMMY","RCV year end balances - Dummy RCV - Dummy RCV (prior to midnight adjustments) 31 March 2020","£m","Price Review 2019"]
["YKY","C_APP27032_PD002","Net performance payment / (penalty) applied to RCV for end of period ODI adjustments ~ Thames Tideway","£m","Price Review 2019",null,null,null,null,0,0,0,0,0,null,null,null,0]
["YKY","APP27032","End of period ODI RCV adjustments allocated to PR19 price controls (2012-13 prices) - Net performance payment / (penalty) applied to RCV for end of period ODI adjustments ~ Thames Tideway","£m","Price Review 2019",null,null,null,null,0,0,0,0]
["YKY","C_WWS15020_DMMY_PR19PD006","Wastewater: RCV adjustment from totex menu model (TTT)","£m","Price Review 2019"]
["YKY","APP8009DMMY","RCV year end balances - Dummy RCV - Dummy ~ Other adjustment to wholesale RCV","£m","Price Review 2019"]
["YKY","APP33021DMMY","Dummy - RCV adjustment","£m","Price Review 2019",null,null,null,null,null,null,null,null,0]

{"sheet":"InpOverride","index":1,"n_rows":60,"n_cols":19,"rows_kept":60,"cut":false,"hidden":false,"merged":[]}
[null,null,"PR19PD010_IN"]
["Acronym","Reference","Item description","Unit","Model","Price Review 2019"]
[]
[null,null,null,null,null,"PR19 Run 6: Fast Track DD"]
[null,null,null,null,null,"Latest"]
[null,null,null,null,null,"2011-12","2012-13","2013-14","2014-15","2015-16","2016-17","2017-18","2018-19","2019-20","2020-21","2015-20","2014-20","PR19 application","Action /\nIntervention\nreference"]
[{"$f":"F_Inputs!A7","v":"YKY"},"BB3905AL","Consumer Price Index (with housing) for April","nr","Price Review 2019"]
[{"$f":"F_Inputs!A8","v":"YKY"},"BB3905MY","Consumer Price Index (with housing) for May","nr","Price Review 2019"]
[{"$f":"F_Inputs!A9","v":"YKY"},"BB3905JN","Consumer Price Index (with housing) for June","nr","Price Review 2019"]
[{"$f":"F_Inputs!A10","v":"YKY"},"BB3905JL","Consumer Price Index (with housing) for July","nr","Price Review 2019"]
[{"$f":"F_Inputs!A11","v":"YKY"},"BB3905AT","Consumer Price Index (with housing) for August","nr","Price Review 2019"]
[{"$f":"F_Inputs!A12","v":"YKY"},"BB3905SR","Consumer Price Index (with housing) for September","nr","Price Review 2019"]
[{"$f":"F_Inputs!A13","v":"YKY"},"BB3905OR","Consumer Price Index (with housing) for October","nr","Price Review 2019"]
[{"$f":"F_Inputs!A14","v":"YKY"},"BB3905NR","Consumer Price Index (with housing) for November","nr","Price Review 2019"]
[{"$f":"F_Inputs!A15","v":"YKY"},"BB3905DR","Consumer Price Index (with housing) for December","nr","Price Review 2019"]
[{"$f":"F_Inputs!A16","v":"YKY"},"BB3905JY","Consumer Price Index (with housing) for January","nr","Price Review 2019"]
[{"$f":"F_Inputs!A17","v":"YKY"},"BB3905FY","Consumer Price Index (with housing) for February","nr","Price Review 2019"]
[{"$f":"F_Inputs!A18","v":"YKY"},"BB3905MH","Consumer Price Index (with housing) for March","nr","Price Review 2019"]
[{"$f":"F_Inputs!A19","v":"YKY"},"BB3805AL","Retail Price Index for April","nr","Price Review 2019"]
[{"$f":"F_Inputs!A20","v":"YKY"},"BB3805MY","Retail Price Index for May","nr","Price Review 2019"]
[{"$f":"F_Inputs!A21","v":"YKY"},"BB3805JN","Retail Price Index for June","nr","Price Review 2019"]
[{"$f":"F_Inputs!A22","v":"YKY"},"BB3805JL","Retail Price Index for July","nr","Price Review 2019"]
[{"$f":"F_Inputs!A23","v":"YKY"},"BB3805AT","Retail Price Index for August","nr","Price Review 2019"]
[{"$f":"F_Inputs!A24","v":"YKY"},"BB3805SR","Retail Price Index for September","nr","Price Review 2019"]
[{"$f":"F_Inputs!A25","v":"YKY"},"BB3805OR","Retail Price Index for October","nr","Price Review 2019"]
[{"$f":"F_Inputs!A26","v":"YKY"},"BB3805NR","Retail Price Index for November","nr","Price Review 2019"]
[{"$f":"F_Inputs!A27","v":"YKY"},"BB3805DR","Retail Price Index for December","nr","Price Review 2019"]
[{"$f":"F_Inputs!A28","v":"YKY"},"BB3805JY","Retail Price Index for January","nr","Price Review 2019"]
[{"$f":"F_Inputs!A29","v":"YKY"},"BB3805FY","Retail Price Index for February","nr","Price Review 2019"]
[{"$f":"F_Inputs!A30","v":"YKY"},"BB3805MH","Retail Price Index for March","nr","Price Review 2019"]
[{"$f":"F_Inputs!A31","v":"YKY"},"APP8001W","RCV year end balances - Water RCV closing balance at 31 March 2020 - Wholesale water closing RCV at 31 March 2020 in 2012-13 prices (from PR14 FD)","£m","Price Review 2019"]
[{"$f":"F_Inputs!A32","v":"YKY"},"C00572_L021","Water - Total Adjustment RCV carry forward to PR19","£m","Price Review 2019"]
[{"$f":"F_Inputs!A33","v":"YKY"},"APP25001","Further 2010-15 reconciliation adjustments - Water ~ CIS RCV inflation correction","£m","Price Review 2019"]
[{"$f":"F_Inputs!A34","v":"YKY"},"C_APP27029_PD002","Net performance payment / (penalty) applied to RCV for end of period ODI adjustments ~ Water resources","£m","Price Review 2019"]
[{"$f":"F_Inputs!A35","v":"YKY"},"C_APP27030_PD002","Net performance payment / (penalty) applied to RCV for end of period ODI adjustments ~ Water network plus","£m","Price Review 2019"]
[{"$f":"F_Inputs!A36","v":"YKY"},"APP27029","End of period ODI RCV adjustments allocated to PR19 price controls (2012-13 prices) - Net performance payment / (penalty) applied to RCV for end of period ODI adjustments ~ Water resources","£m","Price Review 2019"]
[{"$f":"F_Inputs!A37","v":"YKY"},"APP27030","End of period ODI RCV adjustments allocated to PR19 price controls (2012-13 prices) - Net performance payment / (penalty) applied to RCV for end of period ODI adjustments ~ Water network plus","£m","Price Review 2019"]
[{"$f":"F_Inputs!A38","v":"YKY"},"C_WS15025_PR19PD006","Water: RCV adjustment from totex menu model","£m","Price Review 2019"]
[{"$f":"F_Inputs!A39","v":"YKY"},"APP8009W","RCV year end balances - Water RCV closing balance at 31 March 2020 - Water ~ Other adjustment to wholesale RCV","£m","Price Review 2019"]
[{"$f":"F_Inputs!A40","v":"YKY"},"C_A7010W_PR19PD003","NPV effect of 50% of proceeds from disposals of interest in land","£m","Price Review 2019"]
[{"$f":"F_Inputs!A41","v":"YKY"},"WS12019WR","RCV ~ 31 March 2020 ( % of total wholesale water) - Water resources","%","Price Review 2019"]
[{"$f":"F_Inputs!A42","v":"YKY"},"APP33021WR","Water resources - RCV adjustment","£m","Price Review 2019"]
[{"$f":"F_Inputs!A43","v":"YKY"},"APP33021WNP","Water network plus - RCV adjustment","£m","Price Review 2019"]
[{"$f":"F_Inputs!A44","v":"YKY"},"APP8001WW","RCV year end balances - Wastewater RCV closing balance at 31 March 2020 - Wholesale wastewater closing RCV at 31 March 2020 in 2012-13 prices (PR14 FD)","£m","Price Review 2019"]
[{"$f":"F_Inputs!A45","v":"YKY"},"C00579_L021","Wastewater - Total Adjustment RCV carry forward to PR19","£m","Price Review 2019"]
[{"$f":"F_Inputs!A46","v":"YKY"},"APP25002","Further 2010-15 reconciliation adjustments - Wastewater ~ CIS RCV inflation correction","£m","Price Review 2019"]
[{"$f":"F_Inputs!A47","v":"YKY"},"C_APP27031_PD002","Net performance payment / (penalty) applied to RCV for end of period ODI adjustments ~ Wastewater network plus","£m","Price Review 2019"]
[{"$f":"F_Inputs!A48","v":"YKY"},"APP27031","End of period ODI RCV adjustments allocated to PR19 price controls (2012-13 prices) - Net performance payment / (penalty) applied to RCV for end of period ODI adjustments ~ Wastewater network plus","£m","Price Review 2019"]
[{"$f":"F_Inputs!A49","v":"YKY"},"C_WWS15020_PR19PD006","Wastewater: RCV adjustment from totex menu model","£m","Price Review 2019"]
[{"$f":"F_Inputs!A50","v":"YKY"},"APP8009WW","RCV year end balances - Wastewater RCV closing balance at 31 March 2020 - Wastewater ~ Other adjustment to wholesale RCV","£m","Price Review 2019"]
[{"$f":"F_Inputs!A51","v":"YKY"},"C_A7010WW_PR19PD003","NPV effect of 50% of proceeds from disposals of interest in land","£m","Price Review 2019"]
[{"$f":"F_Inputs!A52","v":"YKY"},"WWS12016BIO","RCV split 31 March 2020 - RCV (prior to midnight adjustments) - Bioresources","£m","Price Review 2019"]
[{"$f":"F_Inputs!A53","v":"YKY"},"APP33021BIO","Bioresources - RCV adjustment","£m","Price Review 2019"]
[{"$f":"F_Inputs!A54","v":"YKY"},"APP33021WWNP","Wastewater network plus - RCV adjustment","£m","Price Review 2019"]
[{"$f":"F_Inputs!A55","v":"YKY"},"RCV1011DMMY","RCV year end balances - Dummy RCV - Dummy RCV (prior to midnight adjustments) 31 March 2020","£m","Price Review 2019"]
[{"$f":"F_Inputs!A56","v":"YKY"},"C_APP27032_PD002","Net performance payment / (penalty) applied to RCV for end of period ODI adjustments ~ Thames Tideway","£m","Price Review 2019"]
[{"$f":"F_Inputs!A57","v":"YKY"},"APP27032","End of period ODI RCV adjustments allocated to PR19 price controls (2012-13 prices) - Net performance payment / (penalty) applied to RCV for end of period ODI adjustments ~ Thames Tideway","£m","Price Review 2019"]
[{"$f":"F_Inputs!A58","v":"YKY"},"C_WWS15020_DMMY_PR19PD006","Wastewater: RCV adjustment from totex menu model (TTT)","£m","Price Review 2019"]
[{"$f":"F_Inputs!A59","v":"YKY"},"APP8009DMMY","RCV year end balances - Dummy RCV - Dummy ~ Other adjustment to wholesale RCV","£m","Price Review 2019"]
[{"$f":"F_Inputs!A60","v":"YKY"},"APP33021DMMY","Dummy - RCV adjustment","£m","Price Review 2019"]

{"sheet":"InpActive","index":2,"n_rows":60,"n_cols":18,"rows_kept":60,"cut":false,"hidden":false,"merged":[]}
[null,null,"PR19PD010_IN"]
["Acronym","Reference","Item description","Unit","Model","Price Review 2019"]
[]
[null,null,null,null,null,"PR19 Run 6: Fast Track DD"]
[null,null,null,null,null,"Latest"]
[null,null,null,null,null,"2011-12","2012-13","2013-14","2014-15","2015-16","2016-17","2017-18","2018-19","2019-20","2020-21","2015-20","2014-20","PR19 application"]
[{"$f":"F_Inputs!A7","v":"YKY"},"BB3905AL","Consumer Price Index (with housing) for April","nr","Price Review 2019",{"$f":"IF(InpOverride!F7=\"\",F_Inputs!F7,InpOverride!F7)","v":93.3},{"$f":"IF(InpOverride!G7=\"\",F_Inputs!G7,InpOverride!G7)","v":95.9},{"$f":"IF(InpOverride!H7=\"\",F_Inputs!H7,InpOverride!H7)","v":98},{"$f":"IF(InpOverride!I7=\"\",F_Inputs!I7,InpOverride!I7)","v":99.6},{"$f":"IF(InpOverride!J7=\"\",F_Inputs!J7,InpOverride!J7)","v":99.9},{"$f":"IF(InpOverride!K7=\"\",F_Inputs!K7,InpOverride!K7)","v":100.6},{"$f":"IF(InpOverride!L7=\"\",F_Inputs!L7,InpOverride!L7)","v":103.2},{"$f":"IF(InpOverride!M7=\"\",F_Inputs!M7,InpOverride!M7)","v":105.5},{"$f":"IF(InpOverride!N7=\"\",F_Inputs!N7,InpOverride!N7)","v":107.6},{"$f":"IF(InpOverride!O7=\"\",F_Inputs!O7,InpOverride!O7)","v":0}]
[{"$f":"F_Inputs!A8","v":"YKY"},"BB3905MY","Consumer Price Index (with housing) for May","nr","Price Review 2019",{"$f":"IF(InpOverride!F8=\"\",F_Inputs!F8,InpOverride!F8)","v":93.5},{"$f":"IF(InpOverride!G8=\"\",F_Inputs!G8,InpOverride!G8)","v":95.9},{"$f":"IF(InpOverride!H8=\"\",F_Inputs!H8,InpOverride!H8)","v":98.2},{"$f":"IF(InpOverride!I8=\"\",F_Inputs!I8,InpOverride!I8)","v":99.6},{"$f":"IF(InpOverride!J8=\"\",F_Inputs!J8,InpOverride!J8)","v":100.1},{"$f":"IF(InpOverride!K8=\"\",F_Inputs!K8,InpOverride!K8)","v":100.8},{"$f":"IF(InpOverride!L8=\"\",F_Inputs!L8,InpOverride!L8)","v":103.5},{"$f":"IF(InpOverride!M8=\"\",F_Inputs!M8,InpOverride!M8)","v":105.9},{"$f":"IF(InpOverride!N8=\"\",F_Inputs!N8,InpOverride!N8)","v":107.9},{"$f":"IF(InpOverride!O8=\"\",F_Inputs!O8,InpOverride!O8)","v":0}]
[{"$f":"F_Inputs!A9","v":"YKY"},"BB3905JN","Consumer Price Index (with housing) for June","nr","Price Review 2019",{"$f":"IF(InpOverride!F9=\"\",F_Inputs!F9,InpOverride!F9)","v":93.5},{"$f":"IF(InpOverride!G9=\"\",F_Inputs!G9,InpOverride!G9)","v":95.6},{"$f":"IF(InpOverride!H9=\"\",F_Inputs!H9,InpOverride!H9)","v":98},{"$f":"IF(InpOverride!I9=\"\",F_Inputs!I9,InpOverride!I9)","v":99.8},{"$f":"IF(InpOverride!J9=\"\",F_Inputs!J9,InpOverride!J9)","v":100.1},{"$f":"IF(InpOverride!K9=\"\",F_Inputs!K9,InpOverride!K9)","v":101},{"$f":"IF(InpOverride!L9=\"\",F_Inputs!L9,InpOverride!L9)","v":103.5},{"$f":"IF(InpOverride!M9=\"\",F_Inputs!M9,InpOverride!M9)","v":105.9},{"$f":"IF(InpOverride!N9=\"\",F_Inputs!N9,InpOverride!N9)","v":107.9},{"$f":"IF(InpOverride!O9=\"\",F_Inputs!O9,InpOverride!O9)","v":0}]
[{"$f":"F_Inputs!A10","v":"YKY"},"BB3905JL","Consumer Price Index (with housing) for July","nr","Price Review 2019",{"$f":"IF(InpOverride!F10=\"\",F_Inputs!F10,InpOverride!F10)","v":93.5},{"$f":"IF(InpOverride!G10=\"\",F_Inputs!G10,InpOverride!G10)","v":95.7},{"$f":"IF(InpOverride!H10=\"\",F_Inputs!H10,InpOverride!H10)","v":98},{"$f":"IF(InpOverride!I10=\"\",F_Inputs!I10,InpOverride!I10)","v":99.6},{"$f":"IF(InpOverride!J10=\"\",F_Inputs!J10,InpOverride!J10)","v":100},{"$f":"IF(InpOverride!K10=\"\",F_Inputs!K10,InpOverride!K10)","v":100.9},{"$f":"IF(InpOverride!L10=\"\",F_Inputs!L10,InpOverride!L10)","v":103.5},{"$f":"IF(InpOverride!M10=\"\",F_Inputs!M10,InpOverride!M10)","v":105.9},{"$f":"IF(InpOverride!N10=\"\",F_Inputs!N10,InpOverride!N10)","v":108},{"$f":"IF(InpOverride!O10=\"\",F_Inputs!O10,InpOverride!O10)","v":0}]
[{"$f":"F_Inputs!A11","v":"YKY"},"BB3905AT","Consumer Price Index (with housing) for August","nr","Price Review 2019",{"$f":"IF(InpOverride!F11=\"\",F_Inputs!F11,InpOverride!F11)","v":93.9},{"$f":"IF(InpOverride!G11=\"\",F_Inputs!G11,InpOverride!G11)","v":96.1},{"$f":"IF(InpOverride!H11=\"\",F_Inputs!H11,InpOverride!H11)","v":98.4},{"$f":"IF(InpOverride!I11=\"\",F_Inputs!I11,InpOverride!I11)","v":99.9},{"$f":"IF(InpOverride!J11=\"\",F_Inputs!J11,InpOverride!J11)","v":100.3},{"$f":"IF(InpOverride!K11=\"\",F_Inputs!K11,InpOverride!K11)","v":101.2},{"$f":"IF(InpOverride!L11=\"\",F_Inputs!L11,InpOverride!L11)","v":104},{"$f":"IF(InpOverride!M11=\"\",F_Inputs!M11,InpOverride!M11)","v":106.5},{"$f":"IF(InpOverride!N11=\"\",F_Inputs!N11,InpOverride!N11)","v":108.3},{"$f":"IF(InpOverride!O11=\"\",F_Inputs!O11,InpOverride!O11)","v":0}]
[{"$f":"F_Inputs!A12","v":"YKY"},"BB3905SR","Consumer Price Index (with housing) for September","nr","Price Review 2019",{"$f":"IF(InpOverride!F12=\"\",F_Inputs!F12,InpOverride!F12)","v":94.5},{"$f":"IF(InpOverride!G12=\"\",F_Inputs!G12,InpOverride!G12)","v":96.4},{"$f":"IF(InpOverride!H12=\"\",F_Inputs!H12,InpOverride!H12)","v":98.7},{"$f":"IF(InpOverride!I12=\"\",F_Inputs!I12,InpOverride!I12)","v":100},{"$f":"IF(InpOverride!J12=\"\",F_Inputs!J12,InpOverride!J12)","v":100.2},{"$f":"IF(InpOverride!K12=\"\",F_Inputs!K12,InpOverride!K12)","v":101.5},{"$f":"IF(InpOverride!L12=\"\",F_Inputs!L12,InpOverride!L12)","v":104.3},{"$f":"IF(InpOverride!M12=\"\",F_Inputs!M12,InpOverride!M12)","v":106.6},{"$f":"IF(InpOverride!N12=\"\",F_Inputs!N12,InpOverride!N12)","v":108.4},{"$f":"IF(InpOverride!O12=\"\",F_Inputs!O12,InpOverride!O12)","v":0}]
[{"$f":"F_Inputs!A13","v":"YKY"},"BB3905OR","Consumer Price Index (with housing) for October","nr","Price Review 2019",{"$f":"IF(InpOverride!F13=\"\",F_Inputs!F13,InpOverride!F13)","v":94.5},{"$f":"IF(InpOverride!G13=\"\",F_Inputs!G13,InpOverride!G13)","v":96.8},{"$f":"IF(InpOverride!H13=\"\",F_Inputs!H13,InpOverride!H13)","v":98.8},{"$f":"IF(InpOverride!I13=\"\",F_Inputs!I13,InpOverride!I13)","v":100.1},{"$f":"IF(InpOverride!J13=\"\",F_Inputs!J13,InpOverride!J13)","v":100.3},{"$f":"IF(InpOverride!K13=\"\",F_Inputs!K13,InpOverride!K13)","v":101.6},{"$f":"IF(InpOverride!L13=\"\",F_Inputs!L13,InpOverride!L13)","v":104.4},{"$f":"IF(InpOverride!M13=\"\",F_Inputs!M13,InpOverride!M13)","v":106.7},{"$f":"IF(InpOverride!N13=\"\",F_Inputs!N13,InpOverride!N13)","v":108.3},{"$f":"IF(InpOverride!O13=\"\",F_Inputs!O13,InpOverride!O13)","v":0}]
[{"$f":"F_Inputs!A14","v":"YKY"},"BB3905NR","Consumer Price Index (with housing) for November","nr","Price Review 2019",{"$f":"IF(InpOverride!F14=\"\",F_Inputs!F14,InpOverride!F14)","v":94.7},{"$f":"IF(InpOverride!G14=\"\",F_Inputs!G14,InpOverride!G14)","v":97},{"$f":"IF(InpOverride!H14=\"\",F_Inputs!H14,InpOverride!H14)","v":98.8},{"$f":"IF(InpOverride!I14=\"\",F_Inputs!I14,InpOverride!I14)","v":99.9},{"$f":"IF(InpOverride!J14=\"\",F_Inputs!J14,InpOverride!J14)","v":100.3},{"$f":"IF(InpOverride!K14=\"\",F_Inputs!K14,InpOverride!K14)","v":101.8},{"$f":"IF(InpOverride!L14=\"\",F_Inputs!L14,InpOverride!L14)","v":104.7},{"$f":"IF(InpOverride!M14=\"\",F_Inputs!M14,InpOverride!M14)","v":106.9},{"$f":"IF(InpOverride!N14=\"\",F_Inputs!N14,InpOverride!N14)","v":108.5},{"$f":"IF(InpOverride!O14=\"\",F_Inputs!O14,InpOverride!O14)","v":0}]
[{"$f":"F_Inputs!A15","v":"YKY"},"BB3905DR","Consumer Price Index (with housing) for December","nr","Price Review 2019",{"$f":"IF(InpOverride!F15=\"\",F_Inputs!F15,InpOverride!F15)","v":95},{"$f":"IF(InpOverride!G15=\"\",F_Inputs!G15,InpOverride!G15)","v":97.3},{"$f":"IF(InpOverride!H15=\"\",F_Inputs!H15,InpOverride!H15)","v":99.2},{"$f":"IF(InpOverride!I15=\"\",F_Inputs!I15,InpOverride!I15)","v":99.9},{"$f":"IF(InpOverride!J15=\"\",F_Inputs!J15,InpOverride!J15)","v":100.4},{"$f":"IF(InpOverride!K15=\"\",F_Inputs!K15,InpOverride!K15)","v":102.2},{"$f":"IF(InpOverride!L15=\"\",F_Inputs!L15,InpOverride!L15)","v":105},{"$f":"IF(InpOverride!M15=\"\",F_Inputs!M15,InpOverride!M15)","v":107.1},{"$f":"IF(InpOverride!N15=\"\",F_Inputs!N15,InpOverride!N15)","v":108.5},{"$f":"IF(InpOverride!O15=\"\",F_Inputs!O15,InpOverride!O15)","v":0}]
[{"$f":"F_Inputs!A16","v":"YKY"},"BB3905JY","Consumer Price Index (with housing) for January","nr","Price Review 2019",{"$f":"IF(InpOverride!F16=\"\",F_Inputs!F16,InpOverride!F16)","v":94.7},{"$f":"IF(InpOverride!G16=\"\",F_Inputs!G16,InpOverride!G16)","v":97},{"$f":"IF(InpOverride!H16=\"\",F_Inputs!H16,InpOverride!H16)","v":98.7},{"$f":"IF(InpOverride!I16=\"\",F_Inputs!I16,InpOverride!I16)","v":99.2},{"$f":"IF(InpOverride!J16=\"\",F_Inputs!J16,InpOverride!J16)","v":99.9},{"$f":"IF(InpOverride!K16=\"\",F_Inputs!K16,InpOverride!K16)","v":101.8},{"$f":"IF(InpOverride!L16=\"\",F_Inputs!L16,InpOverride!L16)","v":104.5},{"$f":"IF(InpOverride!M16=\"\",F_Inputs!M16,InpOverride!M16)","v":106.4},{"$f":"IF(InpOverride!N16=\"\",F_Inputs!N16,InpOverride!N16)","v":108.3},{"$f":"IF(InpOverride!O16=\"\",F_Inputs!O16,InpOverride!O16)","v":0}]
[{"$f":"F_Inputs!A17","v":"YKY"},"BB3905FY","Consumer Price Index (with housing) for February","nr","Price Review 2019",{"$f":"IF(InpOverride!F17=\"\",F_Inputs!F17,InpOverride!F17)","v":95.2},{"$f":"IF(InpOverride!G17=\"\",F_Inputs!G17,InpOverride!G17)","v":97.5},{"$f":"IF(InpOverride!H17=\"\",F_Inputs!H17,InpOverride!H17)","v":99.1},{"$f":"IF(InpOverride!I17=\"\",F_Inputs!I17,InpOverride!I17)","v":99.5},{"$f":"IF(InpOverride!J17=\"\",F_Inputs!J17,InpOverride!J17)","v":100.1},{"$f":"IF(InpOverride!K17=\"\",F_Inputs!K17,InpOverride!K17)","v":102.4},{"$f":"IF(InpOverride!L17=\"\",F_Inputs!L17,InpOverride!L17)","v":104.9},{"$f":"IF(InpOverride!M17=\"\",F_Inputs!M17,InpOverride!M17)","v":106.8},{"$f":"IF(InpOverride!N17=\"\",F_Inputs!N17,InpOverride!N17)","v":108.6},{"$f":"IF(InpOverride!O17=\"\",F_Inputs!O17,InpOverride!O17)","v":0}]
[{"$f":"F_Inputs!A18","v":"YKY"},"BB3905MH","Consumer Price Index (with housing) for March","nr","Price Review 2019",{"$f":"IF(InpOverride!F18=\"\",F_Inputs!F18,InpOverride!F18)","v":95.4},{"$f":"IF(InpOverride!G18=\"\",F_Inputs!G18,InpOverride!G18)","v":97.8},{"$f":"IF(InpOverride!H18=\"\",F_Inputs!H18,InpOverride!H18)","v":99.3},{"$f":"IF(InpOverride!I18=\"\",F_Inputs!I18,InpOverride!I18)","v":99.6},{"$f":"IF(InpOverride!J18=\"\",F_Inputs!J18,InpOverride!J18)","v":100.4},{"$f":"IF(InpOverride!K18=\"\",F_Inputs!K18,InpOverride!K18)","v":102.7},{"$f":"IF(InpOverride!L18=\"\",F_Inputs!L18,InpOverride!L18)","v":105.1},{"$f":"IF(InpOverride!M18=\"\",F_Inputs!M18,InpOverride!M18)","v":107},{"$f":"IF(InpOverride!N18=\"\",F_Inputs!N18,InpOverride!N18)","v":108.6},{"$f":"IF(InpOverride!O18=\"\",F_Inputs!O18,InpOverride!O18)","v":0}]
[{"$f":"F_Inputs!A19","v":"YKY"},"BB3805AL","Retail Price Index for April","nr","Price Review 2019",{"$f":"IF(InpOverride!F19=\"\",F_Inputs!F19,InpOverride!F19)","v":234.4},{"$f":"IF(InpOverride!G19=\"\",F_Inputs!G19,InpOverride!G19)","v":242.5},{"$f":"IF(InpOverride!H19=\"\",F_Inputs!H19,InpOverride!H19)","v":249.5},{"$f":"IF(InpOverride!I19=\"\",F_Inputs!I19,InpOverride!I19)","v":255.7},{"$f":"IF(InpOverride!J19=\"\",F_Inputs!J19,InpOverride!J19)","v":258},{"$f":"IF(InpOverride!K19=\"\",F_Inputs!K19,InpOverride!K19)","v":261.39999999999998},{"$f":"IF(InpOverride!L19=\"\",F_Inputs!L19,InpOverride!L19)","v":270.60000000000002},{"$f":"IF(InpOverride!M19=\"\",F_Inputs!M19,InpOverride!M19)","v":279.7},{"$f":"IF(InpOverride!N19=\"\",F_Inputs!N19,InpOverride!N19)","v":288.2},{"$f":"IF(InpOverride!O19=\"\",F_Inputs!O19,InpOverride!O19)","v":0}]
[{"$f":"F_Inputs!A20","v":"YKY"},"BB3805MY","Retail Price Index for May","nr","Price Review 2019",{"$f":"IF(InpOverride!F20=\"\",F_Inputs!F20,InpOverride!F20)","v":235.2},{"$f":"IF(InpOverride!G20=\"\",F_Inputs!G20,InpOverride!G20)","v":242.4},{"$f":"IF(InpOverride!H20=\"\",F_Inputs!H20,InpOverride!H20)","v":250},{"$f":"IF(InpOverride!I20=\"\",F_Inputs!I20,InpOverride!I20)","v":255.9},{"$f":"IF(InpOverride!J20=\"\",F_Inputs!J20,InpOverride!J20)","v":258.5},{"$f":"IF(InpOverride!K20=\"\",F_Inputs!K20,InpOverride!K20)","v":262.10000000000002},{"$f":"IF(InpOverride!L20=\"\",F_Inputs!L20,InpOverride!L20)","v":271.7},{"$f":"IF(InpOverride!M20=\"\",F_Inputs!M20,InpOverride!M20)","v":280.7},{"$f":"IF(InpOverride!N20=\"\",F_Inputs!N20,InpOverride!N20)","v":289.2},{"$f":"IF(InpOverride!O20=\"\",F_Inputs!O20,InpOverride!O20)","v":0}]
[{"$f":"F_Inputs!A21","v":"YKY"},"BB3805JN","Retail Price Index for June","nr","Price Review 2019",{"$f":"IF(InpOverride!F21=\"\",F_Inputs!F21,InpOverride!F21)","v":235.2},{"$f":"IF(InpOverride!G21=\"\",F_Inputs!G21,InpOverride!G21)","v":241.8},{"$f":"IF(InpOverride!H21=\"\",F_Inputs!H21,InpOverride!H21)","v":249.7},{"$f":"IF(InpOverride!I21=\"\",F_Inputs!I21,InpOverride!I21)","v":256.3},{"$f":"IF(InpOverride!J21=\"\",F_Inputs!J21,InpOverride!J21)","v":258.89999999999998},{"$f":"IF(InpOverride!K21=\"\",F_Inputs!K21,InpOverride!K21)","v":263.10000000000002},{"$f":"IF(InpOverride!L21=\"\",F_Inputs!L21,InpOverride!L21)","v":272.3},{"$f":"IF(InpOverride!M21=\"\",F_Inputs!M21,InpOverride!M21)","v":281.5},{"$f":"IF(InpOverride!N21=\"\",F_Inputs!N21,InpOverride!N21)","v":289.60000000000002},{"$f":"IF(InpOverride!O21=\"\",F_Inputs!O21,InpOverride!O21)","v":0}]
[{"$f":"F_Inputs!A22","v":"YKY"},"BB3805JL","Retail Price Index for July","nr","Price Review 2019",{"$f":"IF(InpOverride!F22=\"\",F_Inputs!F22,InpOverride!F22)","v":234.7},{"$f":"IF(InpOverride!G22=\"\",F_Inputs!G22,InpOverride!G22)","v":242.1},{"$f":"IF(InpOverride!H22=\"\",F_Inputs!H22,InpOverride!H22)","v":249.7},{"$f":"IF(InpOverride!I22=\"\",F_Inputs!I22,InpOverride!I22)","v":256},{"$f":"IF(InpOverride!J22=\"\",F_Inputs!J22,InpOverride!J22)","v":258.60000000000002},{"$f":"IF(InpOverride!K22=\"\",F_Inputs!K22,InpOverride!K22)","v":263.39999999999998},{"$f":"IF(InpOverride!L22=\"\",F_Inputs!L22,InpOverride!L22)","v":272.89999999999998},{"$f":"IF(InpOverride!M22=\"\",F_Inputs!M22,InpOverride!M22)","v":281.7},{"$f":"IF(InpOverride!N22=\"\",F_Inputs!N22,InpOverride!N22)","v":289.5},{"$f":"IF(InpOverride!O22=\"\",F_Inputs!O22,InpOverride!O22)","v":0}]
[{"$f":"F_Inputs!A23","v":"YKY"},"BB3805AT","Retail Price Index for August","nr","Price Review 2019",{"$f":"IF(InpOverride!F23=\"\",F_Inputs!F23,InpOverride!F23)","v":236.1},{"$f":"IF(InpOverride!G23=\"\",F_Inputs!G23,InpOverride!G23)","v":243},{"$f":"IF(InpOverride!H23=\"\",F_Inputs!H23,InpOverride!H23)","v":251},{"$f":"IF(InpOverride!I23=\"\",F_Inputs!I23,InpOverride!I23)","v":257},{"$f":"IF(InpOverride!J23=\"\",F_Inputs!J23,InpOverride!J23)","v":259.8},{"$f":"IF(InpOverride!K23=\"\",F_Inputs!K23,InpOverride!K23)","v":264.39999999999998},{"$f":"IF(InpOverride!L23=\"\",F_Inputs!L23,InpOverride!L23)","v":274.7},{"$f":"IF(InpOverride!M23=\"\",F_Inputs!M23,InpOverride!M23)","v":284.2},{"$f":"IF(InpOverride!N23=\"\",F_Inputs!N23,InpOverride!N23)","v":291.7},{"$f":"IF(InpOverride!O23=\"\",F_Inputs!O23,InpOverride!O23)","v":0}]
[{"$f":"F_Inputs!A24","v":"YKY"},"BB3805SR","Retail Price Index for September","nr","Price Review 2019",{"$f":"IF(InpOverride!F24=\"\",F_Inputs!F24,InpOverride!F24)","v":237.9},{"$f":"IF(InpOverride!G24=\"\",F_Inputs!G24,InpOverride!G24)","v":244.2},{"$f":"IF(InpOverride!H24=\"\",F_Inputs!H24,InpOverride!H24)","v":251.9},{"$f":"IF(InpOverride!I24=\"\",F_Inputs!I24,InpOverride!I24)","v":257.60000000000002},{"$f":"IF(InpOverride!J24=\"\",F_Inputs!J24,InpOverride!J24)","v":259.60000000000002},{"$f":"IF(InpOverride!K24=\"\",F_Inputs!K24,InpOverride!K24)","v":264.89999999999998},{"$f":"IF(InpOverride!L24=\"\",F_Inputs!L24,InpOverride!L24)","v":275.10000000000002},{"$f":"IF(InpOverride!M24=\"\",F_Inputs!M24,InpOverride!M24)","v":284.10000000000002},{"$f":"IF(InpOverride!N24=\"\",F_Inputs!N24,InpOverride!N24)","v":291},{"$f":"IF(InpOverride!O24=\"\",F_Inputs!O24,InpOverride!O24)","v":0}]
[{"$f":"F_Inputs!A25","v":"YKY"},"BB3805OR","Retail Price Index for October","nr","Price Review 2019",{"$f":"IF(InpOverride!F25=\"\",F_Inputs!F25,InpOverride!F25)","v":238},{"$f":"IF(InpOverride!G25=\"\",F_Inputs!G25,InpOverride!G25)","v":245.6},{"$f":"IF(InpOverride!H25=\"\",F_Inputs!H25,InpOverride!H25)","v":251.9},{"$f":"IF(InpOverride!I25=\"\",F_Inputs!I25,InpOverride!I25)","v":257.7},{"$f":"IF(InpOverride!J25=\"\",F_Inputs!J25,InpOverride!J25)","v":259.5},{"$f":"IF(InpOverride!K25=\"\",F_Inputs!K25,InpOverride!K25)","v":264.8},{"$f":"IF(InpOverride!L25=\"\",F_Inputs!L25,InpOverride!L25)","v":275.3},{"$f":"IF(InpOverride!M25=\"\",F_Inputs!M25,InpOverride!M25)","v":284.5},{"$f":"IF(InpOverride!N25=\"\",F_Inputs!N25,InpOverride!N25)","v":290.39999999999998},{"$f":"IF(InpOverride!O25=\"\",F_Inputs!O25,InpOverride!O25)","v":0}]
[{"$f":"F_Inputs!A26","v":"YKY"},"BB3805NR","Retail Price Index for November","nr","Price Review 2019",{"$f":"IF(InpOverride!F26=\"\",F_Inputs!F26,InpOverride!F26)","v":238.5},{"$f":"IF(InpOverride!G26=\"\",F_Inputs!G26,InpOverride!G26)","v":245.6},{"$f":"IF(InpOverride!H26=\"\",F_Inputs!H26,InpOverride!H26)","v":252.1},{"$f":"IF(InpOverride!I26=\"\",F_Inputs!I26,InpOverride!I26)","v":257.10000000000002},{"$f":"IF(InpOverride!J26=\"\",F_Inputs!J26,InpOverride!J26)","v":259.8},{"$f":"IF(InpOverride!K26=\"\",F_Inputs!K26,InpOverride!K26)","v":265.5},{"$f":"IF(InpOverride!L26=\"\",F_Inputs!L26,InpOverride!L26)","v":275.8},{"$f":"IF(InpOverride!M26=\"\",F_Inputs!M26,InpOverride!M26)","v":284.60000000000002},{"$f":"IF(InpOverride!N26=\"\",F_Inputs!N26,InpOverride!N26)","v":291},{"$f":"IF(InpOverride!O26=\"\",F_Inputs!O26,InpOverride!O26)","v":0}]
[{"$f":"F_Inputs!A27","v":"YKY"},"BB3805DR","Retail Price Index for December","nr","Price Review 2019",{"$f":"IF(InpOverride!F27=\"\",F_Inputs!F27,InpOverride!F27)","v":239.4},{"$f":"IF(InpOverride!G27=\"\",F_Inputs!G27,InpOverride!G27)","v":246.8},{"$f":"IF(InpOverride!H27=\"\",F_Inputs!H27,InpOverride!H27)","v":253.4},{"$f":"IF(InpOverride!I27=\"\",F_Inputs!I27,InpOverride!I27)","v":257.5},{"$f":"IF(InpOverride!J27=\"\",F_Inputs!J27,InpOverride!J27)","v":260.60000000000002},{"$f":"IF(InpOverride!K27=\"\",F_Inputs!K27,InpOverride!K27)","v":267.10000000000002},{"$f":"IF(InpOverride!L27=\"\",F_Inputs!L27,InpOverride!L27)","v":278.10000000000002},{"$f":"IF(InpOverride!M27=\"\",F_Inputs!M27,InpOverride!M27)","v":285.60000000000002},{"$f":"IF(InpOverride!N27=\"\",F_Inputs!N27,InpOverride!N27)","v":291.89999999999998},{"$f":"IF(InpOverride!O27=\"\",F_Inputs!O27,InpOverride!O27)","v":0}]
[{"$f":"F_Inputs!A28","v":"YKY"},"BB3805JY","Retail Price Index for January","nr","Price Review 2019",{"$f":"IF(InpOverride!F28=\"\",F_Inputs!F28,InpOverride!F28)","v":238},{"$f":"IF(InpOverride!G28=\"\",F_Inputs!G28,InpOverride!G28)","v":245.8},{"$f":"IF(InpOverride!H28=\"\",F_Inputs!H28,InpOverride!H28)","v":252.6},{"$f":"IF(InpOverride!I28=\"\",F_Inputs!I28,InpOverride!I28)","v":255.4},{"$f":"IF(InpOverride!J28=\"\",F_Inputs!J28,InpOverride!J28)","v":258.8},{"$f":"IF(InpOverride!K28=\"\",F_Inputs!K28,InpOverride!K28)","v":265.5},{"$f":"IF(InpOverride!L28=\"\",F_Inputs!L28,InpOverride!L28)","v":276},{"$f":"IF(InpOverride!M28=\"\",F_Inputs!M28,InpOverride!M28)","v":283},{"$f":"IF(InpOverride!N28=\"\",F_Inputs!N28,InpOverride!N28)","v":290.60000000000002},{"$f":"IF(InpOverride!O28=\"\",F_Inputs!O28,InpOverride!O28)","v":0}]
[{"$f":"F_Inputs!A29","v":"YKY"},"BB3805FY","Retail Price Index for February","nr","Price Review 2019",{"$f":"IF(InpOverride!F29=\"\",F_Inputs!F29,InpOverride!F29)","v":239.9},{"$f":"IF(InpOverride!G29=\"\",F_Inputs!G29,InpOverride!G29)","v":247.6},{"$f":"IF(InpOverride!H29=\"\",F_Inputs!H29,InpOverride!H29)","v":254.2},{"$f":"IF(InpOverride!I29=\"\",F_Inputs!I29,InpOverride!I29)","v":256.7},{"$f":"IF(InpOverride!J29=\"\",F_Inputs!J29,InpOverride!J29)","v":260},{"$f":"IF(InpOverride!K29=\"\",F_Inputs!K29,InpOverride!K29)","v":268.39999999999998},{"$f":"IF(InpOverride!L29=\"\",F_Inputs!L29,InpOverride!L29)","v":278.10000000000002},{"$f":"IF(InpOverride!M29=\"\",F_Inputs!M29,InpOverride!M29)","v":285},{"$f":"IF(InpOverride!N29=\"\",F_Inputs!N29,InpOverride!N29)","v":292},{"$f":"IF(InpOverride!O29=\"\",F_Inputs!O29,InpOverride!O29)","v":0}]
[{"$f":"F_Inputs!A30","v":"YKY"},"BB3805MH","Retail Price Index for March","nr","Price Review 2019",{"$f":"IF(InpOverride!F30=\"\",F_Inputs!F30,InpOverride!F30)","v":240.8},{"$f":"IF(InpOverride!G30=\"\",F_Inputs!G30,InpOverride!G30)","v":248.7},{"$f":"IF(InpOverride!H30=\"\",F_Inputs!H30,InpOverride!H30)","v":254.8},{"$f":"IF(InpOverride!I30=\"\",F_Inputs!I30,InpOverride!I30)","v":257.10000000000002},{"$f":"IF(InpOverride!J30=\"\",F_Inputs!J30,InpOverride!J30)","v":261.10000000000002},{"$f":"IF(InpOverride!K30=\"\",F_Inputs!K30,InpOverride!K30)","v":269.3},{"$f":"IF(InpOverride!L30=\"\",F_Inputs!L30,InpOverride!L30)","v":278.3},{"$f":"IF(InpOverride!M30=\"\",F_Inputs!M30,InpOverride!M30)","v":285.10000000000002},{"$f":"IF(InpOverride!N30=\"\",F_Inputs!N30,InpOverride!N30)","v":292.60000000000002},{"$f":"IF(InpOverride!O30=\"\",F_Inputs!O30,InpOverride!O30)","v":0}]
[{"$f":"F_Inputs!A31","v":"YKY"},"APP8001W","RCV year end balances - Water RCV closing balance at 31 March 2020 - Wholesale water closing RCV at 31 March 2020 in 2012-13 prices (from PR14 FD)","£m","Price Review 2019",null,null,null,null,null,null,null,null,{"$f":"IF(InpOverride!N31=\"\",F_Inputs!N31,InpOverride!N31)","v":2417.7536510444002}]
[{"$f":"F_Inputs!A32","v":"YKY"},"C00572_L021","Water - Total Adjustment RCV carry forward to PR19","£m","Price Review 2019",null,null,null,null,null,null,null,null,null,null,{"$f":"IF(InpOverride!P32=\"\",F_Inputs!P32,InpOverride!P32)","v":3.0289999999999999}]
[{"$f":"F_Inputs!A33","v":"YKY"},"APP25001","Further 2010-15 reconciliation adjustments - Water ~ CIS RCV inflation correction","£m","Price Review 2019",null,null,null,null,null,null,null,null,null,null,{"$f":"IF(InpOverride!P33=\"\",F_Inputs!P33,InpOverride!P33)","v":-40.01}]
[{"$f":"F_Inputs!A34","v":"YKY"},"C_APP27029_PD002","Net performance payment / (penalty) applied to RCV for end of period ODI adjustments ~ Water resources","£m","Price Review 2019",null,null,null,null,{"$f":"IF(InpOverride!J34=\"\",F_Inputs!J34,InpOverride!J34)","v":0},{"$f":"IF(InpOverride!K34=\"\",F_Inputs!K34,InpOverride!K34)","v":0},{"$f":"IF(InpOverride!L34=\"\",F_Inputs!L34,InpOverride!L34)","v":0},{"$f":"IF(InpOverride!M34=\"\",F_Inputs!M34,InpOverride!M34)","v":0},{"$f":"IF(InpOverride!N34=\"\",F_Inputs!N34,InpOverride!N34)","v":0},null,null,null,{"$f":"IF(InpOverride!R34=\"\",F_Inputs!R34,InpOverride!R34)","v":0}]
[{"$f":"F_Inputs!A35","v":"YKY"},"C_APP27030_PD002","Net performance payment / (penalty) applied to RCV for end of period ODI adjustments ~ Water network plus","£m","Price Review 2019",null,null,null,null,{"$f":"IF(InpOverride!J35=\"\",F_Inputs!J35,InpOverride!J35)","v":0},{"$f":"IF(InpOverride!K35=\"\",F_Inputs!K35,InpOverride!K35)","v":0},{"$f":"IF(InpOverride!L35=\"\",F_Inputs!L35,InpOverride!L35)","v":-6.5735999999999999},{"$f":"IF(InpOverride!M35=\"\",F_Inputs!M35,InpOverride!M35)","v":-6.1247999999999996},{"$f":"IF(InpOverride!N35=\"\",F_Inputs!N35,InpOverride!N35)","v":-4.5936000000000003},null,null,null,{"$f":"IF(InpOverride!R35=\"\",F_Inputs!R35,InpOverride!R35)","v":-17.292000000000002}]
[{"$f":"F_Inputs!A36","v":"YKY"},"APP27029","End of period ODI RCV adjustments allocated to PR19 price controls (2012-13 prices) - Net performance payment / (penalty) applied to RCV for end of period ODI adjustments ~ Water resources","£m","Price Review 2019",null,null,null,null,{"$f":"IF(InpOverride!J36=\"\",F_Inputs!J36,InpOverride!J36)","v":0},{"$f":"IF(InpOverride!K36=\"\",F_Inputs!K36,InpOverride!K36)","v":0},{"$f":"IF(InpOverride!L36=\"\",F_Inputs!L36,InpOverride!L36)","v":0},{"$f":"IF(InpOverride!M36=\"\",F_Inputs!M36,InpOverride!M36)","v":0},{"$f":"IF(InpOverride!N36=\"\",F_Inputs!N36,InpOverride!N36)","v":0},null,null,null,{"$f":"IF(InpOverride!R36=\"\",F_Inputs!R36,InpOverride!R36)","v":0}]
[{"$f":"F_Inputs!A37","v":"YKY"},"APP27030","End of period ODI RCV adjustments allocated to PR19 price controls (2012-13 prices) - Net performance payment / (penalty) applied to RCV for end of period ODI adjustments ~ Water network plus","£m","Price Review 2019",null,null,null,null,{"$f":"IF(InpOverride!J37=\"\",F_Inputs!J37,InpOverride!J37)","v":0},{"$f":"IF(InpOverride!K37=\"\",F_Inputs!K37,InpOverride!K37)","v":0},{"$f":"IF(InpOverride!L37=\"\",F_Inputs!L37,InpOverride!L37)","v":0},{"$f":"IF(InpOverride!M37=\"\",F_Inputs!M37,InpOverride!M37)","v":0},{"$f":"IF(InpOverride!N37=\"\",F_Inputs!N37,InpOverride!N37)","v":-1.75001160000426},null,null,null,{"$f":"IF(InpOverride!R37=\"\",F_Inputs!R37,InpOverride!R37)","v":0}]
[{"$f":"F_Inputs!A38","v":"YKY"},"C_WS15025_PR19PD006","Water: RCV adjustment from totex menu model","£m","Price Review 2019",null,null,null,null,null,null,null,null,{"$f":"IF(InpOverride!N38=\"\",F_Inputs!N38,InpOverride!N38)","v":45.031337631092399}]
[{"$f":"F_Inputs!A39","v":"YKY"},"APP8009W","RCV year end balances - Water RCV closing balance at 31 March 2020 - Water ~ Other adjustment to wholesale RCV","£m","Price Review 2019",null,null,null,null,null,null,null,null,{"$f":"IF(InpOverride!N39=\"\",F_Inputs!N39,InpOverride!N39)","v":0}]
[{"$f":"F_Inputs!A40","v":"YKY"},"C_A7010W_PR19PD003","NPV effect of 50% of proceeds from disposals of interest in land","£m","Price Review 2019",null,null,null,null,null,null,null,null,{"$f":"IF(InpOverride!N40=\"\",F_Inputs!N40,InpOverride!N40)","v":-1.45796223359861}]
[{"$f":"F_Inputs!A41","v":"YKY"},"WS12019WR","RCV ~ 31 March 2020 ( % of total wholesale water) - Water resources","%","Price Review 2019",null,null,null,null,null,null,{"$f":"IF(InpOverride!L41=\"\",F_Inputs!L41,InpOverride!L41)","v":0.20068334073328201}]
[{"$f":"F_Inputs!A42","v":"YKY"},"APP33021WR","Water resources - RCV adjustment","£m","Price Review 2019",null,null,null,null,null,null,null,null,{"$f":"IF(InpOverride!N42=\"\",F_Inputs!N42,InpOverride!N42)","v":0.36940565917755103}]
[{"$f":"F_Inputs!A43","v":"YKY"},"APP33021WNP","Water network plus - RCV adjustment","£m","Price Review 2019",null,null,null,null,null,null,null,null,{"$f":"IF(InpOverride!N43=\"\",F_Inputs!N43,InpOverride!N43)","v":6.9351060561968101}]
[{"$f":"F_Inputs!A44","v":"YKY"},"APP8001WW","RCV year end balances - Wastewater RCV closing balance at 31 March 2020 - Wholesale wastewater closing RCV at 31 March 2020 in 2012-13 prices (PR14 FD)","£m","Price Review 2019",null,null,null,null,null,null,null,null,{"$f":"IF(InpOverride!N44=\"\",F_Inputs!N44,InpOverride!N44)","v":3394.3262140232}]
[{"$f":"F_Inputs!A45","v":"YKY"},"C00579_L021","Wastewater - Total Adjustment RCV carry forward to PR19","£m","Price Review 2019",null,null,null,null,null,null,null,null,null,null,{"$f":"IF(InpOverride!P45=\"\",F_Inputs!P45,InpOverride!P45)","v":3.198}]
[{"$f":"F_Inputs!A46","v":"YKY"},"APP25002","Further 2010-15 reconciliation adjustments - Wastewater ~ CIS RCV inflation correction","£m","Price Review 2019",null,null,null,null,null,null,null,null,null,null,{"$f":"IF(InpOverride!P46=\"\",F_Inputs!P46,InpOverride!P46)","v":-61.174999999999997}]
[{"$f":"F_Inputs!A47","v":"YKY"},"C_APP27031_PD002","Net performance payment / (penalty) applied to RCV for end of period ODI adjustments ~ Wastewater network plus","£m","Price Review 2019",null,null,null,null,{"$f":"IF(InpOverride!J47=\"\",F_Inputs!J47,InpOverride!J47)","v":0},{"$f":"IF(InpOverride!K47=\"\",F_Inputs!K47,InpOverride!K47)","v":0},{"$f":"IF(InpOverride!L47=\"\",F_Inputs!L47,InpOverride!L47)","v":0},{"$f":"IF(InpOverride!M47=\"\",F_Inputs!M47,InpOverride!M47)","v":0},{"$f":"IF(InpOverride!N47=\"\",F_Inputs!N47,InpOverride!N47)","v":0},null,null,null,{"$f":"IF(InpOverride!R47=\"\",F_Inputs!R47,InpOverride!R47)","v":0}]
[{"$f":"F_Inputs!A48","v":"YKY"},"APP27031","End of period ODI RCV adjustments allocated to PR19 price controls (2012-13 prices) - Net performance payment / (penalty) applied to RCV for end of period ODI adjustments ~ Wastewater network plus","£m","Price Review 2019",null,null,null,null,{"$f":"IF(InpOverride!J48=\"\",F_Inputs!J48,InpOverride!J48)","v":0},{"$f":"IF(InpOverride!K48=\"\",F_Inputs!K48,InpOverride!K48)","v":0},{"$f":"IF(InpOverride!L48=\"\",F_Inputs!L48,InpOverride!L48)","v":0},{"$f":"IF(InpOverride!M48=\"\",F_Inputs!M48,InpOverride!M48)","v":0},{"$f":"IF(InpOverride!N48=\"\",F_Inputs!N48,InpOverride!N48)","v":0},null,null,null,{"$f":"IF(InpOverride!R48=\"\",F_Inputs!R48,InpOverride!R48)","v":0}]
[{"$f":"F_Inputs!A49","v":"YKY"},"C_WWS15020_PR19PD006","Wastewater: RCV adjustment from totex menu model","£m","Price Review 2019",null,null,null,null,null,null,null,null,{"$f":"IF(InpOverride!N49=\"\",F_Inputs!N49,InpOverride!N49)","v":-46.719561123497101}]
[{"$f":"F_Inputs!A50","v":"YKY"},"APP8009WW","RCV year end balances - Wastewater RCV closing balance at 31 March 2020 - Wastewater ~ Other adjustment to wholesale RCV","£m","Price Review 2019",null,null,null,null,null,null,null,null,{"$f":"IF(InpOverride!N50=\"\",F_Inputs!N50,InpOverride!N50)","v":0}]
[{"$f":"F_Inputs!A51","v":"YKY"},"C_A7010WW_PR19PD003","NPV effect of 50% of proceeds from disposals of interest in land","£m","Price Review 2019",null,null,null,null,null,null,null,null,{"$f":"IF(InpOverride!N51=\"\",F_Inputs!N51,InpOverride!N51)","v":0.220560290916786}]
[{"$f":"F_Inputs!A52","v":"YKY"},"WWS12016BIO","RCV split 31 March 2020 - RCV (prior to midnight adjustments) - Bioresources","£m","Price Review 2019",null,null,null,null,null,null,{"$f":"IF(InpOverride!L52=\"\",F_Inputs!L52,InpOverride!L52)","v":290.68}]
[{"$f":"F_Inputs!A53","v":"YKY"},"APP33021BIO","Bioresources - RCV adjustment","£m","Price Review 2019",null,null,null,null,null,null,null,null,{"$f":"IF(InpOverride!N53=\"\",F_Inputs!N53,InpOverride!N53)","v":1.8020345851819299}]
[{"$f":"F_Inputs!A54","v":"YKY"},"APP33021WWNP","Wastewater network plus - RCV adjustment","£m","Price Review 2019",null,null,null,null,null,null,null,null,{"$f":"IF(InpOverride!N54=\"\",F_Inputs!N54,InpOverride!N54)","v":6.18674066220564}]
[{"$f":"F_Inputs!A55","v":"YKY"},"RCV1011DMMY","RCV year end balances - Dummy RCV - Dummy RCV (prior to midnight adjustments) 31 March 2020","£m","Price Review 2019",null,null,null,null,null,null,null,null,{"$f":"IF(InpOverride!N55=\"\",F_Inputs!N55,InpOverride!N55)","v":0}]
[{"$f":"F_Inputs!A56","v":"YKY"},"C_APP27032_PD002","Net performance payment / (penalty) applied to RCV for end of period ODI adjustments ~ Thames Tideway","£m","Price Review 2019",null,null,null,null,{"$f":"IF(InpOverride!J56=\"\",F_Inputs!J56,InpOverride!J56)","v":0},{"$f":"IF(InpOverride!K56=\"\",F_Inputs!K56,InpOverride!K56)","v":0},{"$f":"IF(InpOverride!L56=\"\",F_Inputs!L56,InpOverride!L56)","v":0},{"$f":"IF(InpOverride!M56=\"\",F_Inputs!M56,InpOverride!M56)","v":0},{"$f":"IF(InpOverride!N56=\"\",F_Inputs!N56,InpOverride!N56)","v":0},null,null,null,{"$f":"IF(InpOverride!R56=\"\",F_Inputs!R56,InpOverride!R56)","v":0}]
[{"$f":"F_Inputs!A57","v":"YKY"},"APP27032","End of period ODI RCV adjustments allocated to PR19 price controls (2012-13 prices) - Net performance payment / (penalty) applied to RCV for end of period ODI adjustments ~ Thames Tideway","£m","Price Review 2019",null,null,null,null,{"$f":"IF(InpOverride!J57=\"\",F_Inputs!J57,InpOverride!J57)","v":0},{"$f":"IF(InpOverride!K57=\"\",F_Inputs!K57,InpOverride!K57)","v":0},{"$f":"IF(InpOverride!L57=\"\",F_Inputs!L57,InpOverride!L57)","v":0},{"$f":"IF(InpOverride!M57=\"\",F_Inputs!M57,InpOverride!M57)","v":0},{"$f":"IF(InpOverride!N57=\"\",F_Inputs!N57,InpOverride!N57)","v":0},null,null,null,{"$f":"IF(InpOverride!R57=\"\",F_Inputs!R57,InpOverride!R57)","v":0}]
[{"$f":"F_Inputs!A58","v":"YKY"},"C_WWS15020_DMMY_PR19PD006","Wastewater: RCV adjustment from totex menu model (TTT)","£m","Price Review 2019",null,null,null,null,null,null,null,null,{"$f":"IF(InpOverride!N58=\"\",F_Inputs!N58,InpOverride!N58)","v":0}]
[{"$f":"F_Inputs!A59","v":"YKY"},"APP8009DMMY","RCV year end balances - Dummy RCV - Dummy ~ Other adjustment to wholesale RCV","£m","Price Review 2019",null,null,null,null,null,null,null,null,{"$f":"IF(InpOverride!N59=\"\",F_Inputs!N59,InpOverride!N59)","v":0}]
[{"$f":"F_Inputs!A60","v":"YKY"},"APP33021DMMY","Dummy - RCV adjustment","£m","Price Review 2019",null,null,null,null,null,null,null,null,{"$f":"IF(InpOverride!N60=\"\",F_Inputs!N60,InpOverride!N60)","v":0}]

{"sheet":"F_Outputs","index":3,"n_rows":92,"n_cols":8,"rows_kept":92,"cut":false,"hidden":false,"merged":[]}
[null,null,"PR19PD010SVEBYDD"]
["Acronym","Reference","Item description","Unit","Model","2019-20","2020-21","PR19 application"]
[]
[null,"C001_PR19PD010","1st model column start date","nr","Price Review 2019",null,null,{"$f":"Inputs!$F$13","v":41000}]
[null,"C002_PR19PD010","First modelling column financial year#","nr","Price Review 2019",null,null,{"$f":"Inputs!$F$16","v":2013}]
[null,"C003_PR19PD010","Financial year end month number","nr","Price Review 2019",null,null,{"$f":"Inputs!$F$17","v":3}]
[null,"C004_PR19PD010","Pre - forecast period","Text","Price Review 2019",null,null,{"$f":"Inputs!$F$20","v":"Pre-Fcst"}]
[null,"C005_PR19PD010","Forecast period","Text","Price Review 2019",null,null,{"$f":"Inputs!$F$21","v":"Forecast"}]
[null,"C006_PR19PD010","Post - forecast period","Text","Price Review 2019",null,null,{"$f":"Inputs!$F$22","v":"Post-Fcst"}]
[null,"C007_PR19PD010","Forecast start date","nr","Price Review 2019",null,null,{"$f":"Inputs!$F$26","v":43922}]
[null,"C008_PR19PD010","Forecast duration","nr","Price Review 2019",null,null,{"$f":"Inputs!$F$27","v":5}]
[null,"C009_PR19PD010","Forecast duration (text)","Text","Price Review 2019",null,null,{"$f":"Inputs!$F$28","v":"2020-25"}]
[null,"C010_PR19PD010","Inflation: Year reference for FYA base price 1","nr","Price Review 2019",null,null,{"$f":"Inputs!$F$69","v":2013}]
[null,"C011_PR19PD010","Inflation: Year reference for FYA base price 2","nr","Price Review 2019",null,null,{"$f":"Inputs!$F$70","v":2018}]
[null,"C012_PR19PD010","Inflation: Year reference for FYE base price","nr","Price Review 2019",null,null,{"$f":"Inputs!$F$71","v":2018}]
[null,"C013_PR19PD010","Inflation: Year reference for FYE end price","nr","Price Review 2019",null,null,{"$f":"Inputs!$F$72","v":2020}]
[null,"C014_PR19PD010","Deflation: Year reference for FYE base price","nr","Price Review 2019",null,null,{"$f":"Inputs!$F$76","v":2020}]
[null,"C015_PR19PD010","Deflation: Year reference for FYA end price","nr","Price Review 2019",null,null,{"$f":"Inputs!$F$77","v":2018}]
[null,"C016_PR19PD010","Deflation: Year reference for FYE base price - IFRS 16","nr","Price Review 2019",null,null,{"$f":"Inputs!$F$78","v":2018}]
[null,"C017_PR19PD010","Months per model period","nr","Price Review 2019",null,null,{"$f":"Inputs!$F$133","v":12}]
[null,"C018_PR19PD010","Months in a year","nr","Price Review 2019",null,null,{"$f":"Inputs!$F$135","v":12}]
[null,"C019_PR19PD010","Days in a year","nr","Price Review 2019",null,null,{"$f":"Inputs!$F$137","v":365}]
[null,"C020_PR19PD010","% of RCV to index by RPI - water services","%","Price Review 2019",null,null,{"$f":"Inputs!$F94","v":0.5}]
[null,"C021_PR19PD010","% of RCV to index by RPI - wastewater services","%","Price Review 2019",null,null,{"$f":"Inputs!$F112","v":0.5}]
[null,"C022_PR19PD010","% of RCV to index by RPI - dummy","%","Price Review 2019",null,null,{"$f":"Inputs!$F126","v":0.5}]
[null,"C_APP8002W_PR19PD010","Wholesale water closing RCV at 31 March 2020 before midnight adjustments at 2017-18 FYE CPIH deflated price base ","£m","Price Review 2019",{"$f":"Summary_Output!$F10","v":2798.1414400343024}]
[null,"C_APP8003W_PR19PD010","Water ~ Total Adjustment RCV carry forward to PR19 at 2017-18 FYE CPIH deflated price base","£m","Price Review 2019",{"$f":"Summary_Output!$F11","v":3.5055558361798762}]
[null,"C_APP8004W_PR19PD010","Water ~ CIS RCV inflation correction at 2017-18 FYE CPIH deflated price base","£m","Price Review 2019",{"$f":"Summary_Output!$F12","v":-46.304816442904212}]
[null,"C_APP8005W_PR19PD010","Water ~ NPV effect of 50% of proceeds from disposals of interest in land at 2017-18 FYE CPIH deflated price base","£m","Price Review 2019",{"$f":"Summary_Output!$F13","v":-1.5017774609887606}]
[null,"C_APP8006W_PR19PD010","Water ~ ODI RCV adjustment allocated to Water resources at 2017-18 FYE CPIH deflated price base","£m","Price Review 2019",{"$f":"Summary_Output!$F14","v":0}]
[null,"C_APP8007W_PR19PD010","Water ~ ODI RCV adjustment allocated to Water network plus at 2017-18 FYE CPIH deflated price base","£m","Price Review 2019",{"$f":"Summary_Output!$F15","v":-16.721595776798928}]
[null,"C_APP8008W_PR19PD010","Water ~ Totex menu RCV adjustment at 2017-18 FYE CPIH deflated price base","£m","Price Review 2019",{"$f":"Summary_Output!$F16","v":52.116166538019961}]
[null,"C_APP8009W_PR19PD010","Water ~ Other adjustment to wholesale RCV at 2017-18 FYE CPIH deflated price base","£m","Price Review 2019",{"$f":"Summary_Output!$F17","v":0}]
[null,"C_APP8010W_PR19PD010","Total wholesale water RCV at 31 March 2020 post midnight adjustments before allocation to price control units at 2017-18 FYE CPIH deflated price base","£m","Price Review 2019",{"$f":"Summary_Output!$F18","v":2789.2349727278106}]
[null,"C_APP8022WR_PR19PD010","Water resources IFRS16 RCV adjustment at 2017-18 FYA CPIH deflated price base","£m","Price Review 2019",{"$f":"Summary_Output!$F21","v":0.36630091767161854}]
[null,"C_APP8014WR_PR19PD010","Water resources 2020 RCV RPI inflated ~ 1 April (opening balance) at 2017-18 CPIH deflated price base","£m","Price Review 2019",null,{"$f":"Summary_Output!$F22","v":279.37114121877613}]
[null,"C_APP8016WR_PR19PD010","Water resources 2020 RCV CPIH inflated ~ 1 April (opening balance) at 2017-18 CPIH deflated price base","£m","Price Review 2019",null,{"$f":"Summary_Output!$F23","v":279.37114121877613}]
[null,"C_APP8022WN_PR19PD010","Water network plus IFRS16 RCV adjustment at 2017-18 FYA CPIH deflated price base","£m","Price Review 2019",{"$f":"Summary_Output!$F25","v":6.8768186123372423}]
[null,"C_APP8014WN_PR19PD010","Water network plus RCV RPI inflated ~ 1 April (opening balance) at 2017-18 CPIH deflated price base","£m","Price Review 2019",null,{"$f":"Summary_Output!$F26","v":1107.1465717706967}]
[null,"C_APP8016WN_PR19PD010","Water network plus RCV CPIH inflated ~ 1 April (opening balance) at 2017-18 CPIH deflated price base","£m","Price Review 2019",null,{"$f":"Summary_Output!$F27","v":1107.1465717706967}]
[null,"C_A7011W_PR19PD010","Water ~ NPV effect of 50% of proceeds from disposals of interest in land at 2017-18 FYA CPIH deflated price base","£m","Price Review 2019",{"$f":"Summary_Output!$F32","v":-1.48915548105974}]
[null,"C_APP25003_PR19PD010","Water ~ Total adjustment RCV carry forward to PR19 at 2017-18 FYA CPIH deflated price base","£m","Price Review 2019",{"$f":"Summary_Output!$F34","v":3.4760927122792205}]
[null,"C_APP25007_PR19PD010","Water ~ CIS RCV inflation correction at 2017-18 FYA CPIH deflated price base","£m","Price Review 2019",{"$f":"Summary_Output!$F35","v":-45.915638632648275}]
[null,"C_APP27048_PR19PD010","ODI end of period RCV adjustment ~ Water resources at 2017-18 FYA CPIH deflated price base","£m","Price Review 2019",{"$f":"Summary_Output!$F37","v":0}]
[null,"C_APP27049_PR19PD010","ODI end of period RCV adjustment  ~ Water network plus at 2017-18 FYA CPIH deflated price base","£m","Price Review 2019",{"$f":"Summary_Output!$F38","v":-16.581055882068458}]
[null,"C_WS15027_PR19PD010","Water: Totex menu RCV adjustment at 2017-18 FYA CPIH deflated price base","£m","Price Review 2019",{"$f":"Summary_Output!$F40","v":51.67814610882315}]
[null,"C030_PR19PD010","Water ~ Other adjustment to wholesale RCV at 2017-18 FYA CPIH deflated price base","£m","Price Review 2019",{"$f":"Summary_Output!$F42","v":0}]
[null,"C_APP8002WW_PR19PD010","Wholesale wastewater closing RCV at 31 March 2020 before midnight adjustments at 2017-18 FYE CPIH deflated price base ","£m","Price Review 2019",{"$f":"Summary_Output!$F48","v":3928.35921738771}]
[null,"C_APP8003WW_PR19PD010","Wastewater ~ Total adjustment RCV carry forward to PR19 at 2017-18 FYE CPIH deflated price base","£m","Price Review 2019",{"$f":"Summary_Output!$F49","v":3.7011447884130888}]
[null,"C_APP8004WW_PR19PD010","Wastewater ~ CIS RCV inflation correction at 2017-18 FYE CPIH deflated price base","£m","Price Review 2019",{"$f":"Summary_Output!$F50","v":-70.79972871518784}]
[null,"C_APP8005WW_PR19PD010","Wastewater ~ NPV effect of 50% of proceeds from disposals of interest in land at 2017-18 FYE CPIH deflated price base","£m","Price Review 2019",{"$f":"Summary_Output!$F51","v":0.22718865143055864}]
[null,"C_APP8006WW_PR19PD010","Wastewater ~ ODI RCV adjustment allocated to Wastewater network plus at 2017-18 FYE CPIH deflated price base","£m","Price Review 2019",{"$f":"Summary_Output!$F52","v":0}]
[null,"C_APP8008WW_PR19PD010","Wastewater ~ Totex menu RCV adjustment at 2017-18 FYE CPIH deflated price base","£m","Price Review 2019",{"$f":"Summary_Output!$F53","v":-54.0700000529012}]
[null,"C_APP8009WW_PR19PD010","Wastewater ~ Other adjustment to wholesale RCV at 2017-18 FYE CPIH deflated price base","£m","Price Review 2019",{"$f":"Summary_Output!$F54","v":0}]
[null,"C_APP8010WW_PR19PD010","Total wholesale wastewater RCV at 31 March 2020 post midnight adjustments before allocation to price control units at 2017-18 FYE CPIH deflated price base","£m","Price Review 2019",{"$f":"Summary_Output!$F55","v":3807.417822059464}]
[null,"C_RCV1011BIO_FYA_PR19PD010","Bioresources RCV (prior to midnight adjustments) 31 March 2020 at 2017-18 FYA CPIH deflated price base","£m","Price Review 2019",{"$f":"Summary_Output!$F58","v":293.28079172702286}]
[null,"C_APP8022WWN_PR19PD010","Wastewater network plus IFRS16 RCV adjustment at 2017-18 FYA CPIH deflated price base","£m","Price Review 2019",{"$f":"Summary_Output!$F59","v":6.1347430004395598}]
[null,"C_APP8014WWN_PR19PD010","Wastewater network plus RCV RPI inflated ~ 1 April (opening balance) at 2017-18 CPIH deflated price base","£m","Price Review 2019",null,{"$f":"Summary_Output!$F60","v":1744.13579591405}]
[null,"C_APP8016WWN_PR19PD010","Wastewater network plus RCV CPIH inflated ~ 1 April (opening balance) at 2017-18 CPIH deflated price base","£m","Price Review 2019",null,{"$f":"Summary_Output!$F61","v":1744.13579591405}]
[null,"C_APP8022BIO_PR19PD010","Bioresources IFRS16 RCV adjustment at 2017-18 FYA CPIH deflated price base","£m","Price Review 2019",{"$f":"Summary_Output!$F63","v":1.7868890360200773}]
[null,"C_APP8014BIO_PR19PD010","Bioresources 2020 RCV RPI inflated ~ 1 April (opening balance) at 2017-18 CPIH deflated price base","£m","Price Review 2019",null,{"$f":"Summary_Output!$F64","v":147.53384038152146}]
[null,"C_APP8016BIO_PR19PD010","Bioresources 2020 RCV CPIH inflated ~ 1 April (opening balance) at 2017-18 CPIH deflated price base","£m","Price Review 2019",null,{"$f":"Summary_Output!$F65","v":147.53384038152146}]
[null,"C_A7011WW_PR19PD010","Wastewater ~ NPV effect of 50% of proceeds from disposals of interest in land at 2017-18 FYA CPIH deflated price base","£m","Price Review 2019",{"$f":"Summary_Output!$F70","v":0.22527920034812607}]
[null,"C_APP25005_PR19PD010","Wastewater ~ Total Adjustment RCV carry forward to PR19 at 2017-18 FYA CPIH deflated price base","£m","Price Review 2019",{"$f":"Summary_Output!$F72","v":3.6700377992304221}]
[null,"C_APP25008_PR19PD010","Wastewater ~ CIS RCV inflation correction at 2017-18 FYA CPIH deflated price base","£m","Price Review 2019",{"$f":"Summary_Output!$F73","v":-70.204678664140431}]
[null,"C_APP27050_PR19PD010","ODI end of period RCV adjustment ~ Wastewater network plus at 2017-18 FYA CPIH deflated price base","£m","Price Review 2019",{"$f":"Summary_Output!$F75","v":0}]
[null,"C_WWS15022_PR19PD010","Wastewater: Totex menu RCV adjustment at 2017-18 FYA CPIH deflated price base","£m","Price Review 2019",{"$f":"Summary_Output!$F77","v":-53.615558250997651}]
[null,"C040_PR19PD010","Wastewater ~ Other adjustment to wholesale RCV at 2017-18 FYA CPIH deflated price base","£m","Price Review 2019",{"$f":"Summary_Output!$F79","v":0}]
[null,"C_APP8002DMMY_PR19PD010","Dummy RCV (prior to midnight adjustments) 31 March 2020 at 2017-18 FYE CPIH deflated price base","£m","Price Review 2019",{"$f":"Summary_Output!$F85","v":0}]
[null,"C_APP8006DMMY_PR19PD010","ODI end of period RCV adjustment allocated to dummy at 2017-18 FYE CPIH deflated price base","£m","Price Review 2019",{"$f":"Summary_Output!$F86","v":0}]
[null,"C_APP8008DMMY_PR19PD010","Dummy ~ Totex menu RCV adjustment at 2017-18 FYE CPIH deflated price base","£m","Price Review 2019",{"$f":"Summary_Output!$F87","v":0}]
[null,"C_APP8005DMMY_PR19PD010","Dummy: NPV effect of 100% of proceeds from disposals of interest in land at 2017-18 FYE CPIH deflated price base","£m","Price Review 2019",{"$f":"Summary_Output!$F88","v":0}]
[null,"C_APP8009DMMY_PR19PD010","Dummy ~ Other adjustment to wholesale RCV at 2017-18 FYE CPIH deflated price base","£m","Price Review 2019",{"$f":"Summary_Output!$F89","v":0}]
[null,"C_APP8010DMMY_PR19PD010","Total dummy RCV at 31 March 2020 post midnight adjustments at 2017-18 FYE CPIH deflated price base","£m","Price Review 2019",{"$f":"Summary_Output!$F90","v":0}]
[null,"C_APP8022DMMY_PR19PD010","Dummy IFRS16 RCV adjustment at 2017-18 FYA CPIH deflated price base","£m","Price Review 2019",{"$f":"Summary_Output!$F93","v":0}]
[null,"C_APP8014DMMY_PR19PD010","Dummy 2020 RCV RPI inflated ~ 1 April (opening balance) at 2017-18 CPIH deflated price base","£m","Price Review 2019",null,{"$f":"Summary_Output!$F94","v":0}]
[null,"C_APP8016DMMY_PR19PD010","Dummy 2020 RCV CPIH inflated ~ 1 April (opening balance) at 2017-18 CPIH deflated price base","£m","Price Review 2019",null,{"$f":"Summary_Output!$F95","v":0}]
[null,"C_A7011DMMY_PR19PD010","Dummy: NPV effect of 100% of proceeds from disposals of interest in land at 2017-18 FYA CPIH deflated price base","£m","Price Review 2019",{"$f":"Summary_Output!$F99","v":0}]
[null,"C_APP27051_PR19PD010","ODI end of period RCV adjustment  ~ Thames Tideway at 2017-18 FYA CPIH deflated price base","£m","Price Review 2019",{"$f":"Summary_Output!$F101","v":0}]
[null,"C_WWS15022DMMY_PR19PD010","Dummy ~ Totex menu RCV adjustment at 2017-18 FYA CPIH deflated price base","£m","Price Review 2019",{"$f":"Summary_Output!$F103","v":0}]
[null,"C050_PR19PD010","Dummy other RCV adjustment at 2017-18 FYA CPIH deflated price base","£m","Price Review 2019",{"$f":"Summary_Output!$F105","v":0}]
[null,"C_WS12019WR_PR19PD010","RCV ~ 31 March 2020 ( % of total wholesale water) - Water resources","%","Price Review 2019",{"$f":"Inputs!$F$96","v":0.20068334073328201}]
[null,"C_WWS12016BIO_PR19PD010","RCV split 31 March 2020 - RCV (prior to midnight adjustments) - Bioresources","£m","Price Review 2019",{"$f":"Inputs!$F$114","v":290.68}]
[null,"C_RCV_WR_PR19PD010","Water resources 2020 RCV~ 1 April (opening balance) for FM at 2017-18 CPIH deflated price base","£m","Price Review 2019",{"$f":"SUM(G36:G37)","v":558.74228243755226}]
[null,"C_RCV_WN_PR19PD010","Water network 2020 RCV~ 1 April (opening balance) for FM at 2017-18 CPIH deflated price base","£m","Price Review 2019",{"$f":"SUM(G39:G40)","v":2214.2931435413934}]
[null,"C_RCV_WWN_PR19PD010","Wastewater network 2020 RCV~ 1 April (opening balance) for FM at 2017-18 CPIH deflated price base","£m","Price Review 2019",{"$f":"SUM(G58:G59)","v":3488.2715918281001}]
[null,"C_RCV_BR_PR19PD010","Bioresources 2020 RCV~ 1 April (opening balance) for FM at 2017-18 CPIH deflated price base","£m","Price Review 2019",{"$f":"SUM(G61:G62)","v":295.06768076304292}]
[null,"C_RCV_DMMY_PR19PD010","Dummy Control 2020 RCV~ 1 April (opening balance) for FM at 2017-18 CPIH deflated price base","£m","Price Review 2019",{"$f":"SUM(G76:G77)","v":0}]
[null,"C_RCV_W_PR19PD010",{"$f":"Calc!$E$77","v":"Wholesale water closing RCV at 31 March 2020 (from PR14 FD) at 2017-18 FYA CPIH deflated prices"},"£m","Price Review 2019",{"$f":"Calc!$F$77","v":2774.6239176236109}]
[null,"C_RCV_WW_PR19PD010",{"$f":"Calc!$E$264","v":"Wholesale wastewater closing RCV at 31 March 2020 (from PR14 FD) at 2017-18 FYA CPIH deflated prices"},"£m","Price Review 2019",{"$f":"Calc!$F$264","v":3895.3425604702425}]
[null,"PR19QA_D0010_OUT_1","Date & Time for Model PR19D010 PR14 RCV adjustments","Text","Price Review 2019",{"$f":"CONCATENATE(\"[…]\", TEXT(NOW(),\"dd/mm/yyy hh:mm:ss\"))","v":"[…]17/09/2020 12:49:30"},{"$f":"CONCATENATE(\"[…]\", TEXT(NOW(),\"dd/mm/yyy hh:mm:ss\"))","v":"[…]17/09/2020 12:49:30"},{"$f":"CONCATENATE(\"[…]\", TEXT(NOW(),\"dd/mm/yyy hh:mm:ss\"))","v":"[…]17/09/2020 12:49:30"}]
[null,"PR19QA_D0010_OUT_2","Name & Path of Model PR19D010 PR14 RCV adjustments","Text","Price Review 2019",{"$f":"MID(CELL(\"filename\",F1),SEARCH(\"[\",CELL(\"filename\",F1))+1,SEARCH(\".\",CELL(\"filename\",F1))-1-SEARCH(\"[\",CELL(\"filename\",F1)))","v":"RCV adjustment feeder model_YKY_BYRun1"},{"$f":"MID(CELL(\"filename\",F1),SEARCH(\"[\",CELL(\"filename\",F1))+1,SEARCH(\".\",CELL(\"filename\",F1))-1-SEARCH(\"[\",CELL(\"filename\",F1)))","v":"RCV adjustment feeder model_YKY_BYRun1"},{"$f":"MID(CELL(\"filename\",F1),SEARCH(\"[\",CELL(\"filename\",F1))+1,SEARCH(\".\",CELL(\"filename\",F1))-1-SEARCH(\"[\",CELL(\"filename\",F1)))","v":"RCV adjustment feeder model_YKY_BYRun1"}]

{"sheet":"Cover","index":4,"n_rows":20,"n_cols":4,"rows_kept":20,"cut":false,"hidden":false,"merged":[[7,3,7,4]]}
[{"$f":" RIGHT(CELL(\"filename\", $A$1), LEN(CELL(\"filename\", $A$1)) - SEARCH(\"]\", CELL(\"filename\", $A$1)))","v":"Cover"}]
[]
[null,null,"Model name:","PR19 RCV adjustments feeder model"]
[null,null,"Version number:","01v"]
[null,null,"Filename:",{"$f":" \"PR19 RCV adjustments feeder model \" & D4 & \".xlsm\"","v":"PR19 RCV adjustments feeder model 01v.xlsm"}]
[null,null,"Date:","2020-08-24"]
[null,null,"Author:","Ofwat and F1F9 UK Ltd"]
[null,null,"Author contact information:","PR19@ofwat.gsi.gov.uk"]
[]
[]
[null,null,"Summary of model:","The model is designed to take the RCV adjustment outputs from the PR09 and PR14 reconciliations and convert them for use in the PR19 financial model in"]
[null,null,null,"line with Delivering Water 2020: PR19 methodology, chapter 12 (accounting for past delivery)."]
[]
[null,null,"Known limitations:","The model has been subject to internal Ofwat quality assurance. "]
[]
[null,null,"Feedback:","We would welcome feedback on the PR19 RCV adjustments feeder model. Please send any feedback to the following email address"]
[null,null,null,"PR19@ofwat.gsi.gov.uk"]
[]
[]
["End of sheet"]

{"sheet":"Change Log","index":5,"n_rows":19,"n_cols":6,"rows_kept":19,"cut":false,"hidden":false,"merged":[]}
["Change log"]
[]
[null,"#","Issue","Change","Sheet","Row"]
[]
["2017-12-01",1,"Company noted that the Ofwat feeder model incorrectly deflates prices from 2020 year end prices to 2017-18 financial year average prices by referencing the RPI March index value in the numerator.","Corrected calculation of the deflation factor to reference CPIH March 2020 index value.","Indexation",102]
["2017-12-01",2,"Companies noted differences in item labels between the Ofwat feeder model and the business plan tables ","Item labels have been aligned with the business plan tables","Calc\nSummary_Output"]
["2017-12-01",3,"Some business plan tables require RCV items in 2017-18 FYE (financial year end) CPIH deflated price base.  ","Add 2017-18 FYE CPIH deflation factor","Indexation",105]
["2017-12-01",4,"Some business plan tables require RCV items in 2017-18 FYE (financial year end) CPIH deflated price base.  ","Add the 2017-18 FYE CPIH deflated items to the Calc and Summary_Output sheet","Calc\nSummary_Output"]
["2018-06-01",5,"Line descriptions for the CIS RCV inflation correction items are not consistent with business plan tables.","Item labels have been aligned with the business plan tables App8 and App25.","Inputs\nCalc\nSummary_Output"]
["2018-06-01",6,"IN 18/09 Guidance for reporting operating leases in PR19 business plans.\nThe RCV adjustment calculated for each wholesale control in business plan table App33 flows to business plan table App8. The RCV adjustments feeder model has been updated to reflect the revisions to table App8.","Include the new IFRS16 related RCV adjustments in the calculation of the opening balances for the 2020 RCV RPI inflated and 2020 RCV CPIH inflated RCV.","Inputs\nIndexation\nCalc\nSummary_Output"]
["2018-06-01",7,"In response to a query a new business plan table has been created. The Ofwat feeder model has been updated to reflect the additional table Dmmy10.","Include the Dmmy10 RCV adjustment in the calculation of the opening balances for the dummy price control 2020 RCV RPI inflated and 2020 RCV CPIH inflated RCV.","Inputs\nCalc\nSummary_Output"]
["2018-06-01",8,"Change email address","Changed from water2020 mailbox to PR19 mailbox","Cover"]
["2018-07-01",9,"In response to a query the Ofwat feeder model has been updated to reflect additional block for the dummy control in table App9 and an additional line for the dummy control in table App8.","Include the additional RCV adjustments for the dummy control in the calculation of the opening balances for the dummy price control 2020 RCV RPI inflated and 2020 RCV CPIH inflated RCV.","Inputs\nCalc\nSummary_Output"]
["2019-01-01",11,"There is no facility to override F_Inputs values.","Include InpOverride and InpActive sheets with Inputs sheet linked to Inp Active.","InpOverride\nInpActive\nInputs"]
["2019-03-01",10,"More items required to be outputted from the model.","Add two items that express the 'Closing RCV at 31 March 2020 (from PR14 FD)' in 2017-18 FYA CPIH deflated price base.","Calc\nSummary_Output\nF_Outputs"]
["2019-07-04",12,"Mismatched item references for 'Dummy ~ Other adjustment to wholesale RCV at 2017-18 FYE CPIH deflated price base' and 'Dummy: NPV effect of 100% of proceeds from disposals of interest in land at 2017-18 FYE CPIH deflated price base.'","Manual change of item references in column A of the Calc sheet:\n\n'Dummy ~ Other adjustment to wholesale RCV at 2017-18 FYE CPIH deflated price base' changed from C_APP8009DMMY to C_APP8005DMMY.\n\n'Dummy: NPV effect of 100% of proceeds from disposals of interest in land at 2017-18 FYE CPIH deflated price base' changed from C_APP8005DMMY to C_APP8009DMMY.","Calc\nSummary_Output\nF_Outputs","378, 379 in Calc sheet\n\nRows 73, 74 in F_Output sheet"]
["2019-07-04",13,"Incorrect item references for 'Dummy: RCV adjustment from totex menu model' and 'Dummy ~ Other adjustment to wholesale RCV'","Formulae changed in column A to pick up correct rows from InpActive sheet","Inputs","123, 124"]
["2019-08-01",14,"The model treats the 'Other RCV adjustment' as inputs in 2017/18 year end RPI prices, however the source values from business plan table App8 are in 2017/18 year end CPIH prices.","The indexation treatment of the 'Other RCV adjustment' items has been aligned with the 2017-18 FYE CPIH deflated price base of the input values sourced from business plan table App8.","Calcs","Rows 39, 229, 397"]
["2020-08-01",15,"The model inputs on ODI payments require aligning with the blind year data table template.","ODI payment values on Inputs sheet are calculated as the sum of the annual _PD002 values for 2015-19 plus 2019-20 value from blind year table instead of the 'PR19 application' _PD002 value.","Inputs","Rows 88, 89, 107 and 122"]

{"sheet":"Map & Key","index":6,"n_rows":121,"n_cols":22,"rows_kept":121,"cut":false,"hidden":false,"merged":[]}
[{"$f":" RIGHT(CELL(\"filename\", $A$1), LEN(CELL(\"filename\", $A$1)) - SEARCH(\"]\", CELL(\"filename\", $A$1)))","v":"Map & Key"}]
[]
["GENERIC MODEL DESIGN"]
[]
[null,null,null,null,null,"ABOVE BONNET - USER INTERFACE"]
[]
[]
[null,null,null,null,null,null,null,"Inputs",null,null,null,null,null,null,null,"Output Summary"]
[]
[]
[]
[]
[null,null,null,null,null,"BELOW BONNET - CALCULATION ENGINE"]
[]
[]
[]
[]
[]
[null,null,null,null,null,null,null,"Input Transition",null,null,null,"Calculations",null,null,null,"Detailed Outputs"]
[]
[]
[]
[]
[]
[null,null,null,null,null,"Note: FAST strictly applicable below the bonnet"]
[]
[]
["MODEL MAP"]
[]
[null,null,null,null,null,"MODEL MAP"]
[]
[null,null,null,null,null,null,null,"INPUTS",null,null,null,"CALCULATIONS",null,null,null,null,null,null,null,null,null,"DOCUMENTATION"]
[]
[]
[]
[null,null,null,null,null,null,null,{"$f":"Inputs!$A$1","v":"Inputs"},null,null,null,{"$f":"Time!$A$1","v":"Time"},null,null,null,{"$f":"Summary_Output!$A$1","v":"Summary_Output"},null,null,null,null,null,{"$f":" $A$1","v":"Map & Key"}]
[null,null,null,null,null,null,null,"All the hardcoded inputs used in the model for calculation.",null,null,null,"The model timeline and flag calculations are done in this sheet.",null,null,null,"A summary of links of major output of this model.",null,null,null,null,null,"Sheet references and model flow; Sheet tabs colours, colour coding, abbreviations, range names are mentioned in this sheet."]
[]
[null,null,null,null,null,null,null,null,null,null,null,{"$f":"Indexation!$A$1","v":"Indexation"}]
[null,null,null,null,null,null,null,null,null,null,null,"All the indexation related calculations are done in this sheet."]
[]
[null,null,null,null,null,null,null,null,null,null,null,{"$f":"Calc!$A$1","v":"Calc"}]
[null,null,null,null,null,null,null,null,null,null,null,"All the price regulations related calculations are done in this sheet."]
[]
[]
[]
[]
["SHEET TABS"]
[]
[null,null,null,null,null,null,null,"Light Yellow",null,"Input sheets"]
[]
[null,null,null,null,null,null,null,"No colour (default Excel tab colour)",null,"Calculation and documentation sheets"]
[]
[null,null,null,null,null,null,null,"Pale Blue",null,"Key output sheets"]
[]
[null,null,null,null,null,null,null,"Turquoise",null,"Quality control sheets"]
[]
[null,null,null,null,null,null,null,"Yellow",null,"To be completed, temporary, restructured, or deleted"]
[]
[]
["COLOUR"]
[]
[null,"Font colour only"]
[null,null,null,null,null,null,null,"Blue font",null,"Imported from another sheet"]
[]
[null,null,null,null,null,null,null,"Red font ",null,"Exported to another sheet (except from Input sheets)"]
[]
[null,null,null,null,null,null,null,"Black font",null,"Within sheet link or calculation"]
[]
[null,"Font + shade combinations"]
[null,null,null,null,null,null,null,"Black font + Light Yellow shade",null,"Inputs"]
[]
[null,null,null,null,null,null,null,"Black font + Light Grey shade on entire row",null,"Within-worksheet counter-flow "]
[]
[null,null,null,null,null,null,null,"Blue font + Light Grey shade on entire row",null,"Between-worksheet counter-flow "]
[]
[null,null,null,null,null,null,null,"Empty Cell with Light Grey shade",null,"Empty cells being deliberately referenced"]
[]
[null,"Other"]
[null,null,null,null,null,null,null,"Black font + Pale Blue shade on entire row",null,"Section separator"]
[]
[null,null,null,null,null,null,null,"Light Turquoise shade",null,"Stored/dead/hard coded outputs"]
[]
[null,null,null,null,null,null,null,"Tan shade",null,"Pre-model time line actuals"]
[]
[null,null,null,null,null,null,null,"Yellow shade",null,"Work in progress / temporary"]
[]
[null,null,null,null,null,null,null,"Lime shade",null,"Values or logic to be reviewed"]
[]
[null,"Error checks & alerts"]
[null,null,null,null,null,null,null,"Green shade",null,"OK"]
[]
[null,null,null,null,null,null,null,"Red shade",null,"Error"]
[]
[null,null,null,null,null,null,null,"Gold shade",null,"Alert"]
[]
[]
["ABBREVIATIONS"]
[]
[null,null,null,null,null,null,null,"BR","Bio resources"]
[null,null,null,null,null,null,null,"CPIH","Consumer price index housing"]
[null,null,null,null,null,null,null,"RCV","Regulatory capital value"]
[null,null,null,null,null,null,null,"RPI","Retail price index"]
[null,null,null,null,null,null,null,"WR","Water resources"]
[null,null,null,null,null,null,null,"WN","Water network"]
[null,null,null,null,null,null,null,"WWN","Wastewater network"]
[]
[]
["NAMES"]
[]
[null,null,null,null,null,null,null,"NO NAME RANGES PRESENT IN THE MODEL"]
[]
[]
["LIST OF FUNCTIONS USED"]
[]
[null,null,null,null,null,null,null,"SUMPRODUCT",null,"Multiplies corresponding components in the given arrays, and returns the sum of those products."]
[null,null,null,null,null,null,null,"MATCH",null,"The MATCH function searches for a specified item in a range of cells, and then returns the relative position of that item in the range."]
[null,null,null,null,null,null,null,"INDEX",null,"Returns a value or the reference to a value from within a table or range, selected by the row and column number indexes"]
[]
[]
["End of sheet"]

{"sheet":"Inputs","index":7,"n_rows":140,"n_cols":21,"rows_kept":140,"cut":false,"hidden":false,"merged":[]}
[{"$f":" RIGHT(CELL(\"FILENAME\", $A$1), LEN(CELL(\"FILENAME\", $A$1)) - SEARCH(\"]\", CELL(\"FILENAME\", $A$1)))","v":"Inputs"}]
[null,null,null,null,{"$f":" Time!E$25","v":"Model period ending"},null,null,null,null,{"$f":" Time!J$25","v":"2013-03-31"},{"$f":" Time!K$25","v":"2014-03-31"},{"$f":" Time!L$25","v":"2015-03-31"},{"$f":" Time!M$25","v":"2016-03-31"},{"$f":" Time!N$25","v":"2017-03-31"},{"$f":" Time!O$25","v":"2018-03-31"},{"$f":" Time!P$25","v":"2019-03-31"},{"$f":" Time!Q$25","v":"2020-03-31"},{"$f":" Time!R$25","v":"2021-03-31"},{"$f":" Time!S$25","v":"2022-03-31"},{"$f":" Time!T$25","v":"2023-03-31"},{"$f":" Time!U$25","v":"2024-03-31"}]
[null,null,null,null,{"$f":" Time!E$80","v":"Timeline label"},null,null,null,null,{"$f":" Time!J$80","v":"Pre-Fcst"},{"$f":" Time!K$80","v":"Pre-Fcst"},{"$f":" Time!L$80","v":"Pre-Fcst"},{"$f":" Time!M$80","v":"Pre-Fcst"},{"$f":" Time!N$80","v":"Pre-Fcst"},{"$f":" Time!O$80","v":"Pre-Fcst"},{"$f":" Time!P$80","v":"Pre-Fcst"},{"$f":" Time!Q$80","v":"Pre-Fcst"},{"$f":" Time!R$80","v":"Forecast"},{"$f":" Time!S$80","v":"Forecast"},{"$f":" Time!T$80","v":"Forecast"},{"$f":" Time!U$80","v":"Forecast"}]
[null,null,null,null,{"$f":" Time!E$103","v":"Financial year ending"},null,null,null,null,{"$f":" Time!J$103","v":2013},{"$f":" Time!K$103","v":2014},{"$f":" Time!L$103","v":2015},{"$f":" Time!M$103","v":2016},{"$f":" Time!N$103","v":2017},{"$f":" Time!O$103","v":2018},{"$f":" Time!P$103","v":2019},{"$f":" Time!Q$103","v":2020},{"$f":" Time!R$103","v":2021},{"$f":" Time!S$103","v":2022},{"$f":" Time!T$103","v":2023},{"$f":" Time!U$103","v":2024}]
[{"$f":" IF(COUNTIF(A6:A140,\"< 0\") + COUNTIF(A6:A140,\">0\") <> 0, 1, 0)","v":0},null,null,"Input references",{"$f":" Time!E$10","v":"Model column counter"},"Constant","Unit","Total",null,{"$f":" Time!J$10","v":1},{"$f":" Time!K$10","v":2},{"$f":" Time!L$10","v":3},{"$f":" Time!M$10","v":4},{"$f":" Time!N$10","v":5},{"$f":" Time!O$10","v":6},{"$f":" Time!P$10","v":7},{"$f":" Time!Q$10","v":8},{"$f":" Time!R$10","v":9},{"$f":" Time!S$10","v":10},{"$f":" Time!T$10","v":11},{"$f":" Time!U$10","v":12}]
[null,null,null,null,"[Used in formula range - Do not delete]"]
[]
["A: TIME"]
[]
[null,"Timeline setup"]
[]
[null,null,"Timeline start dates"]
["C001",null,null,null,"1st model column start date","2012-04-01","date","Date should be the first date of the financial year"]
[]
[null,null,"Financial year inputs"]
["C002",null,null,null,"First modelling column financial year#",2013,"year #","Financial model start year"]
["C003",null,null,null,"Financial year end month number",3,"month #","Month of financial year end for financial model"]
[]
[null,null,"Timeline labels"]
["C004",null,null,null,"Pre - forecast period","Pre-Fcst","label"]
["C005",null,null,null,"Forecast period","Forecast","label"]
["C006",null,null,null,"Post - forecast period","Post-Fcst","label"]
[]
[null,"Project dates"]
[]
["C007",null,null,null,"Forecast start date","2020-04-01","date"]
["C008",null,null,null,"Forecast duration",5,"years"]
["C009",null,null,null,"Forecast duration (text)",{"$f":" YEAR(F26) & \"-\" & TEXT(DATE(YEAR(F26) + F27, 1, 1), \"yy\")","v":"2020-25"},"years #"]
[]
[]
["B: INDEXATION"]
[]
[null,"CPIH INDEXATION"]
[]
[{"$f":"InpActive!B7","v":"BB3905AL"},null,null,null,"Consumer Price Index for April",null,"index",null,null,{"$f":"InpActive!G7","v":95.9},{"$f":"InpActive!H7","v":98},{"$f":"InpActive!I7","v":99.6},{"$f":"InpActive!J7","v":99.9},{"$f":"InpActive!K7","v":100.6},{"$f":"InpActive!L7","v":103.2},{"$f":"InpActive!M7","v":105.5},{"$f":"InpActive!N7","v":107.6}]
[{"$f":"InpActive!B8","v":"BB3905MY"},null,null,null,"Consumer Price Index for May",null,"index",null,null,{"$f":"InpActive!G8","v":95.9},{"$f":"InpActive!H8","v":98.2},{"$f":"InpActive!I8","v":99.6},{"$f":"InpActive!J8","v":100.1},{"$f":"InpActive!K8","v":100.8},{"$f":"InpActive!L8","v":103.5},{"$f":"InpActive!M8","v":105.9},{"$f":"InpActive!N8","v":107.9}]
[{"$f":"InpActive!B9","v":"BB3905JN"},null,null,null,"Consumer Price Index for June",null,"index",null,null,{"$f":"InpActive!G9","v":95.6},{"$f":"InpActive!H9","v":98},{"$f":"InpActive!I9","v":99.8},{"$f":"InpActive!J9","v":100.1},{"$f":"InpActive!K9","v":101},{"$f":"InpActive!L9","v":103.5},{"$f":"InpActive!M9","v":105.9},{"$f":"InpActive!N9","v":107.9}]
[{"$f":"InpActive!B10","v":"BB3905JL"},null,null,null,"Consumer Price Index for July",null,"index",null,null,{"$f":"InpActive!G10","v":95.7},{"$f":"InpActive!H10","v":98},{"$f":"InpActive!I10","v":99.6},{"$f":"InpActive!J10","v":100},{"$f":"InpActive!K10","v":100.9},{"$f":"InpActive!L10","v":103.5},{"$f":"InpActive!M10","v":105.9},{"$f":"InpActive!N10","v":108}]
[{"$f":"InpActive!B11","v":"BB3905AT"},null,null,null,"Consumer Price Index for August",null,"index",null,null,{"$f":"InpActive!G11","v":96.1},{"$f":"InpActive!H11","v":98.4},{"$f":"InpActive!I11","v":99.9},{"$f":"InpActive!J11","v":100.3},{"$f":"InpActive!K11","v":101.2},{"$f":"InpActive!L11","v":104},{"$f":"InpActive!M11","v":106.5},{"$f":"InpActive!N11","v":108.3}]
[{"$f":"InpActive!B12","v":"BB3905SR"},null,null,null,"Consumer Price Index for September",null,"index",null,null,{"$f":"InpActive!G12","v":96.4},{"$f":"InpActive!H12","v":98.7},{"$f":"InpActive!I12","v":100},{"$f":"InpActive!J12","v":100.2},{"$f":"InpActive!K12","v":101.5},{"$f":"InpActive!L12","v":104.3},{"$f":"InpActive!M12","v":106.6},{"$f":"InpActive!N12","v":108.4}]
[{"$f":"InpActive!B13","v":"BB3905OR"},null,null,null,"Consumer Price Index for October",null,"index",null,null,{"$f":"InpActive!G13","v":96.8},{"$f":"InpActive!H13","v":98.8},{"$f":"InpActive!I13","v":100.1},{"$f":"InpActive!J13","v":100.3},{"$f":"InpActive!K13","v":101.6},{"$f":"InpActive!L13","v":104.4},{"$f":"InpActive!M13","v":106.7},{"$f":"InpActive!N13","v":108.3}]
[{"$f":"InpActive!B14","v":"BB3905NR"},null,null,null,"Consumer Price Index for November",null,"index",null,null,{"$f":"InpActive!G14","v":97},{"$f":"InpActive!H14","v":98.8},{"$f":"InpActive!I14","v":99.9},{"$f":"InpActive!J14","v":100.3},{"$f":"InpActive!K14","v":101.8},{"$f":"InpActive!L14","v":104.7},{"$f":"InpActive!M14","v":106.9},{"$f":"InpActive!N14","v":108.5}]
[{"$f":"InpActive!B15","v":"BB3905DR"},null,null,null,"Consumer Price Index for December",null,"index",null,null,{"$f":"InpActive!G15","v":97.3},{"$f":"InpActive!H15","v":99.2},{"$f":"InpActive!I15","v":99.9},{"$f":"InpActive!J15","v":100.4},{"$f":"InpActive!K15","v":102.2},{"$f":"InpActive!L15","v":105},{"$f":"InpActive!M15","v":107.1},{"$f":"InpActive!N15","v":108.5}]
[{"$f":"InpActive!B16","v":"BB3905JY"},null,null,null,"Consumer Price Index for January",null,"index",null,null,{"$f":"InpActive!G16","v":97},{"$f":"InpActive!H16","v":98.7},{"$f":"InpActive!I16","v":99.2},{"$f":"InpActive!J16","v":99.9},{"$f":"InpActive!K16","v":101.8},{"$f":"InpActive!L16","v":104.5},{"$f":"InpActive!M16","v":106.4},{"$f":"InpActive!N16","v":108.3}]
[{"$f":"InpActive!B17","v":"BB3905FY"},null,null,null,"Consumer Price Index for February",null,"index",null,null,{"$f":"InpActive!G17","v":97.5},{"$f":"InpActive!H17","v":99.1},{"$f":"InpActive!I17","v":99.5},{"$f":"InpActive!J17","v":100.1},{"$f":"InpActive!K17","v":102.4},{"$f":"InpActive!L17","v":104.9},{"$f":"InpActive!M17","v":106.8},{"$f":"InpActive!N17","v":108.6}]
[{"$f":"InpActive!B18","v":"BB3905MH"},null,null,null,"Consumer Price Index for March",null,"index",null,null,{"$f":"InpActive!G18","v":97.8},{"$f":"InpActive!H18","v":99.3},{"$f":"InpActive!I18","v":99.6},{"$f":"InpActive!J18","v":100.4},{"$f":"InpActive!K18","v":102.7},{"$f":"InpActive!L18","v":105.1},{"$f":"InpActive!M18","v":107},{"$f":"InpActive!N18","v":108.6}]
[]
[null,null,null,null,"CPIH: Assumed percentage increase for unpopulated monthly values",null,"%"]
[]
[null,"RPI INDEXATION"]
[]
[{"$f":"InpActive!B19","v":"BB3805AL"},null,null,null,"Retail Price Index for April",null,"index",null,null,{"$f":"InpActive!G19","v":242.5},{"$f":"InpActive!H19","v":249.5},{"$f":"InpActive!I19","v":255.7},{"$f":"InpActive!J19","v":258},{"$f":"InpActive!K19","v":261.39999999999998},{"$f":"InpActive!L19","v":270.60000000000002},{"$f":"InpActive!M19","v":279.7},{"$f":"InpActive!N19","v":288.2}]
[{"$f":"InpActive!B20","v":"BB3805MY"},null,null,null,"Retail Price Index for May",null,"index",null,null,{"$f":"InpActive!G20","v":242.4},{"$f":"InpActive!H20","v":250},{"$f":"InpActive!I20","v":255.9},{"$f":"InpActive!J20","v":258.5},{"$f":"InpActive!K20","v":262.10000000000002},{"$f":"InpActive!L20","v":271.7},{"$f":"InpActive!M20","v":280.7},{"$f":"InpActive!N20","v":289.2}]
[{"$f":"InpActive!B21","v":"BB3805JN"},null,null,null,"Retail Price Index for June",null,"index",null,null,{"$f":"InpActive!G21","v":241.8},{"$f":"InpActive!H21","v":249.7},{"$f":"InpActive!I21","v":256.3},{"$f":"InpActive!J21","v":258.89999999999998},{"$f":"InpActive!K21","v":263.10000000000002},{"$f":"InpActive!L21","v":272.3},{"$f":"InpActive!M21","v":281.5},{"$f":"InpActive!N21","v":289.60000000000002}]
[{"$f":"InpActive!B22","v":"BB3805JL"},null,null,null,"Retail Price Index for July",null,"index",null,null,{"$f":"InpActive!G22","v":242.1},{"$f":"InpActive!H22","v":249.7},{"$f":"InpActive!I22","v":256},{"$f":"InpActive!J22","v":258.60000000000002},{"$f":"InpActive!K22","v":263.39999999999998},{"$f":"InpActive!L22","v":272.89999999999998},{"$f":"InpActive!M22","v":281.7},{"$f":"InpActive!N22","v":289.5}]
[{"$f":"InpActive!B23","v":"BB3805AT"},null,null,null,"Retail Price Index for August",null,"index",null,null,{"$f":"InpActive!G23","v":243},{"$f":"InpActive!H23","v":251},{"$f":"InpActive!I23","v":257},{"$f":"InpActive!J23","v":259.8},{"$f":"InpActive!K23","v":264.39999999999998},{"$f":"InpActive!L23","v":274.7},{"$f":"InpActive!M23","v":284.2},{"$f":"InpActive!N23","v":291.7}]
[{"$f":"InpActive!B24","v":"BB3805SR"},null,null,null,"Retail Price Index for September",null,"index",null,null,{"$f":"InpActive!G24","v":244.2},{"$f":"InpActive!H24","v":251.9},{"$f":"InpActive!I24","v":257.60000000000002},{"$f":"InpActive!J24","v":259.60000000000002},{"$f":"InpActive!K24","v":264.89999999999998},{"$f":"InpActive!L24","v":275.10000000000002},{"$f":"InpActive!M24","v":284.10000000000002},{"$f":"InpActive!N24","v":291}]
[{"$f":"InpActive!B25","v":"BB3805OR"},null,null,null,"Retail Price Index for October",null,"index",null,null,{"$f":"InpActive!G25","v":245.6},{"$f":"InpActive!H25","v":251.9},{"$f":"InpActive!I25","v":257.7},{"$f":"InpActive!J25","v":259.5},{"$f":"InpActive!K25","v":264.8},{"$f":"InpActive!L25","v":275.3},{"$f":"InpActive!M25","v":284.5},{"$f":"InpActive!N25","v":290.39999999999998}]
[{"$f":"InpActive!B26","v":"BB3805NR"},null,null,null,"Retail Price Index for November",null,"index",null,null,{"$f":"InpActive!G26","v":245.6},{"$f":"InpActive!H26","v":252.1},{"$f":"InpActive!I26","v":257.10000000000002},{"$f":"InpActive!J26","v":259.8},{"$f":"InpActive!K26","v":265.5},{"$f":"InpActive!L26","v":275.8},{"$f":"InpActive!M26","v":284.60000000000002},{"$f":"InpActive!N26","v":291}]
[{"$f":"InpActive!B27","v":"BB3805DR"},null,null,null,"Retail Price Index for December",null,"index",null,null,{"$f":"InpActive!G27","v":246.8},{"$f":"InpActive!H27","v":253.4},{"$f":"InpActive!I27","v":257.5},{"$f":"InpActive!J27","v":260.60000000000002},{"$f":"InpActive!K27","v":267.10000000000002},{"$f":"InpActive!L27","v":278.10000000000002},{"$f":"InpActive!M27","v":285.60000000000002},{"$f":"InpActive!N27","v":291.89999999999998}]
[{"$f":"InpActive!B28","v":"BB3805JY"},null,null,null,"Retail Price Index for January",null,"index",null,null,{"$f":"InpActive!G28","v":245.8},{"$f":"InpActive!H28","v":252.6},{"$f":"InpActive!I28","v":255.4},{"$f":"InpActive!J28","v":258.8},{"$f":"InpActive!K28","v":265.5},{"$f":"InpActive!L28","v":276},{"$f":"InpActive!M28","v":283},{"$f":"InpActive!N28","v":290.60000000000002}]
[{"$f":"InpActive!B29","v":"BB3805FY"},null,null,null,"Retail Price Index for February",null,"index",null,null,{"$f":"InpActive!G29","v":247.6},{"$f":"InpActive!H29","v":254.2},{"$f":"InpActive!I29","v":256.7},{"$f":"InpActive!J29","v":260},{"$f":"InpActive!K29","v":268.39999999999998},{"$f":"InpActive!L29","v":278.10000000000002},{"$f":"InpActive!M29","v":285},{"$f":"InpActive!N29","v":292}]
[{"$f":"InpActive!B30","v":"BB3805MH"},null,null,null,"Retail Price Index for March",null,"index",null,null,{"$f":"InpActive!G30","v":248.7},{"$f":"InpActive!H30","v":254.8},{"$f":"InpActive!I30","v":257.10000000000002},{"$f":"InpActive!J30","v":261.10000000000002},{"$f":"InpActive!K30","v":269.3},{"$f":"InpActive!L30","v":278.3},{"$f":"InpActive!M30","v":285.10000000000002},{"$f":"InpActive!N30","v":292.60000000000002}]
[]
[null,null,null,null,"RPI: Assumed percentage increase for unpopulated monthly values",null,"%"]
[]
[null,"Inflation"]
[]
["C010",null,null,null,"Year reference for FYA base price 1",2013,"year #"]
["C011",null,null,null,"Year reference for FYA base price 2",2018,"year #"]
["C012",null,null,null,"Year reference for FYE base price",2018,"year #"]
["C013",null,null,null,"Year reference for FYE end price",2020,"year #"]
[]
[null,"Deflation"]
[]
["C014",null,null,null,"Year reference for FYE base price",2020,"year #"]
["C015",null,null,null,"Year reference for FYA end price",2018,"year #"]
["C016",null,null,null,"Year reference for FYE base price - IFRS 16 and Other",2018,"year #"]
[]
[]
["C: RCV INPUTS"]
[]
[null,"Water services"]
[]
[{"$f":"InpActive!B31","v":"APP8001W"},null,null,null,"Wholesale water closing RCV at 31 March 2020 (from PR14 FD)",{"$f":"InpActive!N31","v":2417.7536510444002},"£m","2012/13 FYA"]
[{"$f":"InpActive!B32","v":"C00572_L021"},null,null,null,"Water ~ Total Adjustment RCV carry forward to PR19",{"$f":"InpActive!P32","v":3.0289999999999999},"£m","2012/13 FYA"]
[{"$f":"InpActive!B33","v":"APP25001"},null,null,null,"Water ~ CIS RCV inflation correction",{"$f":"InpActive!P33","v":-40.01},"£m","2012/13 FYA"]
[{"$f":"InpActive!B36","v":"APP27029"},null,null,null,"Net performance payment / (penalty) applied to RCV for end of period ODI adjustments ~ Water resources",{"$f":"SUM(InpActive!J34:M34) + InpActive!N36","v":0},"£m","2012/13 FYA"]
[{"$f":"InpActive!B37","v":"APP27030"},null,null,null,"Net performance payment / (penalty) applied to RCV for end of period ODI adjustments ~ Water network plus",{"$f":"SUM(InpActive!J35:M35) + InpActive!N37","v":-14.44841160000426},"£m","2012/13 FYA"]
[{"$f":"InpActive!B38","v":"C_WS15025_PR19PD006"},null,null,null,"Water: RCV adjustment from totex menu model",{"$f":"InpActive!N38","v":45.031337631092399},"£m","2012/13 FYA"]
[{"$f":"InpActive!B39","v":"APP8009W"},null,null,null,"Water ~ Other adjustment to wholesale RCV",{"$f":"InpActive!N39","v":0},"£m","2017/18 FYE"]
[{"$f":"InpActive!B40","v":"C_A7010W_PR19PD003"},null,null,null,"Water ~ NPV effect of 50% of proceeds from disposals of interest in land",{"$f":"InpActive!N40","v":-1.45796223359861},"£m","2017/18 FYA"]
[]
[null,null,null,null,"% of RCV to index by RPI - water services",0.5,"%"]
[]
[{"$f":"InpActive!B41","v":"WS12019WR"},null,null,null,"Water resources % of total wholesale water RCV ~ 31 March 2020",{"$f":"InpActive!L41","v":0.20068334073328201},"%"]
[null,null,null,null,"Water network plus % of total wholesale water RCV ~ 31 March 2020",{"$f":"1-F96","v":0.79931665926671802},"%"]
[]
[{"$f":"InpActive!B42","v":"APP33021WR"},null,null,null,"Water resources IFRS16 RCV adjustment",{"$f":"InpActive!N42","v":0.36940565917755103},"£m","2017/18 FYE"]
[{"$f":"InpActive!B43","v":"APP33021WNP"},null,null,null,"Water network plus IFRS16 RCV adjustment",{"$f":"InpActive!N43","v":6.9351060561968101},"£m","2017/18 FYE"]
[]
[null,"Wastewater services"]
[]
[{"$f":"InpActive!B44","v":"APP8001WW"},null,null,null,"Wholesale wastewater closing RCV at 31 March 2020 (from PR14 FD)",{"$f":"InpActive!N44","v":3394.3262140232},"£m","2012/13 FYA"]
[{"$f":"InpActive!B45","v":"C00579_L021"},null,null,null,"Wastewater ~ Total Adjustment RCV carry forward to PR19",{"$f":"InpActive!P45","v":3.198},"£m","2012/13 FYA"]
[{"$f":"InpActive!B46","v":"APP25002"},null,null,null,"Wastewater ~ CIS RCV inflation correction",{"$f":"InpActive!P46","v":-61.174999999999997},"£m","2012/13 FYA"]
[{"$f":"InpActive!B48","v":"APP27031"},null,null,null,"Net performance payment / (penalty) applied to RCV for end of period ODI adjustments ~ Wastewater network plus",{"$f":"SUM(InpActive!J47:M47) + InpActive!N48","v":0},"£m","2012/13 FYA"]
[{"$f":"InpActive!B49","v":"C_WWS15020_PR19PD006"},null,null,null,"Wastewater: RCV adjustment from totex menu model",{"$f":"InpActive!N49","v":-46.719561123497101},"£m","2012/13 FYA"]
[{"$f":"InpActive!B50","v":"APP8009WW"},null,null,null,"Wastewater ~ Other adjustment to wholesale RCV",{"$f":"InpActive!N50","v":0},"£m","2017/18 FYE"]
[{"$f":"InpActive!B51","v":"C_A7010WW_PR19PD003"},null,null,null,"Wastewater ~ NPV effect of 50% of proceeds from disposals of interest in land",{"$f":"InpActive!N51","v":0.220560290916786},"£m","2017/18 FYA"]
[]
[null,null,null,null,"% of RCV to index by RPI - wastewater services",0.5,"%"]
[]
[{"$f":"InpActive!B52","v":"WWS12016BIO"},null,null,null,"Bioresources RCV (prior to midnight adjustments) 31 March 2020",{"$f":"InpActive!L52","v":290.68},"£m","2017/18 FYE"]
[]
[{"$f":"InpActive!B53","v":"APP33021BIO"},null,null,null,"Bioresources IFRS16 RCV adjustment",{"$f":"InpActive!N53","v":1.8020345851819299},"£m","2017/18 FYE"]
[{"$f":"InpActive!B54","v":"APP33021WWNP"},null,null,null,"Wastewater network plus IFRS16 RCV adjustment",{"$f":"InpActive!N54","v":6.18674066220564},"£m","2017/18 FYE"]
[]
[null,"Dummy RCV"]
[]
[{"$f":"InpActive!B55","v":"RCV1011DMMY"},null,null,null,"Dummy RCV (prior to midnight adjustments) 31 March 2020",{"$f":"InpActive!N55","v":0},"£m","2017/18 FYE"]
[{"$f":"InpActive!B57","v":"APP27032"},null,null,null,"Net performance payment / (penalty) applied to RCV for end of period ODI adjustments ~ Thames Tideway",{"$f":"SUM(InpActive!J56:M56) + InpActive!N57","v":0},"£m","2012/13 FYA"]
[{"$f":"InpActive!B58","v":"C_WWS15020_DMMY_PR19PD006"},null,null,null,"Dummy: RCV adjustment from totex menu model",{"$f":"InpActive!N58","v":0},"£m","2012/13 FYA"]
[{"$f":"InpActive!B59","v":"APP8009DMMY"},null,null,null,"Dummy ~ Other adjustment to wholesale RCV",{"$f":"InpActive!N59","v":0},"£m","2017/18 FYE"]
["Manual input if required",null,null,null,"Dummy: NPV effect of 100% of proceeds from disposals of interest in land",null,"£m","2017/18 FYA"]
[null,null,null,null,"% of RCV to index by RPI - dummy",0.5,"%"]
[]
[{"$f":"InpActive!B60","v":"APP33021DMMY"},null,null,null,"Dummy IFRS16 RCV adjustment",{"$f":"InpActive!N60","v":0},"£m","2017/18 FYE"]
[]
[]
["D: NON CHANGEABLE MODEL TECHNICAL INPUTS"]
[]
["C017",null,null,null,"Months per model period",12,"months"]
[]
["C018",null,null,null,"Months in a year",12,"months"]
[]
["C019",null,null,null,"Days in a year",365,"days"]
[]
[]
[null,null,null,null,"[Used in formula range - Do not delete]"]

{"sheet":"Time","index":8,"n_rows":103,"n_cols":21,"rows_kept":103,"cut":false,"hidden":false,"merged":[]}
[{"$f":" RIGHT(CELL(\"FILENAME\", $A$1), LEN(CELL(\"FILENAME\", $A$1)) - SEARCH(\"]\", CELL(\"FILENAME\", $A$1)))","v":"Time"}]
[null,null,null,null,{"$f":" Time!E$25","v":"Model period ending"},null,null,null,null,{"$f":" Time!J$25","v":"2013-03-31"},{"$f":" Time!K$25","v":"2014-03-31"},{"$f":" Time!L$25","v":"2015-03-31"},{"$f":" Time!M$25","v":"2016-03-31"},{"$f":" Time!N$25","v":"2017-03-31"},{"$f":" Time!O$25","v":"2018-03-31"},{"$f":" Time!P$25","v":"2019-03-31"},{"$f":" Time!Q$25","v":"2020-03-31"},{"$f":" Time!R$25","v":"2021-03-31"},{"$f":" Time!S$25","v":"2022-03-31"},{"$f":" Time!T$25","v":"2023-03-31"},{"$f":" Time!U$25","v":"2024-03-31"}]
[null,null,null,null,{"$f":" Time!E$80","v":"Timeline label"},null,null,null,null,{"$f":" Time!J$80","v":"Pre-Fcst"},{"$f":" Time!K$80","v":"Pre-Fcst"},{"$f":" Time!L$80","v":"Pre-Fcst"},{"$f":" Time!M$80","v":"Pre-Fcst"},{"$f":" Time!N$80","v":"Pre-Fcst"},{"$f":" Time!O$80","v":"Pre-Fcst"},{"$f":" Time!P$80","v":"Pre-Fcst"},{"$f":" Time!Q$80","v":"Pre-Fcst"},{"$f":" Time!R$80","v":"Forecast"},{"$f":" Time!S$80","v":"Forecast"},{"$f":" Time!T$80","v":"Forecast"},{"$f":" Time!U$80","v":"Forecast"}]
[null,null,null,null,{"$f":" Time!E$103","v":"Financial year ending"},null,null,null,null,{"$f":" Time!J$103","v":2013},{"$f":" Time!K$103","v":2014},{"$f":" Time!L$103","v":2015},{"$f":" Time!M$103","v":2016},{"$f":" Time!N$103","v":2017},{"$f":" Time!O$103","v":2018},{"$f":" Time!P$103","v":2019},{"$f":" Time!Q$103","v":2020},{"$f":" Time!R$103","v":2021},{"$f":" Time!S$103","v":2022},{"$f":" Time!T$103","v":2023},{"$f":" Time!U$103","v":2024}]
[null,null,null,null,{"$f":" Time!E$10","v":"Model column counter"},"Constant","Unit","Total",null,{"$f":" Time!J$10","v":1},{"$f":" Time!K$10","v":2},{"$f":" Time!L$10","v":3},{"$f":" Time!M$10","v":4},{"$f":" Time!N$10","v":5},{"$f":" Time!O$10","v":6},{"$f":" Time!P$10","v":7},{"$f":" Time!Q$10","v":8},{"$f":" Time!R$10","v":9},{"$f":" Time!S$10","v":10},{"$f":" Time!T$10","v":11},{"$f":" Time!U$10","v":12}]
[]
["MODEL PERIOD"]
[]
[null,"Model column counter "]
[null,null,null,null,"Model column counter",null,"counter",null,null,{"$f":" I10 + 1","v":1},2,3,4,5,6,7,8,9,{"$f":" R10 + 1","v":10},{"$f":" S10 + 1","v":11},{"$f":" T10 + 1","v":12}]
[null,null,null,null,"Model column total",{"$f":" MAX(J10:U10)","v":12},"columns"]
[]
[null,null,null,null,{"$f":" E$10","v":"Model column counter"},0,"counter",0,0,1,2,3,4,5,6,7,8,9,10,11,12]
[null,null,null,null,"1st model column flag",null,"flag",{"$f":" SUM(J14:U14)","v":1},null,{"$f":" IF(J13 = 1, 1, 0)","v":1},0,0,0,0,0,0,0,0,{"$f":" IF(S13 = 1, 1, 0)","v":0},{"$f":" IF(T13 = 1, 1, 0)","v":0},{"$f":" IF(U13 = 1, 1, 0)","v":0}]
[]
[null,"Model period beginning"]
[null,null,null,null,{"$f":" Inputs!E$13","v":"1st model column start date"},{"$f":" Inputs!F$13","v":"2012-04-01"},{"$f":" Inputs!G$13","v":"date"}]
[null,null,null,null,{"$f":" Inputs!E$133","v":"Months per model period"},{"$f":" Inputs!F$133","v":12},{"$f":" Inputs!G$133","v":"months"}]
[null,null,null,null,{"$f":" E$14","v":"1st model column flag"},0,"flag",1,0,1,0,0,0,0,0,0,0,0,0,0,0]
[null,null,null,null,"Model period beginning",null,"date",null,null,{"$f":" IF(J19 = 1, $F17, DATE(YEAR(I20), MONTH(I20) + $F18, DAY(1)))","v":"2012-04-01"},"2013-04-01","2014-04-01","2015-04-01","2016-04-01","2017-04-01","2018-04-01","2019-04-01","2020-04-01",{"$f":" IF(S19 = 1, $F17, DATE(YEAR(R20), MONTH(R20) + $F18, DAY(1)))","v":"2021-04-01"},{"$f":" IF(T19 = 1, $F17, DATE(YEAR(S20), MONTH(S20) + $F18, DAY(1)))","v":"2022-04-01"},{"$f":" IF(U19 = 1, $F17, DATE(YEAR(T20), MONTH(T20) + $F18, DAY(1)))","v":"2023-04-01"}]
[]
[null,"Model period ending"]
[null,null,null,null,{"$f":" Inputs!E$133","v":"Months per model period"},{"$f":" Inputs!F$133","v":12},{"$f":" Inputs!G$133","v":"months"}]
[null,null,null,null,{"$f":" E$20","v":"Model period beginning"},"00:00:00","date","00:00:00","00:00:00","2012-04-01","2013-04-01","2014-04-01","2015-04-01","2016-04-01","2017-04-01","2018-04-01","2019-04-01","2020-04-01","2021-04-01","2022-04-01","2023-04-01"]
[null,null,null,null,"Model period ending",null,"date",null,null,{"$f":" DATE(YEAR(J24), MONTH(J24) + $F23, DAY(J24) - 1)","v":"2013-03-31"},"2014-03-31","2015-03-31","2016-03-31","2017-03-31","2018-03-31","2019-03-31","2020-03-31","2021-03-31",{"$f":" DATE(YEAR(S24), MONTH(S24) + $F23, DAY(S24) - 1)","v":"2022-03-31"},{"$f":" DATE(YEAR(T24), MONTH(T24) + $F23, DAY(T24) - 1)","v":"2023-03-31"},{"$f":" DATE(YEAR(U24), MONTH(U24) + $F23, DAY(U24) - 1)","v":"2024-03-31"}]
[]
[]
["FORECAST PERIOD"]
[]
[null,"Forecast start period flag"]
[null,null,null,null,{"$f":" Inputs!E$26","v":"Forecast start date"},{"$f":" Inputs!F$26","v":"2020-04-01"},{"$f":" Inputs!G$26","v":"date"}]
[null,null,null,null,{"$f":" E$20","v":"Model period beginning"},"00:00:00","date","00:00:00","00:00:00","2012-04-01","2013-04-01","2014-04-01","2015-04-01","2016-04-01","2017-04-01","2018-04-01","2019-04-01","2020-04-01","2021-04-01","2022-04-01","2023-04-01"]
[null,null,null,null,{"$f":" E$25","v":"Model period ending"},"00:00:00","date","00:00:00","00:00:00","2013-03-31","2014-03-31","2015-03-31","2016-03-31","2017-03-31","2018-03-31","2019-03-31","2020-03-31","2021-03-31","2022-03-31","2023-03-31","2024-03-31"]
[null,null,null,null,"Forecast start period flag",null,"flag",{"$f":" SUM(J34:U34)","v":1},null,{"$f":" IF(AND($F31 >= J32, $F31 <= J33), 1, 0)","v":0},{"$f":" IF(AND($F31 >= K32, $F31 <= K33), 1, 0)","v":0},0,0,0,0,0,0,1,{"$f":" IF(AND($F31 >= S32, $F31 <= S33), 1, 0)","v":0},{"$f":" IF(AND($F31 >= T32, $F31 <= T33), 1, 0)","v":0},{"$f":" IF(AND($F31 >= U32, $F31 <= U33), 1, 0)","v":0}]
[]
[null,"Forecast end period flag"]
[null,null,null,null,{"$f":" Inputs!E$26","v":"Forecast start date"},{"$f":" Inputs!F$26","v":"2020-04-01"},{"$f":" Inputs!G$26","v":"date"}]
[null,null,null,null,{"$f":" Inputs!E$27","v":"Forecast duration"},{"$f":" Inputs!F$27","v":5},{"$f":" Inputs!G$27","v":"years"}]
[null,null,null,null,"Forecast end date",{"$f":" DATE(YEAR(F37) + F38, MONTH(F37), DAY(F37) - 1)","v":"2025-03-31"},"date"]
[]
[null,null,null,null,{"$f":" E$39","v":"Forecast end date"},{"$f":" F$39","v":"2025-03-31"},{"$f":" G$39","v":"date"}]
[null,null,null,null,{"$f":" E$20","v":"Model period beginning"},"00:00:00","date","00:00:00","00:00:00","2012-04-01","2013-04-01","2014-04-01","2015-04-01","2016-04-01","2017-04-01","2018-04-01","2019-04-01","2020-04-01","2021-04-01","2022-04-01","2023-04-01"]
[null,null,null,null,{"$f":" E$25","v":"Model period ending"},"00:00:00","date","00:00:00","00:00:00","2013-03-31","2014-03-31","2015-03-31","2016-03-31","2017-03-31","2018-03-31","2019-03-31","2020-03-31","2021-03-31","2022-03-31","2023-03-31","2024-03-31"]
[null,null,null,null,"Forecast end period flag",null,"flag",{"$f":" SUM(J44:U44)","v":0},null,{"$f":" IF(AND($F41 >= J42, $F41 <= J43), 1, 0)","v":0},0,0,0,0,0,0,0,0,0,0,0]
[]
[null,"Forecast period flag"]
[null,null,null,null,{"$f":" E$34","v":"Forecast start period flag"},{"$f":" F$34","v":0},"flag",1,0,0,0,0,0,0,0,0,0,1,0,0,0]
[null,null,null,null,{"$f":" E$44","v":"Forecast end period flag"},{"$f":" F$44","v":0},"flag",0,0,0,0,0,0,0,0,0,0,0,0,0,0]
[null,null,null,null,"Forecast period flag",null,"flag",{"$f":" SUM(J49:U49)","v":4},null,{"$f":" J47 + I49 - I48","v":0},{"$f":" K47 + J49 - J48","v":0},0,0,0,0,0,0,1,{"$f":" S47 + R49 - R48","v":1},{"$f":" T47 + S49 - S48","v":1},{"$f":" U47 + T49 - T48","v":1}]
[null,null,null,null,"Total number of forecast periods ",{"$f":" SUM(J49:U49)","v":4},"periods"]
[]
[null,"Pre-forecast period flag"]
[null,null,null,null,{"$f":" E$14","v":"1st model column flag"},{"$f":" F$14","v":0},"flag",1,0,1,0,0,0,0,0,0,0,0,0,0,0]
[null,null,null,null,{"$f":" E$34","v":"Forecast start period flag"},{"$f":" F$34","v":0},"flag",1,0,0,0,0,0,0,0,0,0,1,0,0,0]
[null,null,null,null,"Pre-forecast period flag",null,"flag",{"$f":" SUM(J55:U55)","v":8},null,{"$f":" J53 + I55 - J54","v":1},{"$f":" K53 + J55 - K54","v":1},1,1,1,1,1,1,0,{"$f":" S53 + R55 - S54","v":0},{"$f":" T53 + S55 - T54","v":0},{"$f":" U53 + T55 - U54","v":0}]
[null,null,null,null,"Pre-forecast period flag - total",{"$f":" SUM(J55:U55)","v":8},"periods"]
[]
[null,"First post-forecast period flag"]
[null,null,null,null,{"$f":" E$44","v":"Forecast end period flag"},{"$f":" F$44","v":0},"flag",0,0,0,0,0,0,0,0,0,0,0,0,0,0]
[null,null,null,null,"First post-forecast period flag",null,"flag",{"$f":" SUM(J60:U60)","v":0},null,{"$f":" I59","v":0},{"$f":" J59","v":0},0,0,0,0,0,0,0,{"$f":" R59","v":0},{"$f":" S59","v":0},{"$f":" T59","v":0}]
[]
[null,"Post-forecast period flag"]
[null,null,null,null,{"$f":" E$60","v":"First post-forecast period flag"},0,"flag",0,0,0,0,0,0,0,0,0,0,0,0,0,0]
[null,null,null,null,"Post-forecast period flag",null,"flag",{"$f":" SUM(J64:U64)","v":0},null,{"$f":" J63 + I64","v":0},{"$f":" K63 + J64","v":0},0,0,0,0,0,0,0,{"$f":" S63 + R64","v":0},{"$f":" T63 + S64","v":0},{"$f":" U63 + T64","v":0}]
[null,null,null,null,"Post-forecast period - total",{"$f":" SUM(J64:U64)","v":0},"periods"]
[]
["MODEL TIMELINE"]
[]
[]
[null,"Timeline label"]
[null,null,null,null,{"$f":" E$14","v":"1st model column flag"},0,"flag",1,0,1,0,0,0,0,0,0,0,0,0,0,0]
[null,null,null,null,{"$f":" E$34","v":"Forecast start period flag"},{"$f":" F$34","v":0},"flag",1,0,0,0,0,0,0,0,0,0,1,0,0,0]
[null,null,null,null,{"$f":" E$60","v":"First post-forecast period flag"},0,"flag",0,0,0,0,0,0,0,0,0,0,0,0,0,0]
[null,null,null,null,"Timeline label counter",null,"counter",null,null,{"$f":" I74 + SUM(J71:J73)","v":1},1,1,1,1,1,1,1,2,{"$f":" R74 + SUM(S71:S73)","v":2},{"$f":" S74 + SUM(T71:T73)","v":2},{"$f":" T74 + SUM(U71:U73)","v":2}]
[]
[null,null,null,null,{"$f":" Inputs!E$20","v":"Pre - forecast period"},{"$f":" Inputs!F$20","v":"Pre-Fcst"},{"$f":" Inputs!G$20","v":"label"}]
[null,null,null,null,{"$f":" Inputs!E$21","v":"Forecast period"},{"$f":" Inputs!F$21","v":"Forecast"},{"$f":" Inputs!G$21","v":"label"}]
[null,null,null,null,{"$f":" Inputs!E$22","v":"Post - forecast period"},{"$f":" Inputs!F$22","v":"Post-Fcst"},{"$f":" Inputs!G$22","v":"label"}]
[null,null,null,null,{"$f":" E$74","v":"Timeline label counter"},0,"counter",0,0,1,1,1,1,1,1,1,1,2,2,2,2]
[null,null,null,null,"Timeline label",null,"label",null,null,{"$f":" INDEX($F76:$F78, J79)","v":"Pre-Fcst"},"Pre-Fcst","Pre-Fcst","Pre-Fcst","Pre-Fcst","Pre-Fcst","Pre-Fcst","Pre-Fcst","Forecast",{"$f":" INDEX($F76:$F78, S79)","v":"Forecast"},{"$f":" INDEX($F76:$F78, T79)","v":"Forecast"},{"$f":" INDEX($F76:$F78, U79)","v":"Forecast"}]
[]
[null,"Modelling period check"]
[null,null,null,null,{"$f":" E$55","v":"Pre-forecast period flag"},{"$f":" F$55","v":0},"flag",8,0,1,1,1,1,1,1,1,1,0,0,0,0]
[null,null,null,null,{"$f":" E$49","v":"Forecast period flag"},{"$f":" F$49","v":0},"flag",4,0,0,0,0,0,0,0,0,0,1,1,1,1]
[null,null,null,null,{"$f":" E$64","v":"Post-forecast period flag"},0,"flag",0,0,0,0,0,0,0,0,0,0,0,0,0,0]
[null,null,null,null,"No. of overlapping in flags",null,"#",{"$f":" SUM(J86:U86)","v":0},null,{"$f":" MAX(0, SUM(J83:J85) - 1)","v":0},0,0,0,0,0,0,0,0,{"$f":" MAX(0, SUM(S83:S85) - 1)","v":0},{"$f":" MAX(0, SUM(T83:T85) - 1)","v":0},{"$f":" MAX(0, SUM(U83:U85) - 1)","v":0}]
[null,null,null,null,"Overlapping in periods - total",{"$f":" SUM(J86:U86)","v":0},"periods"]
[]
[null,null,null,null,{"$f":" E$11","v":"Model column total"},{"$f":" F$11","v":12},{"$f":" G$11","v":"columns"}]
[null,null,null,null,{"$f":" E$87","v":"Overlapping in periods - total"},{"$f":" F$87","v":0},{"$f":" G$87","v":"periods"}]
[null,null,null,null,{"$f":" E$56","v":"Pre-forecast period flag - total"},{"$f":" F$56","v":8},{"$f":" G$56","v":"periods"}]
[null,null,null,null,{"$f":" E$50","v":"Total number of forecast periods "},{"$f":" F$50","v":4},{"$f":" G$50","v":"periods"}]
[null,null,null,null,{"$f":" E$65","v":"Post-forecast period - total"},{"$f":" F$65","v":0},{"$f":" G$65","v":"periods"}]
[null,null,null,null,"Modelling period check",{"$f":" IF(SUM(F89:F90) - SUM(F91:F93) <> 0, 1, 0)","v":0},"check"]
[]
[]
["FINANCIAL YEAR"]
[]
[null,null,null,null,{"$f":" Inputs!E$16","v":"First modelling column financial year#"},{"$f":" Inputs!F$16","v":2013},{"$f":" Inputs!G$16","v":"year #"}]
[null,null,null,null,{"$f":" Inputs!E$17","v":"Financial year end month number"},{"$f":" Inputs!F$17","v":3},{"$f":" Inputs!G$17","v":"month #"}]
[null,null,null,null,{"$f":" E$25","v":"Model period ending"},"00:00:00","date","00:00:00","00:00:00","2013-03-31","2014-03-31","2015-03-31","2016-03-31","2017-03-31","2018-03-31","2019-03-31","2020-03-31","2021-03-31","2022-03-31","2023-03-31","2024-03-31"]
[null,null,null,null,{"$f":" E$14","v":"1st model column flag"},0,"flag",1,0,1,0,0,0,0,0,0,0,0,0,0,0]
[null,null,null,null,"Financial year ending",null,"year #",null,null,{"$f":" IF(J102 = 1, $F99, IF(J101 > (DATE(I103, $F100 + 1, 1) - 1), I103 + 1, I103))","v":2013},2014,2015,2016,2017,2018,2019,2020,2021,{"$f":" IF(S102 = 1, $F99, IF(S101 > (DATE(R103, $F100 + 1, 1) - 1), R103 + 1, R103))","v":2022},{"$f":" IF(T102 = 1, $F99, IF(T101 > (DATE(S103, $F100 + 1, 1) - 1), S103 + 1, S103))","v":2023},{"$f":" IF(U102 = 1, $F99, IF(U101 > (DATE(T103, $F100 + 1, 1) - 1), T103 + 1, T103))","v":2024}]

{"sheet":"Indexation","index":9,"n_rows":107,"n_cols":21,"rows_kept":107,"cut":false,"hidden":false,"merged":[]}
[{"$f":" RIGHT(CELL(\"filename\", $A$1), LEN(CELL(\"filename\", $A$1)) - SEARCH(\"]\", CELL(\"filename\", $A$1)))","v":"Indexation"}]
[null,null,null,null,{"$f":" Time!E$25","v":"Model period ending"},null,null,null,null,{"$f":" Time!J$25","v":"2013-03-31"},{"$f":" Time!K$25","v":"2014-03-31"},{"$f":" Time!L$25","v":"2015-03-31"},{"$f":" Time!M$25","v":"2016-03-31"},{"$f":" Time!N$25","v":"2017-03-31"},{"$f":" Time!O$25","v":"2018-03-31"},{"$f":" Time!P$25","v":"2019-03-31"},{"$f":" Time!Q$25","v":"2020-03-31"},{"$f":" Time!R$25","v":"2021-03-31"},{"$f":" Time!S$25","v":"2022-03-31"},{"$f":" Time!T$25","v":"2023-03-31"},{"$f":" Time!U$25","v":"2024-03-31"}]
[null,null,null,null,{"$f":" Time!E$80","v":"Timeline label"},null,null,null,null,{"$f":" Time!J$80","v":"Pre-Fcst"},{"$f":" Time!K$80","v":"Pre-Fcst"},{"$f":" Time!L$80","v":"Pre-Fcst"},{"$f":" Time!M$80","v":"Pre-Fcst"},{"$f":" Time!N$80","v":"Pre-Fcst"},{"$f":" Time!O$80","v":"Pre-Fcst"},{"$f":" Time!P$80","v":"Pre-Fcst"},{"$f":" Time!Q$80","v":"Pre-Fcst"},{"$f":" Time!R$80","v":"Forecast"},{"$f":" Time!S$80","v":"Forecast"},{"$f":" Time!T$80","v":"Forecast"},{"$f":" Time!U$80","v":"Forecast"}]
[null,null,null,null,{"$f":" Time!E$103","v":"Financial year ending"},null,null,null,null,{"$f":" Time!J$103","v":2013},{"$f":" Time!K$103","v":2014},{"$f":" Time!L$103","v":2015},{"$f":" Time!M$103","v":2016},{"$f":" Time!N$103","v":2017},{"$f":" Time!O$103","v":2018},{"$f":" Time!P$103","v":2019},{"$f":" Time!Q$103","v":2020},{"$f":" Time!R$103","v":2021},{"$f":" Time!S$103","v":2022},{"$f":" Time!T$103","v":2023},{"$f":" Time!U$103","v":2024}]
[null,null,null,null,{"$f":" Time!E$10","v":"Model column counter"},"Constant","Unit","Total",null,{"$f":" Time!J$10","v":1},{"$f":" Time!K$10","v":2},{"$f":" Time!L$10","v":3},{"$f":" Time!M$10","v":4},{"$f":" Time!N$10","v":5},{"$f":" Time!O$10","v":6},{"$f":" Time!P$10","v":7},{"$f":" Time!Q$10","v":8},{"$f":" Time!R$10","v":9},{"$f":" Time!S$10","v":10},{"$f":" Time!T$10","v":11},{"$f":" Time!U$10","v":12}]
[]
["CPIH INDEXATION"]
[]
[null,"CPIH: Index value series"]
[null,null,null,null,{"$f":" Inputs!E$35","v":"Consumer Price Index for April"},{"$f":" Inputs!F$35","v":0},{"$f":" Inputs!G$35","v":"index"},{"$f":" Inputs!H$35","v":0},{"$f":" Inputs!I$35","v":0},{"$f":" Inputs!J$35","v":95.9},{"$f":" Inputs!K$35","v":98},{"$f":" Inputs!L$35","v":99.6},{"$f":" Inputs!M$35","v":99.9},{"$f":" Inputs!N$35","v":100.6},{"$f":" Inputs!O$35","v":103.2},{"$f":" Inputs!P$35","v":105.5},{"$f":" Inputs!Q$35","v":107.6},{"$f":" Inputs!R$35","v":0},{"$f":" Inputs!S$35","v":0},{"$f":" Inputs!T$35","v":0},{"$f":" Inputs!U$35","v":0}]
[null,null,null,null,{"$f":" Inputs!E$36","v":"Consumer Price Index for May"},{"$f":" Inputs!F$36","v":0},{"$f":" Inputs!G$36","v":"index"},{"$f":" Inputs!H$36","v":0},{"$f":" Inputs!I$36","v":0},{"$f":" Inputs!J$36","v":95.9},{"$f":" Inputs!K$36","v":98.2},{"$f":" Inputs!L$36","v":99.6},{"$f":" Inputs!M$36","v":100.1},{"$f":" Inputs!N$36","v":100.8},{"$f":" Inputs!O$36","v":103.5},{"$f":" Inputs!P$36","v":105.9},{"$f":" Inputs!Q$36","v":107.9},{"$f":" Inputs!R$36","v":0},{"$f":" Inputs!S$36","v":0},{"$f":" Inputs!T$36","v":0},{"$f":" Inputs!U$36","v":0}]
[null,null,null,null,{"$f":" Inputs!E$37","v":"Consumer Price Index for June"},{"$f":" Inputs!F$37","v":0},{"$f":" Inputs!G$37","v":"index"},{"$f":" Inputs!H$37","v":0},{"$f":" Inputs!I$37","v":0},{"$f":" Inputs!J$37","v":95.6},{"$f":" Inputs!K$37","v":98},{"$f":" Inputs!L$37","v":99.8},{"$f":" Inputs!M$37","v":100.1},{"$f":" Inputs!N$37","v":101},{"$f":" Inputs!O$37","v":103.5},{"$f":" Inputs!P$37","v":105.9},{"$f":" Inputs!Q$37","v":107.9},{"$f":" Inputs!R$37","v":0},{"$f":" Inputs!S$37","v":0},{"$f":" Inputs!T$37","v":0},{"$f":" Inputs!U$37","v":0}]
[null,null,null,null,{"$f":" Inputs!E$38","v":"Consumer Price Index for July"},{"$f":" Inputs!F$38","v":0},{"$f":" Inputs!G$38","v":"index"},{"$f":" Inputs!H$38","v":0},{"$f":" Inputs!I$38","v":0},{"$f":" Inputs!J$38","v":95.7},{"$f":" Inputs!K$38","v":98},{"$f":" Inputs!L$38","v":99.6},{"$f":" Inputs!M$38","v":100},{"$f":" Inputs!N$38","v":100.9},{"$f":" Inputs!O$38","v":103.5},{"$f":" Inputs!P$38","v":105.9},{"$f":" Inputs!Q$38","v":108},{"$f":" Inputs!R$38","v":0},{"$f":" Inputs!S$38","v":0},{"$f":" Inputs!T$38","v":0},{"$f":" Inputs!U$38","v":0}]
[null,null,null,null,{"$f":" Inputs!E$39","v":"Consumer Price Index for August"},{"$f":" Inputs!F$39","v":0},{"$f":" Inputs!G$39","v":"index"},{"$f":" Inputs!H$39","v":0},{"$f":" Inputs!I$39","v":0},{"$f":" Inputs!J$39","v":96.1},{"$f":" Inputs!K$39","v":98.4},{"$f":" Inputs!L$39","v":99.9},{"$f":" Inputs!M$39","v":100.3},{"$f":" Inputs!N$39","v":101.2},{"$f":" Inputs!O$39","v":104},{"$f":" Inputs!P$39","v":106.5},{"$f":" Inputs!Q$39","v":108.3},{"$f":" Inputs!R$39","v":0},{"$f":" Inputs!S$39","v":0},{"$f":" Inputs!T$39","v":0},{"$f":" Inputs!U$39","v":0}]
[null,null,null,null,{"$f":" Inputs!E$40","v":"Consumer Price Index for September"},{"$f":" Inputs!F$40","v":0},{"$f":" Inputs!G$40","v":"index"},{"$f":" Inputs!H$40","v":0},{"$f":" Inputs!I$40","v":0},{"$f":" Inputs!J$40","v":96.4},{"$f":" Inputs!K$40","v":98.7},{"$f":" Inputs!L$40","v":100},{"$f":" Inputs!M$40","v":100.2},{"$f":" Inputs!N$40","v":101.5},{"$f":" Inputs!O$40","v":104.3},{"$f":" Inputs!P$40","v":106.6},{"$f":" Inputs!Q$40","v":108.4},{"$f":" Inputs!R$40","v":0},{"$f":" Inputs!S$40","v":0},{"$f":" Inputs!T$40","v":0},{"$f":" Inputs!U$40","v":0}]
[null,null,null,null,{"$f":" Inputs!E$41","v":"Consumer Price Index for October"},{"$f":" Inputs!F$41","v":0},{"$f":" Inputs!G$41","v":"index"},{"$f":" Inputs!H$41","v":0},{"$f":" Inputs!I$41","v":0},{"$f":" Inputs!J$41","v":96.8},{"$f":" Inputs!K$41","v":98.8},{"$f":" Inputs!L$41","v":100.1},{"$f":" Inputs!M$41","v":100.3},{"$f":" Inputs!N$41","v":101.6},{"$f":" Inputs!O$41","v":104.4},{"$f":" Inputs!P$41","v":106.7},{"$f":" Inputs!Q$41","v":108.3},{"$f":" Inputs!R$41","v":0},{"$f":" Inputs!S$41","v":0},{"$f":" Inputs!T$41","v":0},{"$f":" Inputs!U$41","v":0}]
[null,null,null,null,{"$f":" Inputs!E$42","v":"Consumer Price Index for November"},{"$f":" Inputs!F$42","v":0},{"$f":" Inputs!G$42","v":"index"},{"$f":" Inputs!H$42","v":0},{"$f":" Inputs!I$42","v":0},{"$f":" Inputs!J$42","v":97},{"$f":" Inputs!K$42","v":98.8},{"$f":" Inputs!L$42","v":99.9},{"$f":" Inputs!M$42","v":100.3},{"$f":" Inputs!N$42","v":101.8},{"$f":" Inputs!O$42","v":104.7},{"$f":" Inputs!P$42","v":106.9},{"$f":" Inputs!Q$42","v":108.5},{"$f":" Inputs!R$42","v":0},{"$f":" Inputs!S$42","v":0},{"$f":" Inputs!T$42","v":0},{"$f":" Inputs!U$42","v":0}]
[null,null,null,null,{"$f":" Inputs!E$43","v":"Consumer Price Index for December"},{"$f":" Inputs!F$43","v":0},{"$f":" Inputs!G$43","v":"index"},{"$f":" Inputs!H$43","v":0},{"$f":" Inputs!I$43","v":0},{"$f":" Inputs!J$43","v":97.3},{"$f":" Inputs!K$43","v":99.2},{"$f":" Inputs!L$43","v":99.9},{"$f":" Inputs!M$43","v":100.4},{"$f":" Inputs!N$43","v":102.2},{"$f":" Inputs!O$43","v":105},{"$f":" Inputs!P$43","v":107.1},{"$f":" Inputs!Q$43","v":108.5},{"$f":" Inputs!R$43","v":0},{"$f":" Inputs!S$43","v":0},{"$f":" Inputs!T$43","v":0},{"$f":" Inputs!U$43","v":0}]
[null,null,null,null,{"$f":" Inputs!E$44","v":"Consumer Price Index for January"},{"$f":" Inputs!F$44","v":0},{"$f":" Inputs!G$44","v":"index"},{"$f":" Inputs!H$44","v":0},{"$f":" Inputs!I$44","v":0},{"$f":" Inputs!J$44","v":97},{"$f":" Inputs!K$44","v":98.7},{"$f":" Inputs!L$44","v":99.2},{"$f":" Inputs!M$44","v":99.9},{"$f":" Inputs!N$44","v":101.8},{"$f":" Inputs!O$44","v":104.5},{"$f":" Inputs!P$44","v":106.4},{"$f":" Inputs!Q$44","v":108.3},{"$f":" Inputs!R$44","v":0},{"$f":" Inputs!S$44","v":0},{"$f":" Inputs!T$44","v":0},{"$f":" Inputs!U$44","v":0}]
[null,null,null,null,{"$f":" Inputs!E$45","v":"Consumer Price Index for February"},{"$f":" Inputs!F$45","v":0},{"$f":" Inputs!G$45","v":"index"},{"$f":" Inputs!H$45","v":0},{"$f":" Inputs!I$45","v":0},{"$f":" Inputs!J$45","v":97.5},{"$f":" Inputs!K$45","v":99.1},{"$f":" Inputs!L$45","v":99.5},{"$f":" Inputs!M$45","v":100.1},{"$f":" Inputs!N$45","v":102.4},{"$f":" Inputs!O$45","v":104.9},{"$f":" Inputs!P$45","v":106.8},{"$f":" Inputs!Q$45","v":108.6},{"$f":" Inputs!R$45","v":0},{"$f":" Inputs!S$45","v":0},{"$f":" Inputs!T$45","v":0},{"$f":" Inputs!U$45","v":0}]
[null,null,null,null,{"$f":" Inputs!E$46","v":"Consumer Price Index for March"},{"$f":" Inputs!F$46","v":0},{"$f":" Inputs!G$46","v":"index"},{"$f":" Inputs!H$46","v":0},{"$f":" Inputs!I$46","v":0},{"$f":" Inputs!J$46","v":97.8},{"$f":" Inputs!K$46","v":99.3},{"$f":" Inputs!L$46","v":99.6},{"$f":" Inputs!M$46","v":100.4},{"$f":" Inputs!N$46","v":102.7},{"$f":" Inputs!O$46","v":105.1},{"$f":" Inputs!P$46","v":107},{"$f":" Inputs!Q$46","v":108.6},{"$f":" Inputs!R$46","v":0},{"$f":" Inputs!S$46","v":0},{"$f":" Inputs!T$46","v":0},{"$f":" Inputs!U$46","v":0}]
[]
[null,null,null,null,{"$f":" Inputs!E$48","v":"CPIH: Assumed percentage increase for unpopulated monthly values"},{"$f":" Inputs!F$48","v":0},{"$f":" Inputs!G$48","v":"%"},{"$f":" Inputs!H$48","v":0},{"$f":" Inputs!I$48","v":0},{"$f":" Inputs!J$48","v":0},{"$f":" Inputs!K$48","v":0},{"$f":" Inputs!L$48","v":0},{"$f":" Inputs!M$48","v":0},{"$f":" Inputs!N$48","v":0},{"$f":" Inputs!O$48","v":0},{"$f":" Inputs!P$48","v":0},{"$f":" Inputs!Q$48","v":0},{"$f":" Inputs!R$48","v":0},{"$f":" Inputs!S$48","v":0},{"$f":" Inputs!T$48","v":0},{"$f":" Inputs!U$48","v":0}]
[]
[null,null,null,null,"CPIH: April - index",null,"index",null,null,{"$f":" IF(J10 > 0, J10, I25 * (1 + J$23))","v":95.9},{"$f":" IF(K10 > 0, K10, J25 * (1 + K$23))","v":98},99.6,99.9,100.6,103.2,105.5,107.6,107.6,107.6,107.6,107.6]
[null,null,null,null,"CPIH: May - index",null,"index",null,null,{"$f":" IF(J11 > 0, J11, I26 * (1 + J$23))","v":95.9},98.2,99.6,100.1,100.8,103.5,105.9,107.9,107.9,107.9,107.9,107.9]
[null,null,null,null,"CPIH: June - index",null,"index",null,null,95.6,98,99.8,100.1,101,103.5,105.9,107.9,107.9,107.9,107.9,107.9]
[null,null,null,null,"CPIH: July - index",null,"index",null,null,95.7,98,99.6,100,100.9,103.5,105.9,108,108,108,108,108]
[null,null,null,null,"CPIH: August - index",null,"index",null,null,96.1,98.4,99.9,100.3,101.2,104,106.5,108.3,108.3,108.3,108.3,108.3]
[null,null,null,null,"CPIH: September- index",null,"index",null,null,96.4,98.7,100,100.2,101.5,104.3,106.6,108.4,108.4,108.4,108.4,108.4]
[null,null,null,null,"CPIH: October - index",null,"index",null,null,96.8,98.8,100.1,100.3,101.6,104.4,106.7,108.3,108.3,108.3,108.3,108.3]
[null,null,null,null,"CPIH: November - index",null,"index",null,null,97,98.8,99.9,100.3,101.8,104.7,106.9,108.5,108.5,108.5,108.5,108.5]
[null,null,null,null,"CPIH: December - index",null,"index",null,null,97.3,99.2,99.9,100.4,102.2,105,107.1,108.5,108.5,108.5,108.5,108.5]
[null,null,null,null,"CPIH: January - index",null,"index",null,null,97,98.7,99.2,99.9,101.8,104.5,106.4,108.3,108.3,108.3,108.3,108.3]
[null,null,null,null,"CPIH: February - index",null,"index",null,null,97.5,99.1,99.5,100.1,102.4,104.9,106.8,108.6,108.6,108.6,108.6,108.6]
[null,null,null,null,"CPIH: March - index",null,"index",null,null,97.8,99.3,99.6,100.4,102.7,105.1,107,108.6,108.6,108.6,108.6,108.6]
[]
[null,null,null,null,"CPIH: Financial year average - index",null,"index",null,null,{"$f":" AVERAGE(J25:J36)","v":96.583333333333314},98.600000000000009,99.72499999999998,100.16666666666667,101.54166666666667,104.21666666666665,106.43333333333334,108.24166666666663,108.24166666666663,108.24166666666663,108.24166666666663,108.24166666666663]
[]
[]
["RPI INDEXATION"]
[]
[null,"RPI: Index value series"]
[null,null,null,null,{"$f":" Inputs!E$52","v":"Retail Price Index for April"},{"$f":" Inputs!F$52","v":0},{"$f":" Inputs!G$52","v":"index"},{"$f":" Inputs!H$52","v":0},{"$f":" Inputs!I$52","v":0},{"$f":" Inputs!J$52","v":242.5},{"$f":" Inputs!K$52","v":249.5},{"$f":" Inputs!L$52","v":255.7},{"$f":" Inputs!M$52","v":258},{"$f":" Inputs!N$52","v":261.39999999999998},{"$f":" Inputs!O$52","v":270.60000000000002},{"$f":" Inputs!P$52","v":279.7},{"$f":" Inputs!Q$52","v":288.2},{"$f":" Inputs!R$52","v":0},{"$f":" Inputs!S$52","v":0},{"$f":" Inputs!T$52","v":0},{"$f":" Inputs!U$52","v":0}]
[null,null,null,null,{"$f":" Inputs!E$53","v":"Retail Price Index for May"},{"$f":" Inputs!F$53","v":0},{"$f":" Inputs!G$53","v":"index"},{"$f":" Inputs!H$53","v":0},{"$f":" Inputs!I$53","v":0},{"$f":" Inputs!J$53","v":242.4},{"$f":" Inputs!K$53","v":250},{"$f":" Inputs!L$53","v":255.9},{"$f":" Inputs!M$53","v":258.5},{"$f":" Inputs!N$53","v":262.10000000000002},{"$f":" Inputs!O$53","v":271.7},{"$f":" Inputs!P$53","v":280.7},{"$f":" Inputs!Q$53","v":289.2},{"$f":" Inputs!R$53","v":0},{"$f":" Inputs!S$53","v":0},{"$f":" Inputs!T$53","v":0},{"$f":" Inputs!U$53","v":0}]
[null,null,null,null,{"$f":" Inputs!E$54","v":"Retail Price Index for June"},{"$f":" Inputs!F$54","v":0},{"$f":" Inputs!G$54","v":"index"},{"$f":" Inputs!H$54","v":0},{"$f":" Inputs!I$54","v":0},{"$f":" Inputs!J$54","v":241.8},{"$f":" Inputs!K$54","v":249.7},{"$f":" Inputs!L$54","v":256.3},{"$f":" Inputs!M$54","v":258.89999999999998},{"$f":" Inputs!N$54","v":263.10000000000002},{"$f":" Inputs!O$54","v":272.3},{"$f":" Inputs!P$54","v":281.5},{"$f":" Inputs!Q$54","v":289.60000000000002},{"$f":" Inputs!R$54","v":0},{"$f":" Inputs!S$54","v":0},{"$f":" Inputs!T$54","v":0},{"$f":" Inputs!U$54","v":0}]
[null,null,null,null,{"$f":" Inputs!E$55","v":"Retail Price Index for July"},{"$f":" Inputs!F$55","v":0},{"$f":" Inputs!G$55","v":"index"},{"$f":" Inputs!H$55","v":0},{"$f":" Inputs!I$55","v":0},{"$f":" Inputs!J$55","v":242.1},{"$f":" Inputs!K$55","v":249.7},{"$f":" Inputs!L$55","v":256},{"$f":" Inputs!M$55","v":258.60000000000002},{"$f":" Inputs!N$55","v":263.39999999999998},{"$f":" Inputs!O$55","v":272.89999999999998},{"$f":" Inputs!P$55","v":281.7},{"$f":" Inputs!Q$55","v":289.5},{"$f":" Inputs!R$55","v":0},{"$f":" Inputs!S$55","v":0},{"$f":" Inputs!T$55","v":0},{"$f":" Inputs!U$55","v":0}]
[null,null,null,null,{"$f":" Inputs!E$56","v":"Retail Price Index for August"},{"$f":" Inputs!F$56","v":0},{"$f":" Inputs!G$56","v":"index"},{"$f":" Inputs!H$56","v":0},{"$f":" Inputs!I$56","v":0},{"$f":" Inputs!J$56","v":243},{"$f":" Inputs!K$56","v":251},{"$f":" Inputs!L$56","v":257},{"$f":" Inputs!M$56","v":259.8},{"$f":" Inputs!N$56","v":264.39999999999998},{"$f":" Inputs!O$56","v":274.7},{"$f":" Inputs!P$56","v":284.2},{"$f":" Inputs!Q$56","v":291.7},{"$f":" Inputs!R$56","v":0},{"$f":" Inputs!S$56","v":0},{"$f":" Inputs!T$56","v":0},{"$f":" Inputs!U$56","v":0}]
[null,null,null,null,{"$f":" Inputs!E$57","v":"Retail Price Index for September"},{"$f":" Inputs!F$57","v":0},{"$f":" Inputs!G$57","v":"index"},{"$f":" Inputs!H$57","v":0},{"$f":" Inputs!I$57","v":0},{"$f":" Inputs!J$57","v":244.2},{"$f":" Inputs!K$57","v":251.9},{"$f":" Inputs!L$57","v":257.60000000000002},{"$f":" Inputs!M$57","v":259.60000000000002},{"$f":" Inputs!N$57","v":264.89999999999998},{"$f":" Inputs!O$57","v":275.10000000000002},{"$f":" Inputs!P$57","v":284.10000000000002},{"$f":" Inputs!Q$57","v":291},{"$f":" Inputs!R$57","v":0},{"$f":" Inputs!S$57","v":0},{"$f":" Inputs!T$57","v":0},{"$f":" Inputs!U$57","v":0}]
[null,null,null,null,{"$f":" Inputs!E$58","v":"Retail Price Index for October"},{"$f":" Inputs!F$58","v":0},{"$f":" Inputs!G$58","v":"index"},{"$f":" Inputs!H$58","v":0},{"$f":" Inputs!I$58","v":0},{"$f":" Inputs!J$58","v":245.6},{"$f":" Inputs!K$58","v":251.9},{"$f":" Inputs!L$58","v":257.7},{"$f":" Inputs!M$58","v":259.5},{"$f":" Inputs!N$58","v":264.8},{"$f":" Inputs!O$58","v":275.3},{"$f":" Inputs!P$58","v":284.5},{"$f":" Inputs!Q$58","v":290.39999999999998},{"$f":" Inputs!R$58","v":0},{"$f":" Inputs!S$58","v":0},{"$f":" Inputs!T$58","v":0},{"$f":" Inputs!U$58","v":0}]
[null,null,null,null,{"$f":" Inputs!E$59","v":"Retail Price Index for November"},{"$f":" Inputs!F$59","v":0},{"$f":" Inputs!G$59","v":"index"},{"$f":" Inputs!H$59","v":0},{"$f":" Inputs!I$59","v":0},{"$f":" Inputs!J$59","v":245.6},{"$f":" Inputs!K$59","v":252.1},{"$f":" Inputs!L$59","v":257.10000000000002},{"$f":" Inputs!M$59","v":259.8},{"$f":" Inputs!N$59","v":265.5},{"$f":" Inputs!O$59","v":275.8},{"$f":" Inputs!P$59","v":284.60000000000002},{"$f":" Inputs!Q$59","v":291},{"$f":" Inputs!R$59","v":0},{"$f":" Inputs!S$59","v":0},{"$f":" Inputs!T$59","v":0},{"$f":" Inputs!U$59","v":0}]
[null,null,null,null,{"$f":" Inputs!E$60","v":"Retail Price Index for December"},{"$f":" Inputs!F$60","v":0},{"$f":" Inputs!G$60","v":"index"},{"$f":" Inputs!H$60","v":0},{"$f":" Inputs!I$60","v":0},{"$f":" Inputs!J$60","v":246.8},{"$f":" Inputs!K$60","v":253.4},{"$f":" Inputs!L$60","v":257.5},{"$f":" Inputs!M$60","v":260.60000000000002},{"$f":" Inputs!N$60","v":267.10000000000002},{"$f":" Inputs!O$60","v":278.10000000000002},{"$f":" Inputs!P$60","v":285.60000000000002},{"$f":" Inputs!Q$60","v":291.89999999999998},{"$f":" Inputs!R$60","v":0},{"$f":" Inputs!S$60","v":0},{"$f":" Inputs!T$60","v":0},{"$f":" Inputs!U$60","v":0}]
[null,null,null,null,{"$f":" Inputs!E$61","v":"Retail Price Index for January"},{"$f":" Inputs!F$61","v":0},{"$f":" Inputs!G$61","v":"index"},{"$f":" Inputs!H$61","v":0},{"$f":" Inputs!I$61","v":0},{"$f":" Inputs!J$61","v":245.8},{"$f":" Inputs!K$61","v":252.6},{"$f":" Inputs!L$61","v":255.4},{"$f":" Inputs!M$61","v":258.8},{"$f":" Inputs!N$61","v":265.5},{"$f":" Inputs!O$61","v":276},{"$f":" Inputs!P$61","v":283},{"$f":" Inputs!Q$61","v":290.60000000000002},{"$f":" Inputs!R$61","v":0},{"$f":" Inputs!S$61","v":0},{"$f":" Inputs!T$61","v":0},{"$f":" Inputs!U$61","v":0}]
[null,null,null,null,{"$f":" Inputs!E$62","v":"Retail Price Index for February"},{"$f":" Inputs!F$62","v":0},{"$f":" Inputs!G$62","v":"index"},{"$f":" Inputs!H$62","v":0},{"$f":" Inputs!I$62","v":0},{"$f":" Inputs!J$62","v":247.6},{"$f":" Inputs!K$62","v":254.2},{"$f":" Inputs!L$62","v":256.7},{"$f":" Inputs!M$62","v":260},{"$f":" Inputs!N$62","v":268.39999999999998},{"$f":" Inputs!O$62","v":278.10000000000002},{"$f":" Inputs!P$62","v":285},{"$f":" Inputs!Q$62","v":292},{"$f":" Inputs!R$62","v":0},{"$f":" Inputs!S$62","v":0},{"$f":" Inputs!T$62","v":0},{"$f":" Inputs!U$62","v":0}]
[null,null,null,null,{"$f":" Inputs!E$63","v":"Retail Price Index for March"},{"$f":" Inputs!F$63","v":0},{"$f":" Inputs!G$63","v":"index"},{"$f":" Inputs!H$63","v":0},{"$f":" Inputs!I$63","v":0},{"$f":" Inputs!J$63","v":248.7},{"$f":" Inputs!K$63","v":254.8},{"$f":" Inputs!L$63","v":257.10000000000002},{"$f":" Inputs!M$63","v":261.10000000000002},{"$f":" Inputs!N$63","v":269.3},{"$f":" Inputs!O$63","v":278.3},{"$f":" Inputs!P$63","v":285.10000000000002},{"$f":" Inputs!Q$63","v":292.60000000000002},{"$f":" Inputs!R$63","v":0},{"$f":" Inputs!S$63","v":0},{"$f":" Inputs!T$63","v":0},{"$f":" Inputs!U$63","v":0}]
[]
[null,null,null,null,{"$f":" Inputs!E$65","v":"RPI: Assumed percentage increase for unpopulated monthly values"},{"$f":" Inputs!F$65","v":0},{"$f":" Inputs!G$65","v":"%"},{"$f":" Inputs!H$65","v":0},{"$f":" Inputs!I$65","v":0},{"$f":" Inputs!J$65","v":0},{"$f":" Inputs!K$65","v":0},{"$f":" Inputs!L$65","v":0},{"$f":" Inputs!M$65","v":0},{"$f":" Inputs!N$65","v":0},{"$f":" Inputs!O$65","v":0},{"$f":" Inputs!P$65","v":0},{"$f":" Inputs!Q$65","v":0},{"$f":" Inputs!R$65","v":0},{"$f":" Inputs!S$65","v":0},{"$f":" Inputs!T$65","v":0},{"$f":" Inputs!U$65","v":0}]
[]
[null,null,null,null,"RPI: April - index",null,"index",null,null,{"$f":" IF(J44 > 0, J44, I59 * (1 + J$57))","v":242.5},{"$f":" IF(K44 > 0, K44, J59 * (1 + K$57))","v":249.5},255.7,258,261.39999999999998,270.60000000000002,279.7,288.2,288.2,288.2,288.2,288.2]
[null,null,null,null,"RPI: May - index",null,"index",null,null,{"$f":" IF(J45 > 0, J45, I60 * (1 + J$57))","v":242.4},250,255.9,258.5,262.10000000000002,271.7,280.7,289.2,289.2,289.2,289.2,289.2]
[null,null,null,null,"RPI: June - index",null,"index",null,null,{"$f":" IF(J46 > 0, J46, I61 * (1 + J$57))","v":241.8},249.7,256.3,258.89999999999998,263.10000000000002,272.3,281.5,289.60000000000002,289.60000000000002,289.60000000000002,289.60000000000002,289.60000000000002]
[null,null,null,null,"RPI: July - index",null,"index",null,null,{"$f":" IF(J47 > 0, J47, I62 * (1 + J$57))","v":242.1},249.7,256,258.60000000000002,263.39999999999998,272.89999999999998,281.7,289.5,289.5,289.5,289.5,289.5]
[null,null,null,null,"RPI: August - index",null,"index",null,null,{"$f":" IF(J48 > 0, J48, I63 * (1 + J$57))","v":243},251,257,259.8,264.39999999999998,274.7,284.2,291.7,291.7,291.7,291.7,291.7]
[null,null,null,null,"RPI: September- index",null,"index",null,null,{"$f":" IF(J49 > 0, J49, I64 * (1 + J$57))","v":244.2},251.9,257.60000000000002,259.60000000000002,264.89999999999998,275.10000000000002,284.10000000000002,291,291,291,291,291]
[null,null,null,null,"RPI: October - index",null,"index",null,null,{"$f":" IF(J50 > 0, J50, I65 * (1 + J$57))","v":245.6},251.9,257.7,259.5,264.8,275.3,284.5,290.39999999999998,290.39999999999998,290.39999999999998,290.39999999999998,290.39999999999998]
[null,null,null,null,"RPI: November - index",null,"index",null,null,{"$f":" IF(J51 > 0, J51, I66 * (1 + J$57))","v":245.6},252.1,257.10000000000002,259.8,265.5,275.8,284.60000000000002,291,291,291,291,291]
[null,null,null,null,"RPI: December - index",null,"index",null,null,{"$f":" IF(J52 > 0, J52, I67 * (1 + J$57))","v":246.8},253.4,257.5,260.60000000000002,267.10000000000002,278.10000000000002,285.60000000000002,291.89999999999998,291.89999999999998,291.89999999999998,291.89999999999998,291.89999999999998]
[null,null,null,null,"RPI: January - index",null,"index",null,null,{"$f":" IF(J53 > 0, J53, I68 * (1 + J$57))","v":245.8},252.6,255.4,258.8,265.5,276,283,290.60000000000002,290.60000000000002,290.60000000000002,290.60000000000002,290.60000000000002]
[null,null,null,null,"RPI: February - index",null,"index",null,null,{"$f":" IF(J54 > 0, J54, I69 * (1 + J$57))","v":247.6},254.2,256.7,260,268.39999999999998,278.10000000000002,285,292,292,292,292,292]
[null,null,null,null,"RPI: March - index",null,"index",null,null,{"$f":" IF(J55 > 0, J55, I70 * (1 + J$57))","v":248.7},254.8,257.10000000000002,261.10000000000002,269.3,278.3,285.10000000000002,292.60000000000002,292.60000000000002,292.60000000000002,292.60000000000002,292.60000000000002]
[]
[null,null,null,null,"RPI: Financial year average - index",null,"index",null,null,{"$f":" AVERAGE(J59:J70)","v":244.67499999999998},251.73333333333335,256.66666666666669,259.43333333333334,264.99166666666673,274.90833333333336,283.30833333333334,290.64166666666665,290.64166666666665,290.64166666666665,290.64166666666665,290.64166666666665]
[]
[]
["INFLATION"]
[]
[null,"Inflation of 2013 base prices  FYA - RPI "]
[null,null,null,null,{"$f":" Inputs!E$69","v":"Year reference for FYA base price 1"},{"$f":" Inputs!F$69","v":2013},{"$f":" Inputs!G$69","v":"year #"}]
[null,null,null,null,{"$f":" Inputs!E$72","v":"Year reference for FYE end price"},{"$f":" Inputs!F$72","v":2020},{"$f":" Inputs!G$72","v":"year #"}]
[null,null,null,null,{"$f":" E$72","v":"RPI: Financial year average - index"},0,"index",0,0,244.67499999999998,251.73333333333335,256.66666666666669,259.43333333333334,264.99166666666673,274.90833333333336,283.30833333333334,290.64166666666665,290.64166666666665,290.64166666666665,290.64166666666665,290.64166666666665]
[null,null,null,null,{"$f":" E$70","v":"RPI: March - index"},0,"index",0,0,248.7,254.8,257.10000000000002,261.10000000000002,269.3,278.3,285.10000000000002,292.60000000000002,292.60000000000002,292.60000000000002,292.60000000000002,292.60000000000002]
[null,null,null,null,{"$f":" \"RPI inflate from \" & F78 & \" FYA to \" & F79 & \" FYE\"","v":"RPI inflate from 2013 FYA to 2020 FYE"},{"$f":" INDEX($J81:$U81, 1, MATCH($F79,$J$4:$U$4)) / INDEX($J80:$U80, 1, MATCH($F78,$J$4:$U$4))","v":1.1958720752017984},"factor"]
[]
[null,"Inflation of 2018 base prices  FYA - RPI "]
[null,null,null,null,{"$f":" Inputs!E$70","v":"Year reference for FYA base price 2"},{"$f":" Inputs!F$70","v":2018},{"$f":" Inputs!G$70","v":"year #"}]
[null,null,null,null,{"$f":" Inputs!E$72","v":"Year reference for FYE end price"},{"$f":" Inputs!F$72","v":2020},{"$f":" Inputs!G$72","v":"year #"}]
[null,null,null,null,{"$f":" E$72","v":"RPI: Financial year average - index"},0,"index",0,0,244.67499999999998,251.73333333333335,256.66666666666669,259.43333333333334,264.99166666666673,274.90833333333336,283.30833333333334,290.64166666666665,290.64166666666665,290.64166666666665,290.64166666666665,290.64166666666665]
[null,null,null,null,{"$f":" E$70","v":"RPI: March - index"},0,"index",0,0,248.7,254.8,257.10000000000002,261.10000000000002,269.3,278.3,285.10000000000002,292.60000000000002,292.60000000000002,292.60000000000002,292.60000000000002,292.60000000000002]
[null,null,null,null,{"$f":" \"RPI inflate from \" & F85 & \" FYA to \" & F86 & \" FYE\"","v":"RPI inflate from 2018 FYA to 2020 FYE"},{"$f":" INDEX($J88:$U88, 1, MATCH($F86,$J$4:$U$4)) / INDEX($J87:$U87, 1, MATCH($F85,$J$4:$U$4))","v":1.0643547849283095},"factor"]
[]
[null,"Inflation of 2018 base prices  FYE - RPI"]
[null,null,null,null,{"$f":" Inputs!E$71","v":"Year reference for FYE base price"},{"$f":" Inputs!F$71","v":2018},{"$f":" Inputs!G$71","v":"year #"}]
[null,null,null,null,{"$f":" Inputs!E$72","v":"Year reference for FYE end price"},{"$f":" Inputs!F$72","v":2020},{"$f":" Inputs!G$72","v":"year #"}]
[null,null,null,null,{"$f":" E$70","v":"RPI: March - index"},0,"index",0,0,248.7,254.8,257.10000000000002,261.10000000000002,269.3,278.3,285.10000000000002,292.60000000000002,292.60000000000002,292.60000000000002,292.60000000000002,292.60000000000002]
[null,null,null,null,{"$f":" \"RPI inflate from \" & F92 & \" FYE to \" & F93 & \" FYE\"","v":"RPI inflate from 2018 FYE to 2020 FYE"},{"$f":" INDEX($J94:$U94, 1, MATCH($F93,$J$4:$U$4)) / INDEX($J94:$U94, 1, MATCH($F92,$J$4:$U$4))","v":1.0513833992094863},"factor"]
[]
[]
["DEFLATION"]
[]
[null,null,null,null,{"$f":" Inputs!E$76","v":"Year reference for FYE base price"},{"$f":" Inputs!F$76","v":2020},{"$f":" Inputs!G$76","v":"year #"}]
[null,null,null,null,{"$f":" Inputs!E$77","v":"Year reference for FYA end price"},{"$f":" Inputs!F$77","v":2018},{"$f":" Inputs!G$77","v":"year #"}]
[null,null,null,null,{"$f":" Inputs!E$78","v":"Year reference for FYE base price - IFRS 16 and Other"},{"$f":" Inputs!F$78","v":2018},{"$f":" Inputs!G$78","v":"year #"}]
[null,null,null,null,{"$f":" E$36","v":"CPIH: March - index"},{"$f":" F$36","v":0},"index",0,0,97.8,99.3,99.6,100.4,102.7,105.1,107,108.6,108.6,108.6,108.6,108.6]
[null,null,null,null,{"$f":" E$38","v":"CPIH: Financial year average - index"},0,"index",0,0,96.583333333333314,98.600000000000009,99.72499999999998,100.16666666666667,101.54166666666667,104.21666666666665,106.43333333333334,108.24166666666663,108.24166666666663,108.24166666666663,108.24166666666663,108.24166666666663]
[null,null,null,null,{"$f":" \"CPIH deflate from \" & F100 & \" FYE to \" & F101 & \" FYA\"","v":"CPIH deflate from 2020 FYE to 2018 FYA"},{"$f":" INDEX($J104:$U104, 1, MATCH($F101,$J$4:$U$4)) / INDEX($J103:$U103, 1, MATCH($F100,$J$4:$U$4))","v":0.95963781461019027},"factor"]
[null,null,null,null,{"$f":" \"CPIH deflate from \" & F100 & \" FYE to \" & F101 & \" FYE\"","v":"CPIH deflate from 2020 FYE to 2018 FYE"},{"$f":" INDEX($J103:$U103, 1, MATCH($F101,$J$4:$U$4)) / INDEX($J103:$U103, 1, MATCH($F100,$J$4:$U$4))","v":0.9677716390423573},"factor"]
[null,null,null,null,"CPIH deflate from 2018 FYE to 2018 FYA - IFRS 16 and Other",{"$f":" INDEX($J104:$U104, 1, MATCH($F101,$J$4:$U$4)) / INDEX($J103:$U103, 1, MATCH($F102,$J$4:$U$4))","v":0.99159530605772273},"factor"]

{"sheet":"Calc","index":10,"n_rows":473,"n_cols":21,"rows_kept":473,"cut":false,"hidden":false,"merged":[]}
[{"$f":" RIGHT(CELL(\"filename\", $A$1), LEN(CELL(\"filename\", $A$1)) - SEARCH(\"]\", CELL(\"filename\", $A$1)))","v":"Calc"}]
[null,null,null,null,{"$f":" Time!E$25","v":"Model period ending"},null,null,null,null,{"$f":" Time!J$25","v":"2013-03-31"},{"$f":" Time!K$25","v":"2014-03-31"},{"$f":" Time!L$25","v":"2015-03-31"},{"$f":" Time!M$25","v":"2016-03-31"},{"$f":" Time!N$25","v":"2017-03-31"},{"$f":" Time!O$25","v":"2018-03-31"},{"$f":" Time!P$25","v":"2019-03-31"},{"$f":" Time!Q$25","v":"2020-03-31"},{"$f":" Time!R$25","v":"2021-03-31"},{"$f":" Time!S$25","v":"2022-03-31"},{"$f":" Time!T$25","v":"2023-03-31"},{"$f":" Time!U$25","v":"2024-03-31"}]
[null,null,null,null,{"$f":" Time!E$80","v":"Timeline label"},null,null,null,null,{"$f":" Time!J$80","v":"Pre-Fcst"},{"$f":" Time!K$80","v":"Pre-Fcst"},{"$f":" Time!L$80","v":"Pre-Fcst"},{"$f":" Time!M$80","v":"Pre-Fcst"},{"$f":" Time!N$80","v":"Pre-Fcst"},{"$f":" Time!O$80","v":"Pre-Fcst"},{"$f":" Time!P$80","v":"Pre-Fcst"},{"$f":" Time!Q$80","v":"Pre-Fcst"},{"$f":" Time!R$80","v":"Forecast"},{"$f":" Time!S$80","v":"Forecast"},{"$f":" Time!T$80","v":"Forecast"},{"$f":" Time!U$80","v":"Forecast"}]
[null,null,null,null,{"$f":" Time!E$103","v":"Financial year ending"},null,null,null,null,{"$f":" Time!J$103","v":2013},{"$f":" Time!K$103","v":2014},{"$f":" Time!L$103","v":2015},{"$f":" Time!M$103","v":2016},{"$f":" Time!N$103","v":2017},{"$f":" Time!O$103","v":2018},{"$f":" Time!P$103","v":2019},{"$f":" Time!Q$103","v":2020},{"$f":" Time!R$103","v":2021},{"$f":" Time!S$103","v":2022},{"$f":" Time!T$103","v":2023},{"$f":" Time!U$103","v":2024}]
[null,null,null,null,{"$f":" Time!E$10","v":"Model column counter"},"Constant","Unit","Total",null,{"$f":" Time!J$10","v":1},{"$f":" Time!K$10","v":2},{"$f":" Time!L$10","v":3},{"$f":" Time!M$10","v":4},{"$f":" Time!N$10","v":5},{"$f":" Time!O$10","v":6},{"$f":" Time!P$10","v":7},{"$f":" Time!Q$10","v":8},{"$f":" Time!R$10","v":9},{"$f":" Time!S$10","v":10},{"$f":" Time!T$10","v":11},{"$f":" Time!U$10","v":12}]
[]
["WATER SERVICES"]
[]
[null,"Water RCV closing balance at 31 March 2020"]
[{"$f":" Inputs!A$85","v":"APP8001W"},null,null,null,{"$f":" Inputs!E$85","v":"Wholesale water closing RCV at 31 March 2020 (from PR14 FD)"},{"$f":" Inputs!F$85","v":2417.7536510444002},{"$f":" Inputs!G$85","v":"£m"}]
[{"$f":" Inputs!A$86","v":"C00572_L021"},null,null,null,{"$f":" Inputs!E$86","v":"Water ~ Total Adjustment RCV carry forward to PR19"},{"$f":" Inputs!F$86","v":3.0289999999999999},{"$f":" Inputs!G$86","v":"£m"}]
[{"$f":" Inputs!A$87","v":"APP25001"},null,null,null,{"$f":" Inputs!E$87","v":"Water ~ CIS RCV inflation correction"},{"$f":" Inputs!F$87","v":-40.01},{"$f":" Inputs!G$87","v":"£m"}]
[{"$f":" Inputs!A$88","v":"APP27029"},null,null,null,{"$f":" Inputs!E$88","v":"Net performance payment / (penalty) applied to RCV for end of period ODI adjustments ~ Water resources"},{"$f":" Inputs!F$88","v":0},{"$f":" Inputs!G$88","v":"£m"}]
[{"$f":" Inputs!A$89","v":"APP27030"},null,null,null,{"$f":" Inputs!E$89","v":"Net performance payment / (penalty) applied to RCV for end of period ODI adjustments ~ Water network plus"},{"$f":" Inputs!F$89","v":-14.44841160000426},{"$f":" Inputs!G$89","v":"£m"}]
[{"$f":" Inputs!A$90","v":"C_WS15025_PR19PD006"},null,null,null,{"$f":" Inputs!E$90","v":"Water: RCV adjustment from totex menu model"},{"$f":" Inputs!F$90","v":45.031337631092399},{"$f":" Inputs!G$90","v":"£m"}]
[]
[null,null,null,null,{"$f":" Indexation!E$82","v":"RPI inflate from 2013 FYA to 2020 FYE"},{"$f":" Indexation!F$82","v":1.1958720752017984},{"$f":" Indexation!G$82","v":"factor"}]
[]
[null,null,null,null,{"$f":" E10 & \" at 2020 FYE price base\"","v":"Wholesale water closing RCV at 31 March 2020 (from PR14 FD) at 2020 FYE price base"},{"$f":" F10 * F$17","v":2891.3240760011913},"£m"]
[null,null,null,null,"Water ~ Total Adjustment RCV carry forward to PR19 at 2020 FYE price base",3.622296515786247,"£m"]
[null,null,null,null,"Water ~ CIS RCV inflation correction at 2020 FYE price base",-47.846841728823954,"£m"]
[null,null,null,null,"Net performance payment / (penalty) applied to RCV for end of period ODI adjustments ~ Water resources at 2020 FYE price base",0,"£m"]
[null,null,null,null,"Net performance payment / (penalty) applied to RCV for end of period ODI adjustments ~ Water network plus at 2020 FYE price base",-17.278451963466829,"£m"]
[null,null,null,null,"Water: RCV adjustment from totex menu model at 2020 FYE price base",53.851719182007301,"£m"]
[]
[{"$f":" Inputs!A$92","v":"C_A7010W_PR19PD003"},null,null,null,{"$f":" Inputs!E$92","v":"Water ~ NPV effect of 50% of proceeds from disposals of interest in land"},{"$f":" Inputs!F$92","v":-1.45796223359861},{"$f":" Inputs!G$92","v":"£m"}]
[]
[null,null,null,null,{"$f":" Indexation!E$89","v":"RPI inflate from 2018 FYA to 2020 FYE"},{"$f":" Indexation!F$89","v":1.0643547849283095},{"$f":" Indexation!G$89","v":"factor"}]
[]
[null,null,null,null,{"$f":" E26 & \" at 2020 FYE price base\"","v":"Water ~ NPV effect of 50% of proceeds from disposals of interest in land at 2020 FYE price base"},{"$f":" F26 * F28","v":-1.5517890795754463},"£m"]
[]
[null,null,"IFRS16 and Other RCV adjustments expressed in 2017-18 FYA CPIH deflated price base"]
[{"$f":" Inputs!A$91","v":"APP8009W"},null,null,null,{"$f":" Inputs!E$91","v":"Water ~ Other adjustment to wholesale RCV"},{"$f":" Inputs!F$91","v":0},{"$f":" Inputs!G$91","v":"£m"}]
[{"$f":" Inputs!A$99","v":"APP33021WR"},null,null,null,{"$f":" Inputs!E$99","v":"Water resources IFRS16 RCV adjustment"},{"$f":" Inputs!F$99","v":0.36940565917755103},{"$f":" Inputs!G$99","v":"£m"}]
[{"$f":" Inputs!A$100","v":"APP33021WNP"},null,null,null,{"$f":" Inputs!E$100","v":"Water network plus IFRS16 RCV adjustment"},{"$f":" Inputs!F$100","v":6.9351060561968101},{"$f":" Inputs!G$100","v":"£m"}]
[]
[null,null,null,null,{"$f":" Indexation!E$107","v":"CPIH deflate from 2018 FYE to 2018 FYA - IFRS 16 and Other"},{"$f":" Indexation!F$107","v":0.99159530605772273},{"$f":" Indexation!G$107","v":"factor"}]
[]
["C030",null,null,null,{"$f":" E33 & \" at 2017-18 FYA CPIH deflated price base\"","v":"Water ~ Other adjustment to wholesale RCV at 2017-18 FYA CPIH deflated price base"},{"$f":" F33 * F$37","v":0},"£m"]
["C_APP8022WR",null,null,null,{"$f":" E34 & \" at 2017-18 FYA CPIH deflated price base\"","v":"Water resources IFRS16 RCV adjustment at 2017-18 FYA CPIH deflated price base"},{"$f":" F34 * F$37","v":0.36630091767161854},"£m"]
["C_APP8022WN",null,null,null,{"$f":" E35 & \" at 2017-18 FYA CPIH deflated price base\"","v":"Water network plus IFRS16 RCV adjustment at 2017-18 FYA CPIH deflated price base"},{"$f":" F35 * F$37","v":6.8768186123372423},"£m"]
[]
[null,null,"Values expressed in 2017-18 FYE CPIH deflated price base for table App8"]
[null,null,null,null,{"$f":" E$19","v":"Wholesale water closing RCV at 31 March 2020 (from PR14 FD) at 2020 FYE price base"},{"$f":" F$19","v":2891.3240760011913},"£m"]
[null,null,null,null,{"$f":" E$20","v":"Water ~ Total Adjustment RCV carry forward to PR19 at 2020 FYE price base"},{"$f":" F$20","v":3.622296515786247},"£m"]
[null,null,null,null,{"$f":" E$21","v":"Water ~ CIS RCV inflation correction at 2020 FYE price base"},{"$f":" F$21","v":-47.846841728823954},"£m"]
[null,null,null,null,{"$f":" E$30","v":"Water ~ NPV effect of 50% of proceeds from disposals of interest in land at 2020 FYE price base"},{"$f":" F$30","v":-1.5517890795754463},"£m"]
[null,null,null,null,{"$f":" E$22","v":"Net performance payment / (penalty) applied to RCV for end of period ODI adjustments ~ Water resources at 2020 FYE price base"},{"$f":" F$22","v":0},"£m"]
[null,null,null,null,{"$f":" E$23","v":"Net performance payment / (penalty) applied to RCV for end of period ODI adjustments ~ Water network plus at 2020 FYE price base"},{"$f":" F$23","v":-17.278451963466829},"£m"]
[null,null,null,null,{"$f":" E$24","v":"Water: RCV adjustment from totex menu model at 2020 FYE price base"},{"$f":" F$24","v":53.851719182007301},"£m"]
[]
[]
[null,null,null,null,{"$f":" Indexation!E$106","v":"CPIH deflate from 2020 FYE to 2018 FYE"},{"$f":" Indexation!F$106","v":0.9677716390423573},{"$f":" Indexation!G$106","v":"factor"}]
[]
["C_APP8002W",null,null,null,"Wholesale water closing RCV at 31 March 2020 before midnight adjustments at 2017-18 FYE CPIH deflated price base ",{"$f":" F44 * F$53","v":2798.1414400343024},"£m"]
["C_APP8003W",null,null,null,"Water ~ Total Adjustment RCV carry forward to PR19 at 2017-18 FYE CPIH deflated price base",3.5055558361798762,"£m"]
["C_APP8004W",null,null,null,"Water ~ CIS RCV inflation correction at 2017-18 FYE CPIH deflated price base",-46.304816442904212,"£m"]
["C_APP8005W",null,null,null,"Water ~ NPV effect of 50% of proceeds from disposals of interest in land at 2017-18 FYE CPIH deflated price base",-1.5017774609887606,"£m"]
["C_APP8006W",null,null,null,"Water ~ ODI RCV adjustment allocated to Water resources at 2017-18 FYE CPIH deflated price base",0,"£m"]
["C_APP8007W",null,null,null,"Water ~ ODI RCV adjustment allocated to Water network plus at 2017-18 FYE CPIH deflated price base",-16.721595776798928,"£m"]
["C_APP8008W",null,null,null,"Water ~ Totex menu RCV adjustment at 2017-18 FYE CPIH deflated price base",52.116166538019961,"£m"]
[{"$f":" A$33","v":"APP8009W"},{"$f":" B$33","v":0},0,0,{"$f":" E$33 & \" at 2017-18 FYE CPIH deflated price base\"","v":"Water ~ Other adjustment to wholesale RCV at 2017-18 FYE CPIH deflated price base"},0,"£m"]
["C_APP8010W",null,null,null,"Total wholesale water RCV at 31 March 2020 post midnight adjustments before allocation to price control units at 2017-18 FYE CPIH deflated price base",{"$f":"SUM(F55:F62)","v":2789.2349727278106},"£m"]
[]
[null,null,"PR14 reconciliation adjustments expressed in 2017-18 FYA CPIH deflated price base"]
[null,null,null,null,{"$f":"E$19","v":"Wholesale water closing RCV at 31 March 2020 (from PR14 FD) at 2020 FYE price base"},{"$f":"F$19","v":2891.3240760011913},"£m"]
[null,null,null,null,{"$f":" E$20","v":"Water ~ Total Adjustment RCV carry forward to PR19 at 2020 FYE price base"},{"$f":" F$20","v":3.622296515786247},"£m"]
[null,null,null,null,{"$f":" E$21","v":"Water ~ CIS RCV inflation correction at 2020 FYE price base"},{"$f":" F$21","v":-47.846841728823954},"£m"]
[null,null,null,null,{"$f":" E$30","v":"Water ~ NPV effect of 50% of proceeds from disposals of interest in land at 2020 FYE price base"},{"$f":" F$30","v":-1.5517890795754463},"£m"]
[null,null,null,null,{"$f":" E$22","v":"Net performance payment / (penalty) applied to RCV for end of period ODI adjustments ~ Water resources at 2020 FYE price base"},{"$f":" F$22","v":0},"£m"]
[null,null,null,null,{"$f":" E$23","v":"Net performance payment / (penalty) applied to RCV for end of period ODI adjustments ~ Water network plus at 2020 FYE price base"},{"$f":" F$23","v":-17.278451963466829},"£m"]
[null,null,null,null,{"$f":" E$24","v":"Water: RCV adjustment from totex menu model at 2020 FYE price base"},{"$f":" F$24","v":53.851719182007301},"£m"]
[]
[]
[null,null,null,null,{"$f":" Indexation!E$105","v":"CPIH deflate from 2020 FYE to 2018 FYA"},{"$f":" Indexation!F$105","v":0.95963781461019027},{"$f":" Indexation!G$105","v":"factor"}]
[]
["C_RCV_W",null,null,null,"Wholesale water closing RCV at 31 March 2020 (from PR14 FD) at 2017-18 FYA CPIH deflated prices",{"$f":" F66 * F$75","v":2774.6239176236109},"£m"]
["C_APP25003",null,null,null,"Water ~ Total adjustment RCV carry forward to PR19 at 2017-18 FYA CPIH deflated price base",3.4760927122792205,"£m"]
["C_APP25007",null,null,null,"Water ~ CIS RCV inflation correction at 2017-18 FYA CPIH deflated price base",-45.915638632648275,"£m"]
["C_A7011W",null,null,null,"Water ~ NPV effect of 50% of proceeds from disposals of interest in land at 2017-18 FYA CPIH deflated price base",-1.48915548105974,"£m"]
["C_APP27048",null,null,null,"ODI end of period RCV adjustment ~ Water resources at 2017-18 FYA CPIH deflated price base",0,"£m"]
["C_APP27049",null,null,null,"ODI end of period RCV adjustment  ~ Water network plus at 2017-18 FYA CPIH deflated price base",-16.581055882068458,"£m"]
["C_WS15027",null,null,null,"Water: Totex menu RCV adjustment at 2017-18 FYA CPIH deflated price base",51.67814610882315,"£m"]
[{"$f":" A$39","v":"C030"},0,0,0,"Water ~ Other adjustment to wholesale RCV at 2017-18 FYA CPIH deflated price base",{"$f":" F$39","v":0},{"$f":" G$39","v":"£m"}]
[]
[null,"Total wholesale water RCV at 31 March 2020 post midnight adjustments before allocation to price control units at 2020 FYE price base"]
[null,null,null,null,{"$f":" E$19","v":"Wholesale water closing RCV at 31 March 2020 (from PR14 FD) at 2020 FYE price base"},2891.3240760011913,"£m"]
[null,null,null,null,{"$f":" E$20","v":"Water ~ Total Adjustment RCV carry forward to PR19 at 2020 FYE price base"},{"$f":" F$20","v":3.622296515786247},{"$f":" G$20","v":"£m"}]
[null,null,null,null,{"$f":" E$21","v":"Water ~ CIS RCV inflation correction at 2020 FYE price base"},{"$f":" F$21","v":-47.846841728823954},{"$f":" G$21","v":"£m"}]
[null,null,null,null,{"$f":" E$22","v":"Net performance payment / (penalty) applied to RCV for end of period ODI adjustments ~ Water resources at 2020 FYE price base"},{"$f":" F$22","v":0},{"$f":" G$22","v":"£m"}]
[null,null,null,null,{"$f":" E$23","v":"Net performance payment / (penalty) applied to RCV for end of period ODI adjustments ~ Water network plus at 2020 FYE price base"},{"$f":" F$23","v":-17.278451963466829},"£m"]
[null,null,null,null,{"$f":" E$24","v":"Water: RCV adjustment from totex menu model at 2020 FYE price base"},{"$f":" F$24","v":53.851719182007301},{"$f":" G$24","v":"£m"}]
[]
[null,null,null,null,{"$f":" E$30","v":"Water ~ NPV effect of 50% of proceeds from disposals of interest in land at 2020 FYE price base"},{"$f":" F$30","v":-1.5517890795754463},{"$f":" G$30","v":"£m"}]
[null,null,null,null,"Total wholesale water RCV at 31 March 2020 post midnight adjustments before allocation to price control units at 2020 FYE price base",{"$f":"SUM(F87:F94)","v":2882.1210089271185},"£m"]
[]
[null,"Water resources"]
[null,null,null,null,{"$f":" E$95","v":"Total wholesale water RCV at 31 March 2020 post midnight adjustments before allocation to price control units at 2020 FYE price base"},2882.1210089271185,"£m"]
[{"$f":" Inputs!A$96","v":"WS12019WR"},null,null,null,{"$f":" Inputs!E$96","v":"Water resources % of total wholesale water RCV ~ 31 March 2020"},{"$f":" Inputs!F$96","v":0.20068334073328201},{"$f":" Inputs!G$96","v":"%"}]
[null,null,null,null,{"$f":" E$90","v":"Net performance payment / (penalty) applied to RCV for end of period ODI adjustments ~ Water resources at 2020 FYE price base"},{"$f":" F$90","v":0},"£m"]
[null,null,null,null,{"$f":" E$91","v":"Net performance payment / (penalty) applied to RCV for end of period ODI adjustments ~ Water network plus at 2020 FYE price base"},{"$f":" F$91","v":-17.278451963466829},"£m"]
[null,null,null,null,"Water resources opening RCV at 2020 FYE price base",{"$f":" (F98 - F100 - F101) * F99 + F100","v":581.86116993179951},"£m"]
[]
[null,null,null,null,{"$f":" E$102","v":"Water resources opening RCV at 2020 FYE price base"},581.86116993179951,"£m"]
[null,null,null,null,{"$f":" Inputs!E$94","v":"% of RCV to index by RPI - water services"},{"$f":" Inputs!F$94","v":0.5},{"$f":" Inputs!G$94","v":"%"}]
[null,null,null,null,"Water resources RPI linked RCV at 2020 FYE price base",{"$f":" F104 * F105","v":290.93058496589975},"£m"]
[]
[null,null,null,null,{"$f":" E$102","v":"Water resources opening RCV at 2020 FYE price base"},581.86116993179951,"£m"]
[null,null,null,null,{"$f":" Inputs!E$94","v":"% of RCV to index by RPI - water services"},{"$f":" Inputs!F$94","v":0.5},{"$f":" Inputs!G$94","v":"%"}]
[null,null,null,null,"Water resources CPIH linked RCV at 2020 FYE price base",{"$f":" F108 * (1 - F109)","v":290.93058496589975},"£m"]
[]
[null,null,null,null,{"$f":" E$106","v":"Water resources RPI linked RCV at 2020 FYE price base"},290.93058496589975,"£m"]
[null,null,null,null,{"$f":" E$110","v":"Water resources CPIH linked RCV at 2020 FYE price base"},290.93058496589975,"£m"]
[]
[null,null,null,null,{"$f":" Indexation!E$105","v":"CPIH deflate from 2020 FYE to 2018 FYA"},{"$f":" Indexation!F$105","v":0.95963781461019027},{"$f":" Indexation!G$105","v":"factor"}]
[]
[null,null,null,null,"Water resources 2020 RCV RPI inflated ~ 1 April (opening balance excluding IFRS16 and Other adjustment) at 2017-18 CPIH deflated price base",{"$f":" F112 * F$115","v":279.18799075994031},"£m"]
[null,null,null,null,"Water resources 2020 RCV CPIH inflated ~ 1 April (opening balance excluding IFRS16 and Other adjustment) at 2017-18 CPIH deflated price base",{"$f":" F113 * F$115","v":279.18799075994031},"£m"]
[]
[null,null,null,null,{"$f":" E$39","v":"Water ~ Other adjustment to wholesale RCV at 2017-18 FYA CPIH deflated price base"},{"$f":" F$39","v":0},"£m"]
[{"$f":" Inputs!A$96","v":"WS12019WR"},null,null,null,{"$f":" Inputs!E$96","v":"Water resources % of total wholesale water RCV ~ 31 March 2020"},{"$f":" Inputs!F$96","v":0.20068334073328201},{"$f":" Inputs!G$96","v":"%"}]
[null,null,null,null,"Water resources other adjustment at 2017-18 FYA CPIH deflated price base",{"$f":" F120 * F$121","v":0},"£m"]
[]
[null,null,null,null,{"$f":" E$122","v":"Water resources other adjustment at 2017-18 FYA CPIH deflated price base"},{"$f":" F$122","v":0},{"$f":" G122","v":"£m"}]
[null,null,null,null,{"$f":" E$40","v":"Water resources IFRS16 RCV adjustment at 2017-18 FYA CPIH deflated price base"},{"$f":" F$40","v":0.36630091767161854},{"$f":"G40","v":"£m"}]
[null,null,null,null,{"$f":" Inputs!E$94","v":"% of RCV to index by RPI - water services"},{"$f":" Inputs!F$94","v":0.5},{"$f":" Inputs!G$94","v":"%"}]
[null,null,null,null,"Water resources other adjustment RPI inflated RCV at 2017-18 FYA CPIH deflated price base",{"$f":" F124 * F$126","v":0},"£m"]
[null,null,null,null,"Water resources IFRS16 adjustment RPI inflated RCV at 2017-18 FYA CPIH deflated price base",{"$f":" F125 * F$126","v":0.18315045883580927},"£m"]
[]
[null,null,null,null,{"$f":" E$122","v":"Water resources other adjustment at 2017-18 FYA CPIH deflated price base"},{"$f":" F$122","v":0},{"$f":" G$122","v":"£m"}]
[null,null,null,null,{"$f":" E$40","v":"Water resources IFRS16 RCV adjustment at 2017-18 FYA CPIH deflated price base"},{"$f":" F$40","v":0.36630091767161854},{"$f":"G40","v":"£m"}]
[null,null,null,null,{"$f":" Inputs!E$94","v":"% of RCV to index by RPI - water services"},{"$f":" Inputs!F$94","v":0.5},{"$f":" Inputs!G$94","v":"%"}]
[null,null,null,null,"Water resources other adjustment CPIH inflated RCV at 2017-18 FYA CPIH deflated price base",{"$f":" F130 * (1 - F$132)","v":0},"£m"]
[null,null,null,null,"Water resources IFRS16 adjustment CPIH inflated RCV at 2017-18 FYA CPIH deflated price base",{"$f":" F131 * (1 - F$132)","v":0.18315045883580927},"£m"]
[]
[null,null,null,null,{"$f":" E$117","v":"Water resources 2020 RCV RPI inflated ~ 1 April (opening balance excluding IFRS16 and Other adjustment) at 2017-18 CPIH deflated price base"},{"$f":" F$117","v":279.18799075994031},"£m"]
[null,null,null,null,{"$f":" E$127","v":"Water resources other adjustment RPI inflated RCV at 2017-18 FYA CPIH deflated price base"},{"$f":" F$127","v":0},"£m"]
[null,null,null,null,{"$f":" E$128","v":"Water resources IFRS16 adjustment RPI inflated RCV at 2017-18 FYA CPIH deflated price base"},{"$f":" F$128","v":0.18315045883580927},"£m"]
["C_APP8014WR",null,null,null,"Water resources 2020 RCV RPI inflated ~ 1 April (opening balance) at 2017-18 CPIH deflated price base",{"$f":" F136 + F137 + F138","v":279.37114121877613},"£m"]
[]
[null,null,null,null,{"$f":" E$118","v":"Water resources 2020 RCV CPIH inflated ~ 1 April (opening balance excluding IFRS16 and Other adjustment) at 2017-18 CPIH deflated price base"},{"$f":" F$118","v":279.18799075994031},"£m"]
[null,null,null,null,{"$f":" E$133","v":"Water resources other adjustment CPIH inflated RCV at 2017-18 FYA CPIH deflated price base"},{"$f":" F$133","v":0},"£m"]
[null,null,null,null,{"$f":" E$134","v":"Water resources IFRS16 adjustment CPIH inflated RCV at 2017-18 FYA CPIH deflated price base"},{"$f":" F$134","v":0.18315045883580927},"£m"]
["C_APP8016WR",null,null,null,"Water resources 2020 RCV CPIH inflated ~ 1 April (opening balance) at 2017-18 CPIH deflated price base",{"$f":" F141 + F142 + F143","v":279.37114121877613},"£m"]
[]
[null,"Water network plus"]
[null,null,null,null,{"$f":" E$95","v":"Total wholesale water RCV at 31 March 2020 post midnight adjustments before allocation to price control units at 2020 FYE price base"},2882.1210089271185,"£m"]
[null,null,null,null,{"$f":" Inputs!E$97","v":"Water network plus % of total wholesale water RCV ~ 31 March 2020"},{"$f":" Inputs!F$97","v":0.79931665926671802},{"$f":" Inputs!G$97","v":"%"}]
[null,null,null,null,{"$f":" E$90","v":"Net performance payment / (penalty) applied to RCV for end of period ODI adjustments ~ Water resources at 2020 FYE price base"},{"$f":" F$90","v":0},"£m"]
[null,null,null,null,{"$f":" E$91","v":"Net performance payment / (penalty) applied to RCV for end of period ODI adjustments ~ Water network plus at 2020 FYE price base"},{"$f":" F$91","v":-17.278451963466829},"£m"]
[null,null,null,null,"Water network plus opening RCV at 2020 FYE price base",{"$f":" (F147 - F149 - F150) * F148 + F150","v":2300.2598389953191},"£m"]
[]
[null,null,null,null,{"$f":" E$151","v":"Water network plus opening RCV at 2020 FYE price base"},2300.2598389953191,"£m"]
[null,null,null,null,{"$f":" Inputs!E$94","v":"% of RCV to index by RPI - water services"},{"$f":" Inputs!F$94","v":0.5},{"$f":" Inputs!G$94","v":"%"}]
[null,null,null,null,"Water network plus RPI linked RCV at 2020 FYE price base",{"$f":" F153 * F154","v":1150.1299194976596},"£m"]
[]
[null,null,null,null,{"$f":" E$151","v":"Water network plus opening RCV at 2020 FYE price base"},2300.2598389953191,"£m"]
[null,null,null,null,{"$f":" Inputs!E$94","v":"% of RCV to index by RPI - water services"},{"$f":" Inputs!F$94","v":0.5},{"$f":" Inputs!G$94","v":"%"}]
[null,null,null,null,"Water network plus CPIH linked RCV at 2020 FYE price base",{"$f":" F157 * (1 - F158)","v":1150.1299194976596},"£m"]
[]
[null,null,null,null,{"$f":" E$155","v":"Water network plus RPI linked RCV at 2020 FYE price base"},{"$f":" F$155","v":1150.1299194976596},"£m"]
[null,null,null,null,{"$f":" E$159","v":"Water network plus CPIH linked RCV at 2020 FYE price base"},1150.1299194976596,"£m"]
[]
[null,null,null,null,{"$f":" Indexation!E$105","v":"CPIH deflate from 2020 FYE to 2018 FYA"},{"$f":" Indexation!F$105","v":0.95963781461019027},{"$f":" Indexation!G$105","v":"factor"}]
[]
[null,null,null,null,"Water network plus RCV RPI inflated ~ 1 April (opening balance excluding IFRS16 and other adjustment) at 2017-18 CPIH deflated price base",{"$f":" F161 * F$164","v":1103.7081624645282},"£m"]
[null,null,null,null,"Water network plus RCV CPIH inflated ~ 1 April (opening balance excluding IFRS16 and other adjustment) at 2017-18 CPIH deflated price base",{"$f":" F162 * F$164","v":1103.7081624645282},"£m"]
[]
[null,null,null,null,{"$f":" E$39","v":"Water ~ Other adjustment to wholesale RCV at 2017-18 FYA CPIH deflated price base"},{"$f":" F$39","v":0},{"$f":" G$39","v":"£m"}]
[{"$f":" Inputs!A$96","v":"WS12019WR"},null,null,null,{"$f":" Inputs!E$96","v":"Water resources % of total wholesale water RCV ~ 31 March 2020"},{"$f":" Inputs!F$96","v":0.20068334073328201},{"$f":" Inputs!G$96","v":"%"}]
[null,null,null,null,"Water network plus other adjustment at 2017-18 FYA CPIH deflated price base",{"$f":" F169 * (1 - F$170)","v":0},"£m"]
[]
[null,null,null,null,{"$f":" E$171","v":"Water network plus other adjustment at 2017-18 FYA CPIH deflated price base"},{"$f":" F$171","v":0},"£m"]
[null,null,null,null,{"$f":"E41","v":"Water network plus IFRS16 RCV adjustment at 2017-18 FYA CPIH deflated price base"},{"$f":"F41","v":6.8768186123372423},{"$f":"G41","v":"£m"}]
[null,null,null,null,{"$f":" Inputs!E$94","v":"% of RCV to index by RPI - water services"},{"$f":" Inputs!F$94","v":0.5},{"$f":" Inputs!G$94","v":"%"}]
[null,null,null,null,"Water network plus other adjustment RPI inflated RCV at 2017-18 FYA CPIH deflated price base",{"$f":" F173 * F$175","v":0},"£m"]
[null,null,null,null,"Water network plus IFRS16 adjustment RPI inflated RCV at 2017-18 FYA CPIH deflated price base",{"$f":" F174 * F175","v":3.4384093061686212},"£m"]
[]
[null,null,null,null,{"$f":" E$171","v":"Water network plus other adjustment at 2017-18 FYA CPIH deflated price base"},{"$f":" F$171","v":0},"£m"]
[null,null,null,null,{"$f":"E41","v":"Water network plus IFRS16 RCV adjustment at 2017-18 FYA CPIH deflated price base"},{"$f":"F41","v":6.8768186123372423},{"$f":"G41","v":"£m"}]
[null,null,null,null,{"$f":" Inputs!E$94","v":"% of RCV to index by RPI - water services"},{"$f":" Inputs!F$94","v":0.5},{"$f":" Inputs!G$94","v":"%"}]
[null,null,null,null,"Water network plus other adjustment CPIH inflated RCV at 2017-18 FYA CPIH deflated price base",{"$f":" F179 * (1 - F181)","v":0},"£m"]
[null,null,null,null,"Water network plus IFRS16 adjustment CPIH inflated RCV at 2017-18 FYA CPIH deflated price base",{"$f":" F180 * (1 - F181)","v":3.4384093061686212},"£m"]
[]
[null,null,null,null,{"$f":"E166","v":"Water network plus RCV RPI inflated ~ 1 April (opening balance excluding IFRS16 and other adjustment) at 2017-18 CPIH deflated price base"},{"$f":"F166","v":1103.7081624645282},{"$f":"G166","v":"£m"}]
[null,null,null,null,{"$f":" E$176","v":"Water network plus other adjustment RPI inflated RCV at 2017-18 FYA CPIH deflated price base"},{"$f":" F$176","v":0},"£m"]
[null,null,null,null,{"$f":"E177","v":"Water network plus IFRS16 adjustment RPI inflated RCV at 2017-18 FYA CPIH deflated price base"},{"$f":"F177","v":3.4384093061686212},"£m"]
["C_APP8014WN",null,null,null,"Water network plus RCV RPI inflated ~ 1 April (opening balance) at 2017-18 CPIH deflated price base",{"$f":" F185 + F186 + F187","v":1107.1465717706967},"£m"]
[]
[null,null,null,null,{"$f":"E167","v":"Water network plus RCV CPIH inflated ~ 1 April (opening balance excluding IFRS16 and other adjustment) at 2017-18 CPIH deflated price base"},{"$f":"F167","v":1103.7081624645282},{"$f":"G167","v":"£m"}]
[null,null,null,null,{"$f":" E$182","v":"Water network plus other adjustment CPIH inflated RCV at 2017-18 FYA CPIH deflated price base"},{"$f":" F$182","v":0},"£m"]
[null,null,null,null,{"$f":"E183","v":"Water network plus IFRS16 adjustment CPIH inflated RCV at 2017-18 FYA CPIH deflated price base"},{"$f":"F183","v":3.4384093061686212},"£m"]
["C_APP8016WN",null,null,null,"Water network plus RCV CPIH inflated ~ 1 April (opening balance) at 2017-18 CPIH deflated price base",{"$f":" F190 + F191 + F192","v":1107.1465717706967},"£m"]
[]
[]
["WASTEWATER SERVICES"]
[]
[null,"Wastewater RCV closing balance at 31 March 2020"]
[{"$f":" Inputs!A$104","v":"APP8001WW"},null,null,null,{"$f":" Inputs!E$104","v":"Wholesale wastewater closing RCV at 31 March 2020 (from PR14 FD)"},{"$f":" Inputs!F$104","v":3394.3262140232},{"$f":" Inputs!G$104","v":"£m"}]
[{"$f":" Inputs!A$105","v":"C00579_L021"},null,null,null,{"$f":" Inputs!E$105","v":"Wastewater ~ Total Adjustment RCV carry forward to PR19"},{"$f":" Inputs!F$105","v":3.198},{"$f":" Inputs!G$105","v":"£m"}]
[{"$f":" Inputs!A$106","v":"APP25002"},null,null,null,{"$f":" Inputs!E$106","v":"Wastewater ~ CIS RCV inflation correction"},{"$f":" Inputs!F$106","v":-61.174999999999997},{"$f":" Inputs!G$106","v":"£m"}]
[{"$f":" Inputs!A$107","v":"APP27031"},null,null,null,{"$f":" Inputs!E$107","v":"Net performance payment / (penalty) applied to RCV for end of period ODI adjustments ~ Wastewater network plus"},{"$f":" Inputs!F$107","v":0},{"$f":" Inputs!G$107","v":"£m"}]
[{"$f":" Inputs!A$108","v":"C_WWS15020_PR19PD006"},null,null,null,{"$f":" Inputs!E$108","v":"Wastewater: RCV adjustment from totex menu model"},{"$f":" Inputs!F$108","v":-46.719561123497101},{"$f":" Inputs!G$108","v":"£m"}]
[]
[null,null,null,null,{"$f":" Indexation!E$82","v":"RPI inflate from 2013 FYA to 2020 FYE"},{"$f":" Indexation!F$82","v":1.1958720752017984},{"$f":" Indexation!G$82","v":"factor"}]
[]
[null,null,null,null,{"$f":" E199 & \" at 2020 FYE price base\"","v":"Wholesale wastewater closing RCV at 31 March 2020 (from PR14 FD) at 2020 FYE price base"},{"$f":" F199 * F$205","v":4059.1799334757879},"£m"]
[null,null,null,null,{"$f":" E200 & \" at 2020 FYE price base\"","v":"Wastewater ~ Total Adjustment RCV carry forward to PR19 at 2020 FYE price base"},{"$f":" F200 * F$205","v":3.8243988964953513},"£m"]
[null,null,null,null,{"$f":" E201 & \" at 2020 FYE price base\"","v":"Wastewater ~ CIS RCV inflation correction at 2020 FYE price base"},{"$f":" F201 * F$205","v":-73.15747420047002},"£m"]
[null,null,null,null,{"$f":" E202 & \" at 2020 FYE price base\"","v":"Net performance payment / (penalty) applied to RCV for end of period ODI adjustments ~ Wastewater network plus at 2020 FYE price base"},{"$f":" F202 * F$205","v":0},"£m"]
[null,null,null,null,{"$f":" E203 & \" at 2020 FYE price base\"","v":"Wastewater: RCV adjustment from totex menu model at 2020 FYE price base"},{"$f":" F203 * F$205","v":-55.87061851327374},"£m"]
[]
[{"$f":" Inputs!A$114","v":"WWS12016BIO"},null,null,null,{"$f":" Inputs!E$114","v":"Bioresources RCV (prior to midnight adjustments) 31 March 2020"},{"$f":" Inputs!F$114","v":290.68},{"$f":" Inputs!G$114","v":"£m"}]
[{"$f":" Inputs!A$110","v":"C_A7010WW_PR19PD003"},null,null,null,{"$f":" Inputs!E$110","v":"Wastewater ~ NPV effect of 50% of proceeds from disposals of interest in land"},{"$f":" Inputs!F$110","v":0.220560290916786},{"$f":" Inputs!G$110","v":"£m"}]
[]
[null,null,null,null,{"$f":" Indexation!E$95","v":"RPI inflate from 2018 FYE to 2020 FYE"},{"$f":" Indexation!F$95","v":1.0513833992094863},{"$f":" Indexation!G$95","v":"factor"}]
[null,null,null,null,{"$f":" Indexation!E$89","v":"RPI inflate from 2018 FYA to 2020 FYE"},{"$f":" Indexation!F$89","v":1.0643547849283095},{"$f":" Indexation!G$89","v":"factor"}]
[]
[null,null,null,null,{"$f":" E213 & \" at 2020 FYE price base\"","v":"Bioresources RCV (prior to midnight adjustments) 31 March 2020 at 2020 FYE price base"},{"$f":" F213 * F216","v":305.61612648221347},"£m"]
[null,null,null,null,{"$f":" E214 & \" at 2020 FYE price base\"","v":"Wastewater ~ NPV effect of 50% of proceeds from disposals of interest in land at 2020 FYE price base"},{"$f":" F214 * F217","v":0.23475440100246114},"£m"]
[]
[null,null,"IFRS16 and Other RCV adjustments expressed in 2017-18 FYA CPIH deflated price base"]
[{"$f":" Inputs!A$109","v":"APP8009WW"},null,null,null,{"$f":" Inputs!E$109","v":"Wastewater ~ Other adjustment to wholesale RCV"},{"$f":" Inputs!F$109","v":0},{"$f":" Inputs!G$109","v":"£m"}]
[{"$f":" Inputs!A$116","v":"APP33021BIO"},null,null,null,{"$f":" Inputs!E$116","v":"Bioresources IFRS16 RCV adjustment"},{"$f":" Inputs!F$116","v":1.8020345851819299},{"$f":" Inputs!G$116","v":"£m"}]
[{"$f":" Inputs!A$117","v":"APP33021WWNP"},null,null,null,{"$f":" Inputs!E$117","v":"Wastewater network plus IFRS16 RCV adjustment"},{"$f":" Inputs!F$117","v":6.18674066220564},{"$f":" Inputs!G$117","v":"£m"}]
[]
[null,null,null,null,{"$f":" Indexation!E$107","v":"CPIH deflate from 2018 FYE to 2018 FYA - IFRS 16 and Other"},{"$f":" Indexation!F$107","v":0.99159530605772273},{"$f":" Indexation!G$107","v":"factor"}]
[]
["C040",null,null,null,{"$f":" E223 & \" at 2017-18 FYA CPIH deflated price base\"","v":"Wastewater ~ Other adjustment to wholesale RCV at 2017-18 FYA CPIH deflated price base"},{"$f":" F223 * F$227","v":0},"£m"]
["C_APP8022BIO",null,null,null,{"$f":" E224 & \" at 2017-18 FYA CPIH deflated price base\"","v":"Bioresources IFRS16 RCV adjustment at 2017-18 FYA CPIH deflated price base"},{"$f":" F224 * F$227","v":1.7868890360200773},"£m"]
["C_APP8022WWN",null,null,null,"Wastewater network plus IFRS16 RCV adjustment at 2017-18 FYA CPIH deflated price base",{"$f":" F225 * F$227","v":6.1347430004395598},"£m"]
[]
[null,null,"Values expressed in 2017-18 FYE CPIH deflated price base for table App8"]
[null,null,null,null,{"$f":" E$207","v":"Wholesale wastewater closing RCV at 31 March 2020 (from PR14 FD) at 2020 FYE price base"},{"$f":" F$207","v":4059.1799334757879},"£m"]
[null,null,null,null,{"$f":" E$208","v":"Wastewater ~ Total Adjustment RCV carry forward to PR19 at 2020 FYE price base"},3.8243988964953513,"£m"]
[null,null,null,null,{"$f":" E$209","v":"Wastewater ~ CIS RCV inflation correction at 2020 FYE price base"},-73.15747420047002,"£m"]
[null,null,null,null,{"$f":" E$220","v":"Wastewater ~ NPV effect of 50% of proceeds from disposals of interest in land at 2020 FYE price base"},0.23475440100246114,"£m"]
[null,null,null,null,{"$f":" E$210","v":"Net performance payment / (penalty) applied to RCV for end of period ODI adjustments ~ Wastewater network plus at 2020 FYE price base"},0,"£m"]
[null,null,null,null,{"$f":" E$211","v":"Wastewater: RCV adjustment from totex menu model at 2020 FYE price base"},-55.87061851327374,"£m"]
[]
[]
[null,null,null,null,{"$f":" Indexation!E$106","v":"CPIH deflate from 2020 FYE to 2018 FYE"},{"$f":" Indexation!F$106","v":0.9677716390423573},{"$f":" Indexation!G$106","v":"factor"}]
[]
["C_APP8002WW",null,null,null,"Wholesale wastewater closing RCV at 31 March 2020 before midnight adjustments at 2017-18 FYE CPIH deflated price base ",{"$f":" F234 * F$242","v":3928.35921738771},"£m"]
["C_APP8003WW",null,null,null,"Wastewater ~ Total adjustment RCV carry forward to PR19 at 2017-18 FYE CPIH deflated price base",3.7011447884130888,"£m"]
["C_APP8004WW",null,null,null,"Wastewater ~ CIS RCV inflation correction at 2017-18 FYE CPIH deflated price base",-70.79972871518784,"£m"]
["C_APP8005WW",null,null,null,"Wastewater ~ NPV effect of 50% of proceeds from disposals of interest in land at 2017-18 FYE CPIH deflated price base",0.22718865143055864,"£m"]
["C_APP8006WW",null,null,null,"Wastewater ~ ODI RCV adjustment allocated to Wastewater network plus at 2017-18 FYE CPIH deflated price base",0,"£m"]
["C_APP8008WW",null,null,null,"Wastewater ~ Totex menu RCV adjustment at 2017-18 FYE CPIH deflated price base",-54.0700000529012,"£m"]
[{"$f":" A223","v":"APP8009WW"},{"$f":" B223","v":0},0,0,{"$f":" E223 & \" at 2017-18 FYE CPIH deflated price base\"","v":"Wastewater ~ Other adjustment to wholesale RCV at 2017-18 FYE CPIH deflated price base"},0,"£m"]
["C_APP8010WW",null,null,null,"Total wholesale wastewater RCV at 31 March 2020 post midnight adjustments before allocation to price control units at 2017-18 FYE CPIH deflated price base",{"$f":"SUM(F244:F250)","v":3807.417822059464},"£m"]
[]
[null,null,"PR14 reconciliation adjustments expressed in 2017-18 FYA CPIH deflated price base"]
[null,null,null,null,{"$f":"E234","v":"Wholesale wastewater closing RCV at 31 March 2020 (from PR14 FD) at 2020 FYE price base"},{"$f":"F234","v":4059.1799334757879},"£m"]
[null,null,null,null,{"$f":" E$208","v":"Wastewater ~ Total Adjustment RCV carry forward to PR19 at 2020 FYE price base"},3.8243988964953513,"£m"]
[null,null,null,null,{"$f":" E$209","v":"Wastewater ~ CIS RCV inflation correction at 2020 FYE price base"},-73.15747420047002,"£m"]
[null,null,null,null,{"$f":" E$220","v":"Wastewater ~ NPV effect of 50% of proceeds from disposals of interest in land at 2020 FYE price base"},0.23475440100246114,"£m"]
[null,null,null,null,{"$f":" E$210","v":"Net performance payment / (penalty) applied to RCV for end of period ODI adjustments ~ Wastewater network plus at 2020 FYE price base"},0,"£m"]
[null,null,null,null,{"$f":" E$211","v":"Wastewater: RCV adjustment from totex menu model at 2020 FYE price base"},-55.87061851327374,"£m"]
[]
[]
[null,null,null,null,{"$f":" Indexation!E$105","v":"CPIH deflate from 2020 FYE to 2018 FYA"},{"$f":" Indexation!F$105","v":0.95963781461019027},{"$f":" Indexation!G$105","v":"factor"}]
[]
["C_RCV_WW",null,null,null,"Wholesale wastewater closing RCV at 31 March 2020 (from PR14 FD) at 2017-18 FYA CPIH deflated prices",{"$f":" F254 * F$262","v":3895.3425604702425},"£m"]
["C_APP25005",null,null,null,"Wastewater ~ Total Adjustment RCV carry forward to PR19 at 2017-18 FYA CPIH deflated price base",3.6700377992304221,"£m"]
["C_APP25008",null,null,null,"Wastewater ~ CIS RCV inflation correction at 2017-18 FYA CPIH deflated price base",-70.204678664140431,"£m"]
["C_A7011WW",null,null,null,"Wastewater ~ NPV effect of 50% of proceeds from disposals of interest in land at 2017-18 FYA CPIH deflated price base",0.22527920034812607,"£m"]
["C_APP27050",null,null,null,"ODI end of period RCV adjustment ~ Wastewater network plus at 2017-18 FYA CPIH deflated price base",0,"£m"]
["C_WWS15022",null,null,null,"Wastewater: Totex menu RCV adjustment at 2017-18 FYA CPIH deflated price base",-53.615558250997651,"£m"]
[{"$f":" A229","v":"C040"},{"$f":" B229","v":0},0,0,"Wastewater ~ Other adjustment to wholesale RCV at 2017-18 FYA CPIH deflated price base",0,"£m"]
[]
[null,null,null,null,{"$f":"E219","v":"Bioresources RCV (prior to midnight adjustments) 31 March 2020 at 2020 FYE price base"},{"$f":"F219","v":305.61612648221347},{"$f":"G219","v":"£m"}]
[]
[null,null,null,null,{"$f":" Indexation!E$105","v":"CPIH deflate from 2020 FYE to 2018 FYA"},{"$f":" Indexation!F$105","v":0.95963781461019027},{"$f":" Indexation!G$105","v":"factor"}]
[]
["C_RCV1011BIO_FYA",null,null,null,"Bioresources RCV (prior to midnight adjustments) 31 March 2020 at 2017-18 FYA CPIH deflated price base",{"$f":" F272 * F$274","v":293.28079172702286},"£m"]
[]
[null,"Total wholesale wastewater RCV at 31 March 2020 post midnight adjustments before allocation to price control units at 2020 FYE price base"]
[null,null,null,null,{"$f":" E$207","v":"Wholesale wastewater closing RCV at 31 March 2020 (from PR14 FD) at 2020 FYE price base"},4059.1799334757879,"£m"]
[null,null,null,null,{"$f":" E$208","v":"Wastewater ~ Total Adjustment RCV carry forward to PR19 at 2020 FYE price base"},3.8243988964953513,"£m"]
[null,null,null,null,{"$f":" E$209","v":"Wastewater ~ CIS RCV inflation correction at 2020 FYE price base"},-73.15747420047002,"£m"]
[null,null,null,null,{"$f":" E$210","v":"Net performance payment / (penalty) applied to RCV for end of period ODI adjustments ~ Wastewater network plus at 2020 FYE price base"},0,"£m"]
[null,null,null,null,{"$f":" E$211","v":"Wastewater: RCV adjustment from totex menu model at 2020 FYE price base"},-55.87061851327374,"£m"]
[]
[null,null,null,null,{"$f":" E$220","v":"Wastewater ~ NPV effect of 50% of proceeds from disposals of interest in land at 2020 FYE price base"},0.23475440100246114,"£m"]
[null,null,null,null,"Total wholesale wastewater RCV at 31 March 2020 post midnight adjustments before allocation to price control units at 2020 FYE price base",{"$f":"SUM(F279:F285)","v":3934.2109940595424},"£m"]
[]
[null,"Wastewater network plus"]
[null,null,null,null,{"$f":" E$286","v":"Total wholesale wastewater RCV at 31 March 2020 post midnight adjustments before allocation to price control units at 2020 FYE price base"},3934.2109940595424,"£m"]
[null,null,null,"less",{"$f":" E$219","v":"Bioresources RCV (prior to midnight adjustments) 31 March 2020 at 2020 FYE price base"},{"$f":" F$219","v":305.61612648221347},"£m"]
[null,null,null,null,"Wastewater network plus opening RCV at 2020 FYE price base",{"$f":" F289 - F290","v":3628.5948675773288},"£m"]
[]
[null,null,null,null,{"$f":" E$291","v":"Wastewater network plus opening RCV at 2020 FYE price base"},3628.5948675773288,"£m"]
[null,null,null,null,{"$f":" Inputs!E$112","v":"% of RCV to index by RPI - wastewater services"},{"$f":" Inputs!F$112","v":0.5},{"$f":" Inputs!G$112","v":"%"}]
[null,null,null,null,"Wastewater network plus RPI linked RCV at 2020 FYE price base",{"$f":" F293 * F294","v":1814.2974337886644},"£m"]
[]
[null,null,null,null,{"$f":" E$291","v":"Wastewater network plus opening RCV at 2020 FYE price base"},3628.5948675773288,"£m"]
[null,null,null,null,{"$f":" Inputs!E$112","v":"% of RCV to index by RPI - wastewater services"},{"$f":" Inputs!F$112","v":0.5},{"$f":" Inputs!G$112","v":"%"}]
[null,null,null,null,"Wastewater network plus CPIH linked RCV at 2020 FYE price base",{"$f":" F297 * (1 - F298)","v":1814.2974337886644},"£m"]
[]
[null,null,null,null,{"$f":" E$295","v":"Wastewater network plus RPI linked RCV at 2020 FYE price base"},1814.2974337886644,"£m"]
[null,null,null,null,{"$f":" E$299","v":"Wastewater network plus CPIH linked RCV at 2020 FYE price base"},1814.2974337886644,"£m"]
[]
[null,null,null,null,{"$f":" Indexation!E$105","v":"CPIH deflate from 2020 FYE to 2018 FYA"},{"$f":" Indexation!F$105","v":0.95963781461019027},{"$f":" Indexation!G$105","v":"factor"}]
[]
[null,null,null,null,"Wastewater network plus RCV RPI inflated ~ 1 April (opening balance excluding IFRS16 and other adjustment) at 2017-18 CPIH deflated price base",{"$f":" F301 * F$304","v":1741.0684244138304},{"$f":" G$295","v":"£m"}]
[null,null,null,null,"Wastewater network plus RCV CPIH inflated ~ 1 April (opening balance excluding IFRS16 and other adjustment) at 2017-18 CPIH deflated price base",{"$f":" F302 * F$304","v":1741.0684244138304},{"$f":" G$299","v":"£m"}]
[]
[null,null,null,null,{"$f":" E$229","v":"Wastewater ~ Other adjustment to wholesale RCV at 2017-18 FYA CPIH deflated price base"},{"$f":" F$229","v":0},"£m"]
[null,null,null,null,{"$f":" E$231","v":"Wastewater network plus IFRS16 RCV adjustment at 2017-18 FYA CPIH deflated price base"},{"$f":" F$231","v":6.1347430004395598},"£m"]
[null,null,null,null,{"$f":" Inputs!E$112","v":"% of RCV to index by RPI - wastewater services"},{"$f":" Inputs!F$112","v":0.5},{"$f":" Inputs!G$112","v":"%"}]
[null,null,null,null,"Wastewater network plus other adjustment RPI inflated RCV at 2017-18 FYA CPIH deflated price base",{"$f":" F309 * F$311","v":0},"£m"]
[null,null,null,null,"Wastewater network plus IFRS16 adjustment RPI inflated RCV at 2017-18 FYA CPIH deflated price base",{"$f":" F310 * F$311","v":3.0673715002197799},"£m"]
[]
[null,null,null,null,{"$f":" E$229","v":"Wastewater ~ Other adjustment to wholesale RCV at 2017-18 FYA CPIH deflated price base"},{"$f":" F$229","v":0},"£m"]
[null,null,null,null,{"$f":"E231","v":"Wastewater network plus IFRS16 RCV adjustment at 2017-18 FYA CPIH deflated price base"},{"$f":"F231","v":6.1347430004395598},{"$f":"G231","v":"£m"}]
[null,null,null,null,{"$f":" Inputs!E$112","v":"% of RCV to index by RPI - wastewater services"},{"$f":" Inputs!F$112","v":0.5},{"$f":" Inputs!G$112","v":"%"}]
[null,null,null,null,"Wastewater network plus other adjustment CPIH inflated RCV at 2017-18 FYA CPIH deflated price base",{"$f":" F315 * (1 - F$317)","v":0},"£m"]
[null,null,null,null,"Wastewater network plus IFRS16 adjustment CPIH inflated RCV at 2017-18 FYA CPIH deflated price base",{"$f":" F316 * (1 - F$317)","v":3.0673715002197799},"£m"]
[]
[null,null,null,null,{"$f":" E$306","v":"Wastewater network plus RCV RPI inflated ~ 1 April (opening balance excluding IFRS16 and other adjustment) at 2017-18 CPIH deflated price base"},{"$f":" F$306","v":1741.0684244138304},"£m"]
[null,null,null,null,{"$f":" E$312","v":"Wastewater network plus other adjustment RPI inflated RCV at 2017-18 FYA CPIH deflated price base"},{"$f":" F$312","v":0},"£m"]
[null,null,null,null,{"$f":" E$313","v":"Wastewater network plus IFRS16 adjustment RPI inflated RCV at 2017-18 FYA CPIH deflated price base"},{"$f":" F$313","v":3.0673715002197799},"£m"]
["C_APP8014WWN",null,null,null,"Wastewater network plus RCV RPI inflated ~ 1 April (opening balance) at 2017-18 CPIH deflated price base",{"$f":" F321 + F322 + F323","v":1744.13579591405},"£m"]
[]
[null,null,null,null,{"$f":" E$307","v":"Wastewater network plus RCV CPIH inflated ~ 1 April (opening balance excluding IFRS16 and other adjustment) at 2017-18 CPIH deflated price base"},{"$f":" F$307","v":1741.0684244138304},"£m"]
[null,null,null,null,{"$f":" E$318","v":"Wastewater network plus other adjustment CPIH inflated RCV at 2017-18 FYA CPIH deflated price base"},{"$f":" F$318","v":0},"£m"]
[null,null,null,null,{"$f":"E319","v":"Wastewater network plus IFRS16 adjustment CPIH inflated RCV at 2017-18 FYA CPIH deflated price base"},{"$f":"F319","v":3.0673715002197799},"£m"]
["C_APP8016WWN",null,null,null,"Wastewater network plus RCV CPIH inflated ~ 1 April (opening balance) at 2017-18 CPIH deflated price base",{"$f":" F326 + F327 + F328","v":1744.13579591405},"£m"]
[]
[null,"Bioresources"]
[null,null,null,null,{"$f":" E$219","v":"Bioresources RCV (prior to midnight adjustments) 31 March 2020 at 2020 FYE price base"},{"$f":" F$219","v":305.61612648221347},"£m"]
[null,null,null,null,{"$f":" Inputs!E$112","v":"% of RCV to index by RPI - wastewater services"},{"$f":" Inputs!F$112","v":0.5},{"$f":" Inputs!G$112","v":"%"}]
[null,null,null,null,"Bioresources RPI linked RCV at 2020 FYE price base",{"$f":" F332 * F333","v":152.80806324110674},"£m"]
[]
[null,null,null,null,{"$f":" E$219","v":"Bioresources RCV (prior to midnight adjustments) 31 March 2020 at 2020 FYE price base"},{"$f":" F$219","v":305.61612648221347},"£m"]
[null,null,null,null,{"$f":" Inputs!E$112","v":"% of RCV to index by RPI - wastewater services"},{"$f":" Inputs!F$112","v":0.5},{"$f":" Inputs!G$112","v":"%"}]
[null,null,null,null,"Bioresources CPIH linked RCV at 2020 FYE price base",{"$f":" F336 * (1 - F337)","v":152.80806324110674},"£m"]
[]
[null,null,null,null,{"$f":" E$334","v":"Bioresources RPI linked RCV at 2020 FYE price base"},{"$f":" F$334","v":152.80806324110674},"£m"]
[null,null,null,null,{"$f":" E$338","v":"Bioresources CPIH linked RCV at 2020 FYE price base"},{"$f":" F$338","v":152.80806324110674},"£m"]
[]
[null,null,null,null,{"$f":" Indexation!E$105","v":"CPIH deflate from 2020 FYE to 2018 FYA"},{"$f":" Indexation!F$105","v":0.95963781461019027},{"$f":" Indexation!G$105","v":"factor"}]
[]
[null,null,null,null,"Bioresources 2020 RCV RPI inflated ~ 1 April (opening balance excluding IFRS16 adjustment) at 2017-18 CPIH deflated price base",{"$f":" F340 * F$343","v":146.64039586351143},{"$f":" G$334","v":"£m"}]
[null,null,null,null,"Bioresources 2020 RCV CPIH inflated ~ 1 April (opening balance excluding IFRS16 adjustment) at 2017-18 CPIH deflated price base",{"$f":" F341 * F$343","v":146.64039586351143},{"$f":" G$338","v":"£m"}]
[]
[null,null,null,null,{"$f":"E230","v":"Bioresources IFRS16 RCV adjustment at 2017-18 FYA CPIH deflated price base"},{"$f":"F230","v":1.7868890360200773},{"$f":"G230","v":"£m"}]
[null,null,null,null,{"$f":" Inputs!E$112","v":"% of RCV to index by RPI - wastewater services"},{"$f":" Inputs!F$112","v":0.5},{"$f":" Inputs!G$112","v":"%"}]
[null,null,null,null,"Bioresources IFRS16 adjustment RPI inflated RCV at 2017-18 FYA CPIH deflated price base",{"$f":" F348 * F349","v":0.89344451801003866},"£m"]
[]
[null,null,null,null,{"$f":"E230","v":"Bioresources IFRS16 RCV adjustment at 2017-18 FYA CPIH deflated price base"},{"$f":"F230","v":1.7868890360200773},{"$f":"G230","v":"£m"}]
[null,null,null,null,{"$f":" Inputs!E$112","v":"% of RCV to index by RPI - wastewater services"},{"$f":" Inputs!F$112","v":0.5},{"$f":" Inputs!G$112","v":"%"}]
[null,null,null,null,"Bioresources IFRS16 adjustment CPIH inflated RCV at 2017-18 FYA CPIH deflated price base",{"$f":" F352 * (1 - F353)","v":0.89344451801003866},"£m"]
[]
[null,null,null,null,{"$f":"E345","v":"Bioresources 2020 RCV RPI inflated ~ 1 April (opening balance excluding IFRS16 adjustment) at 2017-18 CPIH deflated price base"},{"$f":"F345","v":146.64039586351143},"£m"]
[null,null,null,null,{"$f":"E350","v":"Bioresources IFRS16 adjustment RPI inflated RCV at 2017-18 FYA CPIH deflated price base"},{"$f":"F350","v":0.89344451801003866},"£m"]
["C_APP8014BIO",null,null,null,"Bioresources 2020 RCV RPI inflated ~ 1 April (opening balance) at 2017-18 CPIH deflated price base",{"$f":" F356 + F357","v":147.53384038152146},"£m"]
[]
[null,null,null,null,{"$f":"E346","v":"Bioresources 2020 RCV CPIH inflated ~ 1 April (opening balance excluding IFRS16 adjustment) at 2017-18 CPIH deflated price base"},{"$f":"F346","v":146.64039586351143},"£m"]
[null,null,null,null,{"$f":"E354","v":"Bioresources IFRS16 adjustment CPIH inflated RCV at 2017-18 FYA CPIH deflated price base"},{"$f":"F354","v":0.89344451801003866},"£m"]
["C_APP8016BIO",null,null,null,"Bioresources 2020 RCV CPIH inflated ~ 1 April (opening balance) at 2017-18 CPIH deflated price base",{"$f":" F360 + F361","v":147.53384038152146},"£m"]
[]
[]
["DUMMY PRICE CONTROL"]
[]
[null,"Dummy RCV closing balance at 31 March 2020"]
[{"$f":"Inputs!A$121","v":"RCV1011DMMY"},null,null,null,{"$f":"Inputs!E$121","v":"Dummy RCV (prior to midnight adjustments) 31 March 2020"},{"$f":"Inputs!F$121","v":0},{"$f":"Inputs!G$121","v":"£m"}]
[]
[null,null,null,null,{"$f":" Indexation!E$95","v":"RPI inflate from 2018 FYE to 2020 FYE"},{"$f":" Indexation!F$95","v":1.0513833992094863},{"$f":" Indexation!G$95","v":"factor"}]
[]
[null,null,null,null,{"$f":" E368 & \" at 2020 FYE price base\"","v":"Dummy RCV (prior to midnight adjustments) 31 March 2020 at 2020 FYE price base"},{"$f":" F368 * F370","v":0},"£m"]
[]
[{"$f":" Inputs!A$122","v":"APP27032"},null,null,null,{"$f":" Inputs!E$122","v":"Net performance payment / (penalty) applied to RCV for end of period ODI adjustments ~ Thames Tideway"},{"$f":" Inputs!F$122","v":0},{"$f":" Inputs!G$122","v":"£m"}]
[{"$f":"Inputs!A$123","v":"C_WWS15020_DMMY_PR19PD006"},null,null,null,{"$f":"Inputs!E$123","v":"Dummy: RCV adjustment from totex menu model"},{"$f":"Inputs!F$123","v":0},{"$f":"Inputs!G$123","v":"£m"}]
[]
[null,null,null,null,{"$f":" Indexation!E$82","v":"RPI inflate from 2013 FYA to 2020 FYE"},{"$f":" Indexation!F$82","v":1.1958720752017984},{"$f":" Indexation!G$82","v":"factor"}]
[]
[null,null,null,null,{"$f":" E374 & \" at 2020 FYE price base\"","v":"Net performance payment / (penalty) applied to RCV for end of period ODI adjustments ~ Thames Tideway at 2020 FYE price base"},{"$f":" F374 * F$377","v":0},"£m"]
[null,null,null,null,{"$f":" E375 & \" at 2020 FYE price base\"","v":"Dummy: RCV adjustment from totex menu model at 2020 FYE price base"},{"$f":" F375 * F$377","v":0},"£m"]
[]
[]
[{"$f":"Inputs!A$125","v":"Manual input if required"},null,null,null,{"$f":"Inputs!E$125","v":"Dummy: NPV effect of 100% of proceeds from disposals of interest in land"},{"$f":"Inputs!F$125","v":0},{"$f":"Inputs!G$125","v":"£m"}]
[]
[]
[null,null,null,null,{"$f":" Indexation!E$89","v":"RPI inflate from 2018 FYA to 2020 FYE"},{"$f":" Indexation!F$89","v":1.0643547849283095},{"$f":" Indexation!G$89","v":"factor"}]
[]
[]
[null,null,null,null,{"$f":" E383 & \" at 2020 FYE price base\"","v":"Dummy: NPV effect of 100% of proceeds from disposals of interest in land at 2020 FYE price base"},{"$f":" F383 * F386","v":0},"£m"]
[]
[null,null,"IFRS16 and other RCV adjustments expressed in 2017-18 FYA CPIH deflated price base"]
[{"$f":" Inputs!A$124","v":"APP8009DMMY"},{"$f":" Inputs!B$124","v":0},{"$f":" Inputs!C$124","v":0},{"$f":" Inputs!D$124","v":0},{"$f":" Inputs!E$124","v":"Dummy ~ Other adjustment to wholesale RCV"},{"$f":" Inputs!F$124","v":0},{"$f":" Inputs!G$124","v":"£m"}]
[{"$f":" Inputs!A$128","v":"APP33021DMMY"},null,null,null,{"$f":" Inputs!E$128","v":"Dummy IFRS16 RCV adjustment"},{"$f":" Inputs!F$128","v":0},{"$f":" Inputs!G$128","v":"£m"}]
[]
[null,null,null,null,{"$f":" Indexation!E$107","v":"CPIH deflate from 2018 FYE to 2018 FYA - IFRS 16 and Other"},{"$f":" Indexation!F$107","v":0.99159530605772273},{"$f":" Indexation!G$107","v":"factor"}]
[]
["C050",null,null,null,"Dummy other RCV adjustment at 2017-18 FYA CPIH deflated price base",{"$f":" F392 * F$395","v":0},"£m"]
["C_APP8022DMMY",null,null,null,"Dummy IFRS16 RCV adjustment at 2017-18 FYA CPIH deflated price base",{"$f":" F393 * F$395","v":0},"£m"]
[]
[null,null,"Values expressed in 2017-18 FYE CPIH deflated price base for table App8"]
[null,null,null,null,{"$f":" E$372","v":"Dummy RCV (prior to midnight adjustments) 31 March 2020 at 2020 FYE price base"},{"$f":" F$372","v":0},"£m"]
[null,null,null,null,{"$f":" E$379","v":"Net performance payment / (penalty) applied to RCV for end of period ODI adjustments ~ Thames Tideway at 2020 FYE price base"},{"$f":" F$379","v":0},{"$f":" G$379","v":"£m"}]
[null,null,null,null,{"$f":"E$380","v":"Dummy: RCV adjustment from totex menu model at 2020 FYE price base"},{"$f":"F$380","v":0},"£m"]
[]
[null,null,null,null,{"$f":"E$389","v":"Dummy: NPV effect of 100% of proceeds from disposals of interest in land at 2020 FYE price base"},{"$f":"F$389","v":0},"£m"]
[]
[null,null,null,null,{"$f":" Indexation!E$106","v":"CPIH deflate from 2020 FYE to 2018 FYE"},{"$f":" Indexation!F$106","v":0.9677716390423573},{"$f":" Indexation!G$106","v":"factor"}]
[]
["C_APP8002DMMY",null,null,null,"Dummy RCV (prior to midnight adjustments) 31 March 2020 at 2017-18 FYE CPIH deflated price base",{"$f":" F401 * F$407","v":0},"£m"]
["C_APP8006DMMY",null,null,null,"ODI end of period RCV adjustment allocated to dummy at 2017-18 FYE CPIH deflated price base",{"$f":" F402 * F$407","v":0},"£m"]
["C_APP8008DMMY",null,null,null,"Dummy ~ Totex menu RCV adjustment at 2017-18 FYE CPIH deflated price base",{"$f":" F403 * F$407","v":0},"£m"]
[{"$f":" A$392","v":"APP8009DMMY"},{"$f":" B$392","v":0},0,0,{"$f":" E$392 & \" at 2017-18 FYE CPIH deflated price base\"","v":"Dummy ~ Other adjustment to wholesale RCV at 2017-18 FYE CPIH deflated price base"},0,"£m"]
["C_APP8005DMMY",null,null,null,"Dummy: NPV effect of 100% of proceeds from disposals of interest in land at 2017-18 FYE CPIH deflated price base",{"$f":" F405 * F$407","v":0},"£m"]
["C_APP8010DMMY",null,null,null,"Total dummy RCV at 31 March 2020 post midnight adjustments at 2017-18 FYE CPIH deflated price base",{"$f":"SUM(F409:F413)","v":0},"£m"]
[]
[null,null,"PR14 reconciliation adjustments expressed in 2017-18 FYA CPIH deflated price base"]
[null,null,null,null,{"$f":" E$379","v":"Net performance payment / (penalty) applied to RCV for end of period ODI adjustments ~ Thames Tideway at 2020 FYE price base"},{"$f":" F$379","v":0},{"$f":" G$379","v":"£m"}]
[null,null,null,null,{"$f":" E$380","v":"Dummy: RCV adjustment from totex menu model at 2020 FYE price base"},{"$f":" F$380","v":0},"£m"]
[]
[null,null,null,null,{"$f":"E$389","v":"Dummy: NPV effect of 100% of proceeds from disposals of interest in land at 2020 FYE price base"},{"$f":"F$389","v":0},"£m"]
[]
[null,null,null,null,{"$f":" Indexation!E$105","v":"CPIH deflate from 2020 FYE to 2018 FYA"},{"$f":" Indexation!F$105","v":0.95963781461019027},{"$f":" Indexation!G$105","v":"factor"}]
[]
["C_APP27051",null,null,null,"ODI end of period RCV adjustment  ~ Thames Tideway at 2017-18 FYA CPIH deflated price base",{"$f":" F417 * F$422","v":0},"£m"]
["C_WWS15022DMMY",null,null,null,"Dummy ~ Totex menu RCV adjustment at 2017-18 FYA CPIH deflated price base",{"$f":" F418 * F$422","v":0},"£m"]
[]
["C_A7011DMMY",null,null,null,"Dummy: NPV effect of 100% of proceeds from disposals of interest in land at 2017-18 FYA CPIH deflated price base",{"$f":" F420 * F$422","v":0},"£m"]
[]
[null,"Total dummy RCV at 31 March 2020 post midnight adjustments at 2020 FYE price base"]
[null,null,null,null,{"$f":"E$372","v":"Dummy RCV (prior to midnight adjustments) 31 March 2020 at 2020 FYE price base"},{"$f":"F$372","v":0},{"$f":"G$372","v":"£m"}]
[null,null,null,null,{"$f":" E$379","v":"Net performance payment / (penalty) applied to RCV for end of period ODI adjustments ~ Thames Tideway at 2020 FYE price base"},{"$f":" F$379","v":0},{"$f":" G$379","v":"£m"}]
[null,null,null,null,{"$f":" E$380","v":"Dummy: RCV adjustment from totex menu model at 2020 FYE price base"},{"$f":" F$380","v":0},"£m"]
[]
[null,null,null,null,{"$f":"E$389","v":"Dummy: NPV effect of 100% of proceeds from disposals of interest in land at 2020 FYE price base"},{"$f":"F$389","v":0},"£m"]
[null,null,null,null,"Total dummy RCV at 31 March 2020 post midnight adjustments at 2020 FYE price base",{"$f":"SUM(F430:F434)","v":0},"£m"]
[]
[null,null,null,null,{"$f":"E$435","v":"Total dummy RCV at 31 March 2020 post midnight adjustments at 2020 FYE price base"},{"$f":"F$435","v":0},{"$f":"G$435","v":"£m"}]
[null,null,null,null,{"$f":" Inputs!E$126","v":"% of RCV to index by RPI - dummy"},{"$f":" Inputs!F$126","v":0.5},{"$f":" Inputs!G$126","v":"%"}]
[null,null,null,null,"Dummy RPI linked RCV at 2020 FYE price base",{"$f":" F437 * F438","v":0},"£m"]
[]
[null,null,null,null,{"$f":"E$435","v":"Total dummy RCV at 31 March 2020 post midnight adjustments at 2020 FYE price base"},{"$f":"F$435","v":0},"£m"]
[null,null,null,null,{"$f":" Inputs!E$126","v":"% of RCV to index by RPI - dummy"},{"$f":" Inputs!F$126","v":0.5},{"$f":" Inputs!G$126","v":"%"}]
[null,null,null,null,"Dummy CPIH linked RCV at 2020 FYE price base",{"$f":" F441 * (1 - F442)","v":0},"£m"]
[]
[null,null,null,null,{"$f":" E$439","v":"Dummy RPI linked RCV at 2020 FYE price base"},{"$f":" F$439","v":0},"£m"]
[null,null,null,null,{"$f":" E$443","v":"Dummy CPIH linked RCV at 2020 FYE price base"},{"$f":" F$443","v":0},"£m"]
[]
[null,null,null,null,{"$f":" Indexation!E$105","v":"CPIH deflate from 2020 FYE to 2018 FYA"},{"$f":" Indexation!F$105","v":0.95963781461019027},{"$f":" Indexation!G$105","v":"factor"}]
[]
[null,null,null,null,"Dummy 2020 RCV RPI inflated ~ 1 April (opening balance excluding IFRS16 and other adjustment) at 2017-18 CPIH deflated price base",{"$f":" F445 * F$448","v":0},"£m"]
[null,null,null,null,"Dummy 2020 RCV CPIH inflated ~ 1 April (opening balance excluding IFRS16 and other adjustment) at 2017-18 CPIH deflated price base",{"$f":" F446 * F$448","v":0},"£m"]
[]
[null,null,null,null,{"$f":"E397","v":"Dummy other RCV adjustment at 2017-18 FYA CPIH deflated price base"},0,"£m"]
[null,null,null,null,"Dummy IFRS16 RCV adjustment at 2017-18 FYA CPIH deflated price base",0,"£m"]
[null,null,null,null,{"$f":" Inputs!E$126","v":"% of RCV to index by RPI - dummy"},{"$f":" Inputs!F$126","v":0.5},{"$f":" Inputs!G$126","v":"%"}]
[null,null,null,null,"Dummy other adjustment RPI inflated RCV at 2017-18 FYA CPIH deflated price base",{"$f":" F453 * F$455","v":0},"£m"]
[null,null,null,null,"Dummy IFRS16 adjustment RPI inflated RCV at 2017-18 FYA CPIH deflated price base",{"$f":" F454 * F$455","v":0},"£m"]
[]
[null,null,null,null,{"$f":"E397","v":"Dummy other RCV adjustment at 2017-18 FYA CPIH deflated price base"},0,"£m"]
[null,null,null,null,"Dummy IFRS16 RCV adjustment at 2017-18 FYA CPIH deflated price base",0,"£m"]
[null,null,null,null,{"$f":" Inputs!E$126","v":"% of RCV to index by RPI - dummy"},{"$f":" Inputs!F$126","v":0.5},{"$f":" Inputs!G$126","v":"%"}]
[null,null,null,null,"Dummy other adjustment CPIH inflated RCV at 2017-18 FYA CPIH deflated price base",{"$f":" F459 * (1 - F$461)","v":0},"£m"]
[null,null,null,null,"Dummy IFRS16 adjustment CPIH inflated RCV at 2017-18 FYA CPIH deflated price base",{"$f":" F460 * (1 - F$461)","v":0},"£m"]
[]
[null,null,null,null,{"$f":"E450","v":"Dummy 2020 RCV RPI inflated ~ 1 April (opening balance excluding IFRS16 and other adjustment) at 2017-18 CPIH deflated price base"},{"$f":"F450","v":0},"£m"]
[null,null,null,null,{"$f":"E456","v":"Dummy other adjustment RPI inflated RCV at 2017-18 FYA CPIH deflated price base"},{"$f":"F456","v":0},"£m"]
[null,null,null,null,{"$f":"E457","v":"Dummy IFRS16 adjustment RPI inflated RCV at 2017-18 FYA CPIH deflated price base"},0,"£m"]
["C_APP8014DMMY",null,null,null,"Dummy 2020 RCV RPI inflated ~ 1 April (opening balance) at 2017-18 CPIH deflated price base",{"$f":" F465 + F466 + F467","v":0},"£m"]
[]
[null,null,null,null,{"$f":"E451","v":"Dummy 2020 RCV CPIH inflated ~ 1 April (opening balance excluding IFRS16 and other adjustment) at 2017-18 CPIH deflated price base"},{"$f":"F451","v":0},"£m"]
[null,null,null,null,{"$f":"E462","v":"Dummy other adjustment CPIH inflated RCV at 2017-18 FYA CPIH deflated price base"},{"$f":"F462","v":0},"£m"]
[null,null,null,null,{"$f":"E463","v":"Dummy IFRS16 adjustment CPIH inflated RCV at 2017-18 FYA CPIH deflated price base"},0,"£m"]
["C_APP8016DMMY",null,null,null,"Dummy 2020 RCV CPIH inflated ~ 1 April (opening balance) at 2017-18 CPIH deflated price base",{"$f":" F470 + F471 + F472","v":0},"£m"]

{"sheet":"Summary_Output","index":11,"n_rows":105,"n_cols":21,"rows_kept":105,"cut":false,"hidden":false,"merged":[]}
[{"$f":" RIGHT(CELL(\"filename\", $A$1), LEN(CELL(\"filename\", $A$1)) - SEARCH(\"]\", CELL(\"filename\", $A$1)))","v":"Summary_Output"}]
[null,null,null,null,{"$f":" Time!E$25","v":"Model period ending"},null,null,null,null,null,{"$f":" Time!K$25","v":"2014-03-31"},{"$f":" Time!L$25","v":"2015-03-31"},{"$f":" Time!M$25","v":"2016-03-31"},{"$f":" Time!N$25","v":"2017-03-31"},{"$f":" Time!O$25","v":"2018-03-31"},{"$f":" Time!P$25","v":"2019-03-31"},{"$f":" Time!Q$25","v":"2020-03-31"},{"$f":" Time!R$25","v":"2021-03-31"},{"$f":" Time!S$25","v":"2022-03-31"},{"$f":" Time!T$25","v":"2023-03-31"},{"$f":" Time!U$25","v":"2024-03-31"}]
[null,null,null,null,{"$f":" Time!E$80","v":"Timeline label"},null,null,null,null,null,{"$f":" Time!K$80","v":"Pre-Fcst"},{"$f":" Time!L$80","v":"Pre-Fcst"},{"$f":" Time!M$80","v":"Pre-Fcst"},{"$f":" Time!N$80","v":"Pre-Fcst"},{"$f":" Time!O$80","v":"Pre-Fcst"},{"$f":" Time!P$80","v":"Pre-Fcst"},{"$f":" Time!Q$80","v":"Pre-Fcst"},{"$f":" Time!R$80","v":"Forecast"},{"$f":" Time!S$80","v":"Forecast"},{"$f":" Time!T$80","v":"Forecast"},{"$f":" Time!U$80","v":"Forecast"}]
[null,null,null,null,{"$f":" Time!E$103","v":"Financial year ending"},null,null,null,null,null,{"$f":" Time!K$103","v":2014},{"$f":" Time!L$103","v":2015},{"$f":" Time!M$103","v":2016},{"$f":" Time!N$103","v":2017},{"$f":" Time!O$103","v":2018},{"$f":" Time!P$103","v":2019},{"$f":" Time!Q$103","v":2020},{"$f":" Time!R$103","v":2021},{"$f":" Time!S$103","v":2022},{"$f":" Time!T$103","v":2023},{"$f":" Time!U$103","v":2024}]
[null,null,null,null,{"$f":" Time!E$10","v":"Model column counter"},"Constant","Unit",null,null,null,{"$f":" Time!K$10","v":2},{"$f":" Time!L$10","v":3},{"$f":" Time!M$10","v":4},{"$f":" Time!N$10","v":5},{"$f":" Time!O$10","v":6},{"$f":" Time!P$10","v":7},{"$f":" Time!Q$10","v":8},{"$f":" Time!R$10","v":9},{"$f":" Time!S$10","v":10},{"$f":" Time!T$10","v":11},{"$f":" Time!U$10","v":12}]
[]
["WATER SERVICES"]
[]
[null,"Values expressed in 2017-18 FYE CPIH deflated price base for table App8"]
[{"$f":" Calc!A$55","v":"C_APP8002W"},null,null,null,{"$f":" Calc!E$55","v":"Wholesale water closing RCV at 31 March 2020 before midnight adjustments at 2017-18 FYE CPIH deflated price base "},{"$f":" Calc!F$55","v":2798.1414400343024},{"$f":" Calc!G$55","v":"£m"}]
[{"$f":" Calc!A$56","v":"C_APP8003W"},null,null,null,{"$f":" Calc!E$56","v":"Water ~ Total Adjustment RCV carry forward to PR19 at 2017-18 FYE CPIH deflated price base"},{"$f":" Calc!F$56","v":3.5055558361798762},{"$f":" Calc!G$56","v":"£m"}]
[{"$f":" Calc!A$57","v":"C_APP8004W"},null,null,null,{"$f":" Calc!E$57","v":"Water ~ CIS RCV inflation correction at 2017-18 FYE CPIH deflated price base"},{"$f":" Calc!F$57","v":-46.304816442904212},{"$f":" Calc!G$57","v":"£m"}]
[{"$f":" Calc!A$58","v":"C_APP8005W"},null,null,null,{"$f":" Calc!E$58","v":"Water ~ NPV effect of 50% of proceeds from disposals of interest in land at 2017-18 FYE CPIH deflated price base"},{"$f":" Calc!F$58","v":-1.5017774609887606},{"$f":" Calc!G$58","v":"£m"}]
[{"$f":" Calc!A$59","v":"C_APP8006W"},null,null,null,{"$f":" Calc!E$59","v":"Water ~ ODI RCV adjustment allocated to Water resources at 2017-18 FYE CPIH deflated price base"},{"$f":" Calc!F$59","v":0},{"$f":" Calc!G$59","v":"£m"}]
[{"$f":" Calc!A$60","v":"C_APP8007W"},null,null,null,{"$f":" Calc!E$60","v":"Water ~ ODI RCV adjustment allocated to Water network plus at 2017-18 FYE CPIH deflated price base"},{"$f":" Calc!F$60","v":-16.721595776798928},{"$f":" Calc!G$60","v":"£m"}]
[{"$f":" Calc!A$61","v":"C_APP8008W"},null,null,null,{"$f":" Calc!E$61","v":"Water ~ Totex menu RCV adjustment at 2017-18 FYE CPIH deflated price base"},{"$f":" Calc!F$61","v":52.116166538019961},{"$f":" Calc!G$61","v":"£m"}]
[{"$f":" Calc!A$62","v":"APP8009W"},null,null,null,{"$f":" Calc!E$62","v":"Water ~ Other adjustment to wholesale RCV at 2017-18 FYE CPIH deflated price base"},{"$f":" Calc!F$62","v":0},{"$f":" Calc!G$62","v":"£m"}]
[{"$f":" Calc!A$63","v":"C_APP8010W"},null,null,null,{"$f":" Calc!E$63","v":"Total wholesale water RCV at 31 March 2020 post midnight adjustments before allocation to price control units at 2017-18 FYE CPIH deflated price base"},{"$f":" Calc!F$63","v":2789.2349727278106},{"$f":" Calc!G$63","v":"£m"}]
[]
[null,"Values expressed in 2017-18 FYA CPIH deflated price base on table App8"]
[{"$f":"Calc!A$40","v":"C_APP8022WR"},null,null,null,{"$f":"Calc!E$40","v":"Water resources IFRS16 RCV adjustment at 2017-18 FYA CPIH deflated price base"},{"$f":"Calc!F$40","v":0.36630091767161854},{"$f":"Calc!G$40","v":"£m"}]
[{"$f":" Calc!A$139","v":"C_APP8014WR"},null,null,null,{"$f":" Calc!E$139","v":"Water resources 2020 RCV RPI inflated ~ 1 April (opening balance) at 2017-18 CPIH deflated price base"},{"$f":" Calc!F$139","v":279.37114121877613},{"$f":" Calc!G$139","v":"£m"}]
[{"$f":" Calc!A$144","v":"C_APP8016WR"},null,null,null,{"$f":" Calc!E$144","v":"Water resources 2020 RCV CPIH inflated ~ 1 April (opening balance) at 2017-18 CPIH deflated price base"},{"$f":" Calc!F$144","v":279.37114121877613},{"$f":" Calc!G$144","v":"£m"}]
[]
[{"$f":"Calc!A$41","v":"C_APP8022WN"},null,null,null,{"$f":"Calc!E$41","v":"Water network plus IFRS16 RCV adjustment at 2017-18 FYA CPIH deflated price base"},{"$f":"Calc!F$41","v":6.8768186123372423},{"$f":"Calc!G$41","v":"£m"}]
[{"$f":" Calc!A$188","v":"C_APP8014WN"},null,null,null,{"$f":" Calc!E$188","v":"Water network plus RCV RPI inflated ~ 1 April (opening balance) at 2017-18 CPIH deflated price base"},{"$f":" Calc!F$188","v":1107.1465717706967},{"$f":" Calc!G$188","v":"£m"}]
[{"$f":" Calc!A$193","v":"C_APP8016WN"},null,null,null,{"$f":" Calc!E$193","v":"Water network plus RCV CPIH inflated ~ 1 April (opening balance) at 2017-18 CPIH deflated price base"},{"$f":" Calc!F$193","v":1107.1465717706967},{"$f":" Calc!G$193","v":"£m"}]
[]
[]
[null,"PR14 reconciliation adjustments expressed in 2017-18 FYA CPIH deflated price base by table"]
[null,null,"Table App9"]
[{"$f":" Calc!A$80","v":"C_A7011W"},null,null,null,{"$f":" Calc!E$80","v":"Water ~ NPV effect of 50% of proceeds from disposals of interest in land at 2017-18 FYA CPIH deflated price base"},{"$f":" Calc!F$80","v":-1.48915548105974},{"$f":" Calc!G$80","v":"£m"}]
[null,null,"Table App25"]
[{"$f":" Calc!A$78","v":"C_APP25003"},null,null,null,{"$f":" Calc!E$78","v":"Water ~ Total adjustment RCV carry forward to PR19 at 2017-18 FYA CPIH deflated price base"},{"$f":" Calc!F$78","v":3.4760927122792205},{"$f":" Calc!G$78","v":"£m"}]
[{"$f":" Calc!A$79","v":"C_APP25007"},null,null,null,{"$f":" Calc!E$79","v":"Water ~ CIS RCV inflation correction at 2017-18 FYA CPIH deflated price base"},{"$f":" Calc!F$79","v":-45.915638632648275},{"$f":" Calc!G$79","v":"£m"}]
[null,null,"Table App27"]
[{"$f":" Calc!A$81","v":"C_APP27048"},null,null,null,{"$f":" Calc!E$81","v":"ODI end of period RCV adjustment ~ Water resources at 2017-18 FYA CPIH deflated price base"},{"$f":" Calc!F$81","v":0},{"$f":" Calc!G$81","v":"£m"}]
[{"$f":" Calc!A$82","v":"C_APP27049"},null,null,null,{"$f":" Calc!E$82","v":"ODI end of period RCV adjustment  ~ Water network plus at 2017-18 FYA CPIH deflated price base"},{"$f":" Calc!F$82","v":-16.581055882068458},{"$f":" Calc!G$82","v":"£m"}]
[null,null,"Table WS15"]
[{"$f":" Calc!A$83","v":"C_WS15027"},null,null,null,{"$f":" Calc!E$83","v":"Water: Totex menu RCV adjustment at 2017-18 FYA CPIH deflated price base"},{"$f":" Calc!F$83","v":51.67814610882315},{"$f":" Calc!G$83","v":"£m"}]
[null,null,"No table"]
[{"$f":" Calc!A$84","v":"C030"},null,null,null,{"$f":" Calc!E$84","v":"Water ~ Other adjustment to wholesale RCV at 2017-18 FYA CPIH deflated price base"},{"$f":" Calc!F$84","v":0},{"$f":" Calc!G$84","v":"£m"}]
[]
[]
["WASTEWATER SERVICES"]
[]
[null,"Values expressed in 2017-18 FYE CPIH deflated price base for table App8"]
[{"$f":" Calc!A$244","v":"C_APP8002WW"},null,null,null,{"$f":" Calc!E$244","v":"Wholesale wastewater closing RCV at 31 March 2020 before midnight adjustments at 2017-18 FYE CPIH deflated price base "},{"$f":" Calc!F$244","v":3928.35921738771},{"$f":" Calc!G$244","v":"£m"}]
[{"$f":" Calc!A$245","v":"C_APP8003WW"},null,null,null,{"$f":" Calc!E$245","v":"Wastewater ~ Total adjustment RCV carry forward to PR19 at 2017-18 FYE CPIH deflated price base"},{"$f":" Calc!F$245","v":3.7011447884130888},{"$f":" Calc!G$245","v":"£m"}]
[{"$f":" Calc!A$246","v":"C_APP8004WW"},null,null,null,{"$f":" Calc!E$246","v":"Wastewater ~ CIS RCV inflation correction at 2017-18 FYE CPIH deflated price base"},{"$f":" Calc!F$246","v":-70.79972871518784},{"$f":" Calc!G$246","v":"£m"}]
[{"$f":" Calc!A$247","v":"C_APP8005WW"},null,null,null,{"$f":" Calc!E$247","v":"Wastewater ~ NPV effect of 50% of proceeds from disposals of interest in land at 2017-18 FYE CPIH deflated price base"},{"$f":" Calc!F$247","v":0.22718865143055864},{"$f":" Calc!G$247","v":"£m"}]
[{"$f":" Calc!A$248","v":"C_APP8006WW"},null,null,null,{"$f":" Calc!E$248","v":"Wastewater ~ ODI RCV adjustment allocated to Wastewater network plus at 2017-18 FYE CPIH deflated price base"},{"$f":" Calc!F$248","v":0},{"$f":" Calc!G$248","v":"£m"}]
[{"$f":" Calc!A$249","v":"C_APP8008WW"},null,null,null,{"$f":" Calc!E$249","v":"Wastewater ~ Totex menu RCV adjustment at 2017-18 FYE CPIH deflated price base"},{"$f":" Calc!F$249","v":-54.0700000529012},{"$f":" Calc!G$249","v":"£m"}]
[{"$f":" Calc!A$250","v":"APP8009WW"},null,null,null,{"$f":" Calc!E$250","v":"Wastewater ~ Other adjustment to wholesale RCV at 2017-18 FYE CPIH deflated price base"},{"$f":" Calc!F$250","v":0},{"$f":" Calc!G$250","v":"£m"}]
[{"$f":" Calc!A$251","v":"C_APP8010WW"},null,null,null,{"$f":" Calc!E$251","v":"Total wholesale wastewater RCV at 31 March 2020 post midnight adjustments before allocation to price control units at 2017-18 FYE CPIH deflated price base"},{"$f":" Calc!F$251","v":3807.417822059464},{"$f":" Calc!G$251","v":"£m"}]
[]
[null,"Values expressed in 2017-18 FYA CPIH deflated price base on table App8"]
[{"$f":"Calc!A$276","v":"C_RCV1011BIO_FYA"},null,null,null,{"$f":"Calc!E$276","v":"Bioresources RCV (prior to midnight adjustments) 31 March 2020 at 2017-18 FYA CPIH deflated price base"},{"$f":"Calc!F$276","v":293.28079172702286},{"$f":"Calc!G$276","v":"£m"}]
[{"$f":"Calc!A$231","v":"C_APP8022WWN"},null,null,null,{"$f":"Calc!E$231","v":"Wastewater network plus IFRS16 RCV adjustment at 2017-18 FYA CPIH deflated price base"},{"$f":"Calc!F$231","v":6.1347430004395598},{"$f":"Calc!G$231","v":"£m"}]
[{"$f":" Calc!A$324","v":"C_APP8014WWN"},null,null,null,{"$f":" Calc!E$324","v":"Wastewater network plus RCV RPI inflated ~ 1 April (opening balance) at 2017-18 CPIH deflated price base"},{"$f":" Calc!F$324","v":1744.13579591405},{"$f":" Calc!G$324","v":"£m"}]
[{"$f":" Calc!A$329","v":"C_APP8016WWN"},null,null,null,{"$f":" Calc!E$329","v":"Wastewater network plus RCV CPIH inflated ~ 1 April (opening balance) at 2017-18 CPIH deflated price base"},{"$f":" Calc!F$329","v":1744.13579591405},{"$f":" Calc!G$329","v":"£m"}]
[]
[{"$f":"Calc!A$230","v":"C_APP8022BIO"},null,null,null,{"$f":"Calc!E$230","v":"Bioresources IFRS16 RCV adjustment at 2017-18 FYA CPIH deflated price base"},{"$f":"Calc!F$230","v":1.7868890360200773},{"$f":"Calc!G$230","v":"£m"}]
[{"$f":" Calc!A$358","v":"C_APP8014BIO"},null,null,null,{"$f":" Calc!E$358","v":"Bioresources 2020 RCV RPI inflated ~ 1 April (opening balance) at 2017-18 CPIH deflated price base"},{"$f":" Calc!F$358","v":147.53384038152146},{"$f":" Calc!G$358","v":"£m"}]
[{"$f":" Calc!A$362","v":"C_APP8016BIO"},null,null,null,{"$f":" Calc!E$362","v":"Bioresources 2020 RCV CPIH inflated ~ 1 April (opening balance) at 2017-18 CPIH deflated price base"},{"$f":" Calc!F$362","v":147.53384038152146},{"$f":" Calc!G$362","v":"£m"}]
[]
[]
[null,"PR14 reconciliation adjustments expressed in 2017-18 FYA CPIH deflated price base by table"]
[null,null,"Table App9"]
[{"$f":" Calc!A$267","v":"C_A7011WW"},null,null,null,{"$f":" Calc!E$267","v":"Wastewater ~ NPV effect of 50% of proceeds from disposals of interest in land at 2017-18 FYA CPIH deflated price base"},{"$f":" Calc!F$267","v":0.22527920034812607},{"$f":" Calc!G$267","v":"£m"}]
[null,null,"Table App25"]
[{"$f":" Calc!A$265","v":"C_APP25005"},null,null,null,{"$f":" Calc!E$265","v":"Wastewater ~ Total Adjustment RCV carry forward to PR19 at 2017-18 FYA CPIH deflated price base"},{"$f":" Calc!F$265","v":3.6700377992304221},{"$f":" Calc!G$265","v":"£m"}]
[{"$f":" Calc!A$266","v":"C_APP25008"},null,null,null,{"$f":" Calc!E$266","v":"Wastewater ~ CIS RCV inflation correction at 2017-18 FYA CPIH deflated price base"},{"$f":" Calc!F$266","v":-70.204678664140431},{"$f":" Calc!G$266","v":"£m"}]
[null,null,"Table App27"]
[{"$f":" Calc!A$268","v":"C_APP27050"},null,null,null,{"$f":" Calc!E$268","v":"ODI end of period RCV adjustment ~ Wastewater network plus at 2017-18 FYA CPIH deflated price base"},{"$f":" Calc!F$268","v":0},{"$f":" Calc!G$268","v":"£m"}]
[null,null,"Table WWS15"]
[{"$f":" Calc!A$269","v":"C_WWS15022"},null,null,null,{"$f":" Calc!E$269","v":"Wastewater: Totex menu RCV adjustment at 2017-18 FYA CPIH deflated price base"},{"$f":" Calc!F$269","v":-53.615558250997651},{"$f":" Calc!G$269","v":"£m"}]
[null,null,"No table"]
[{"$f":" Calc!A$270","v":"C040"},null,null,null,{"$f":" Calc!E$270","v":"Wastewater ~ Other adjustment to wholesale RCV at 2017-18 FYA CPIH deflated price base"},{"$f":" Calc!F$270","v":0},{"$f":" Calc!G$270","v":"£m"}]
[]
[]
["DUMMY"]
[]
[null,"Values expressed in 2017-18 FYE CPIH deflated price base for table App8"]
[{"$f":" Calc!A$409","v":"C_APP8002DMMY"},null,null,null,{"$f":" Calc!E$409","v":"Dummy RCV (prior to midnight adjustments) 31 March 2020 at 2017-18 FYE CPIH deflated price base"},{"$f":" Calc!F$409","v":0},{"$f":" Calc!G$409","v":"£m"}]
[{"$f":" Calc!A$410","v":"C_APP8006DMMY"},null,null,null,{"$f":" Calc!E$410","v":"ODI end of period RCV adjustment allocated to dummy at 2017-18 FYE CPIH deflated price base"},{"$f":" Calc!F$410","v":0},{"$f":" Calc!G$410","v":"£m"}]
[{"$f":" Calc!A$411","v":"C_APP8008DMMY"},null,null,null,{"$f":" Calc!E$411","v":"Dummy ~ Totex menu RCV adjustment at 2017-18 FYE CPIH deflated price base"},{"$f":" Calc!F$411","v":0},{"$f":" Calc!G$411","v":"£m"}]
[{"$f":"Calc!A$413","v":"C_APP8005DMMY"},null,null,null,{"$f":"Calc!E$413","v":"Dummy: NPV effect of 100% of proceeds from disposals of interest in land at 2017-18 FYE CPIH deflated price base"},{"$f":"Calc!F$413","v":0},{"$f":"Calc!G$413","v":"£m"}]
[{"$f":"Calc!A$412","v":"APP8009DMMY"},null,null,null,{"$f":"Calc!E$412","v":"Dummy ~ Other adjustment to wholesale RCV at 2017-18 FYE CPIH deflated price base"},{"$f":"Calc!F$412","v":0},{"$f":"Calc!G$412","v":"£m"}]
[{"$f":"Calc!A$414","v":"C_APP8010DMMY"},null,null,null,{"$f":"Calc!E$414","v":"Total dummy RCV at 31 March 2020 post midnight adjustments at 2017-18 FYE CPIH deflated price base"},{"$f":"Calc!F$414","v":0},{"$f":"Calc!G$414","v":"£m"}]
[]
[null,"Values expressed in 2017-18 FYA CPIH deflated price base on table App8"]
[{"$f":"Calc!A$398","v":"C_APP8022DMMY"},null,null,null,{"$f":"Calc!E$398","v":"Dummy IFRS16 RCV adjustment at 2017-18 FYA CPIH deflated price base"},{"$f":"Calc!F$398","v":0},{"$f":"Calc!G$398","v":"£m"}]
[{"$f":" Calc!A$468","v":"C_APP8014DMMY"},null,null,null,{"$f":" Calc!E$468","v":"Dummy 2020 RCV RPI inflated ~ 1 April (opening balance) at 2017-18 CPIH deflated price base"},{"$f":" Calc!F$468","v":0},{"$f":" Calc!G$468","v":"£m"}]
[{"$f":" Calc!A$473","v":"C_APP8016DMMY"},null,null,null,{"$f":" Calc!E$473","v":"Dummy 2020 RCV CPIH inflated ~ 1 April (opening balance) at 2017-18 CPIH deflated price base"},{"$f":" Calc!F$473","v":0},{"$f":" Calc!G$473","v":"£m"}]
[]
[null,"PR14 reconciliation adjustments expressed in 2017-18 FYA CPIH deflated price base by table"]
[null,null,"Table App9"]
[{"$f":"Calc!A$427","v":"C_A7011DMMY"},null,null,null,{"$f":"Calc!E$427","v":"Dummy: NPV effect of 100% of proceeds from disposals of interest in land at 2017-18 FYA CPIH deflated price base"},{"$f":"Calc!F$427","v":0},{"$f":"Calc!G$427","v":"£m"}]
[null,null,"Table App27"]
[{"$f":" Calc!A$424","v":"C_APP27051"},null,null,null,{"$f":" Calc!E$424","v":"ODI end of period RCV adjustment  ~ Thames Tideway at 2017-18 FYA CPIH deflated price base"},{"$f":" Calc!F$424","v":0},{"$f":" Calc!G$424","v":"£m"}]
[null,null,"Table Dmmy10"]
[{"$f":" Calc!A$425","v":"C_WWS15022DMMY"},null,null,null,{"$f":" Calc!E$425","v":"Dummy ~ Totex menu RCV adjustment at 2017-18 FYA CPIH deflated price base"},{"$f":" Calc!F$425","v":0},{"$f":" Calc!G$425","v":"£m"}]
[null,null,"No table"]
[{"$f":"Calc!A$397","v":"C050"},{"$f":"Calc!B$397","v":0},{"$f":"Calc!C$397","v":0},{"$f":"Calc!D$397","v":0},{"$f":"Calc!E$397","v":"Dummy other RCV adjustment at 2017-18 FYA CPIH deflated price base"},{"$f":"Calc!F$397","v":0},{"$f":"Calc!G$397","v":"£m"}]